Workbook

Sheet Instructions for Use
B2: Feed Efficiency Evaluation Tool
B4: Created by: Jon De Jong, Kansas State University (© 2015, Jon De Jong, All Rights Reserved)
B5: Instructions for Use
B7: Understanding the Spreadsheet
B8: This tool is designed to allow producers to evaluate F/G using various scenarios from 7 areas of production. This spreadsheet is only designed to evaluate
B9: pigs ranging from 50 - 300 lb BW. Each tab should be used separately from the others as not all areas of production and dietary formulation are additive in
B10: regards to F/G. The last tab in the evaluator provides a summary of the 7 areas of production showing which area is capable of providing the largest
B11: percentage change to the producer's current overall F/G.
B14: Guidelines
B15: 1) All decision cells that the user will utilize and provide inputs for are highlighted and bordered | M15: Input
B16: 2) Overall F/G for the phases of production provided will be highlighted and bordered | M16: Overall F/G
B17: 3) Changes in F/G within a phase of production or for the overall period will be highlighted green (improvement), | M17: F/G Improved | N17: 0.025
B18: red (worsened), or white (no change) when compared to the initial scenario provided by the user. | M18: F/G Worsened | N18: 0.03
M19: F/G Stayed the Same | N19: 0
B20: 4) Dropdown tabs are provided for decision cells when inputs are restricted by the creator. | M20: Drop Down Tab | P20: Double Click to Open
B21: 5) "Clear" buttons are provided throughout the evaluation tool so the user can quickly clear out previous inputs.
B22: Instructions and Step by Step guide A more detailed user guide can be found here
B23: 1) Starting in the "Setup" tab the user should input the appropiate values for the highlighted cells.
B24: 2) The user is now free to explore each tab to evaluate the following seven areas on F/G.
B25: -SID Lysine and NE
B26: -This tab evaluates NE and SID lysine levels of the diet. The user should enter their current NE and SID Lysine levels in the initial scenario lines.
B27: New NE and SID Lysine levels can then be evaluated in the 2nd scenario.
B28: -Ractopamine
B29: -Users can enter ractopamine inclusion and feeding duration for 2 scenarios to compare to their current production practice.
B30: -Temperature
B31: -Users can evaluate the effects of changing the ambient temperature of the barn.
B32: -Feed Processing
B33: -Users can evaluate both meal vs. pellet diets and particle size of the major grain only within meal diets in two separate scenarios.
B34: -Floor Space
B35: -Users can input the amount of floor space given to each animal for the overall period and compare using 2 scenarios.
B36: -Production Management
B37: -Users can evaluate 2 separate changes in production practices.
B39: -Mortality
B40: -Users can compare the effects of mortality for the overall period. In this scenario, mortality is assumed to occur 50% through the overall period.

Sheet (1) Setup
A2: Step 1: Setup
AB3: 10 | AD3: Diet Form | AF3: Percentage Fines | AJ3: Paylean | AK3: Duration
A4: Select Inputs | C4: *Clears All Inputs | E4: Phases | AB4: 15 | AD4: Meal | AF4: 0 | AH4: 325 | AJ4: 0 | AK4: 0
A5: Number of Dietary Phases | B5: 10 | E5: =IF($B$5>0,1,"") -> 1 | F5: =IF($B$5>1,2,"") -> 2 | G5: =IF($B$5>2,3,"") -> 3 | H5: =IF($B$5>3,4,"") -> 4 | I5: =IF($B$5>4,5,"") -> 5 | J5: =IF($B$5>5,6,"") -> 6 | K5: =IF($B$5>6,7,"") -> 7 | L5: =IF($B$5>7,8,"") -> 8 | M5: =IF($B$5>8,9,"") -> 9 | N5: =IF($B$5>9,10,"") -> 10 | O5: =IF($B$5>10,11,"") ->  | P5: =IF($B$5>11,12,"") ->  | Z5: 1 | AB5: 20 | AD5: Pellet | AF5: 5 | AH5: 350 | AJ5: 4.5 | AK5: 7
Z6: 2 | AB6: 25 | AF6: 10 | AH6: 375 | AJ6: 6.75 | AK6: 14 | AO6: baseline | AP6: Change | AQ6: baseline | AR6: change | AS6: FG | AT6: FG | AU6: % Change
A7: Starting Weight, lb | B7: 45 | C7: Choose Starting Weight for All Phases | E7: =B7 -> 45 | F7: 90 | G7: 110 | H7: 130 | I7: 155 | J7: 185 | K7: 200 | L7: 225 | M7: 245 | N7: 265 | Z7: 3 | AB7: 30 | AF7: 15 | AH7: 400 | AJ7: 9 | AK7: 21 | AN7: 2 | AO7: 4 | AP7: 6 | AQ7: 4.5 | AR7: 6.5 | AS7: =AP7/AN7 -> 3 | AT7: =AR7/AN7 -> 3.25 | AU7: =AS7/AT7 -> 0.9230769231
Z8: 4 | AB8: 35 | AF8: 20 | AH8: 425 | AK8: 28 | AN8: 3 | AO8: 4 | AP8: 6 | AQ8: 4.5 | AR8: 6.5 | AS8: =AP8/AN8 -> 2 | AT8: =AR8/AN8 -> 2.166666667 | AU8: =AS8/AT8 -> 0.9230769231
A9: Ending Weight, lb | B9: 300 | C9: *Choose ending weight of final phase | E9: =IF(E5=1,(IF(F5="",B9,F7)),"") -> 90 | F9: =IF(F5=2,(IF(G5="",B9,G7)),"") -> 110 | G9: =IF(G5=3,(IF(H5="",B9,H7)),"") -> 130 | H9: =IF(H5=4,(IF(I5="",B9,I7)),"") -> 155 | I9: =IF(I5=5,(IF(J5="",B9,J7)),"") -> 185 | J9: =IF(J5=6,(IF(K5="",B9,K7)),"") -> 200 | K9: =IF(K5=7,(IF(L5="",B9,L7)),"") -> 225 | L9: =IF(L5=8,(IF(M5="",B9,M7)),"") -> 245 | M9: =IF(M5=9,(IF(N5="",B9,N7)),"") -> 265 | N9: =IF(N5=10,(IF(O5="",B9,O7)),"") -> 300 | O9: =IF(O5=11,(IF(P5="",B9,P7)),"") ->  | P9: =IF(P5=12,(IF(Q5="",B9,Q7)),"") ->  | Z9: 5 | AB9: 40 | AF9: 25 | AH9: 450 | AN9: 4 | AO9: 4 | AP9: 6 | AQ9: 4.5 | AR9: 6.5 | AS9: 1.5 | AT9: 1.625 | AU9: 0.9230769231
Z10: 6 | AB10: 45 | AF10: 30 | AH10: 475 | AN10: 5 | AO10: 4 | AP10: 6 | AQ10: 4.5 | AR10: 6.5 | AS10: 1.2 | AT10: 1.3 | AU10: 0.9230769231
A11: Sex | B11: Mixed | U11: Sex | Z11: 7 | AB11: 50 | AF11: 35 | AH11: 500
A12: Diet Form | B12: Pellet | C12: Percentage Fines if Pelleted | E12: 55 | U12: Mixed | Z12: 8 | AB12: 55 | AF12: 40 | AH12: 525
A13: Grain Particle Size, µ | B13: 550 | C13: *Average particle size of major grain used | U13: Barrow | Z13: 9 | AB13: 60 | AF13: 45 | AH13: 550
A14: Ractopamine, g/ton | B14: 9 | C14: Feeding Duration, d | E14: 17 | U14: Gilt | Z14: 10 | AB14: 65 | AF14: 50 | AH14: 575
A15: Mortality, % | B15: 0.02 | C15: *Mortality for the overall period | AB15: 70 | AF15: 55 | AH15: 600
AB16: 75 | AF16: 60 | AH16: 625
A17: Floor Space/Pig, ft2 | B17: 7.8 | AB17: 80 | AH17: 650
AB18: 85 | AH18: 675
A19: Current Overall ADG, lb | B19: 2.15 | AB19: 90 | AH19: 700
AB20: 95 | AH20: 725
A21: Current Overall F/G | B21: 2.75 | AB21: 100 | AH21: 750
AB22: 105 | AH22: 775
U23: Starting Wt | V23: Ending Weight | AB23: 110 | AH23: 800
AB24: 115 | AH24: 825
U25: 50 | V25: 55 | AB25: 120 | AH25: 850
U26: 55 | V26: 60 | AB26: 125 | AH26: 875
U27: 60 | V27: 65 | AB27: 130 | AH27: 900
U28: 65 | V28: 70 | AB28: 135 | AH28: 925
U29: 70 | V29: 75 | AB29: 140 | AH29: 950
U30: 75 | V30: 80 | AB30: 145 | AH30: 975
U31: 80 | V31: 85 | AB31: 150 | AH31: 1000
U32: 85 | V32: 90 | AB32: 155
U33: 90 | V33: 95 | AB33: 160
U34: 95 | V34: 100 | AB34: 165
U35: 100 | V35: 105 | AB35: 170
U36: 105 | V36: 110 | AB36: 175
U37: 110 | V37: 115 | AB37: 180
U38: 115 | V38: 120 | AB38: 185
U39: 120 | V39: 125 | AB39: 190
U40: 125 | V40: 130 | AB40: 195
U41: 130 | V41: 135 | AB41: 200
U42: 135 | V42: 140 | AB42: 205
U43: 140 | V43: 145 | AB43: 210
U44: 145 | V44: 150 | AB44: 215
U45: 150 | V45: 155 | AB45: 220
U46: 155 | V46: 160 | AB46: 225
U47: 160 | V47: 165 | AB47: 230
U48: 165 | V48: 170 | AB48: 235
U49: 170 | V49: 175 | AB49: 240
U50: 175 | V50: 180 | AB50: 245
U51: 180 | V51: 185 | AB51: 250
U52: 185 | V52: 190 | AB52: 255
U53: 190 | V53: 195 | AB53: 260
U54: 195 | V54: 200 | AB54: 265
U55: 200 | V55: 205 | AB55: 270
U56: 205 | V56: 210 | AB56: 275
U57: 210 | V57: 215 | AB57: 280
U58: 215 | V58: 220 | AB58: 285
U59: 220 | V59: 225 | AB59: 290
U60: 225 | V60: 230 | AB60: 295
U61: 230 | V61: 235 | AB61: 300
U62: 235 | V62: 240
U63: 240 | V63: 245
U64: 245 | V64: 250
U65: 250 | V65: 255
U66: 255 | V66: 260
U67: 260 | V67: 265
U68: 265 | V68: 270
U69: 270 | V69: 275
U70: 275 | V70: 280
U71: 280 | V71: 285
U72: 285 | V72: 290
U73: 290 | V73: 295
U74: 295 | V74: 300

Sheet (2) NE and SID Lysine
A1: Step 2: Selecting Dietary NE and SID Lysine Levels
C7: Phase
C8: ='(1) Setup'!E5 -> 1 | D8: ='(1) Setup'!F5 -> 2 | E8: ='(1) Setup'!G5 -> 3 | F8: ='(1) Setup'!H5 -> 4 | G8: ='(1) Setup'!I5 -> 5 | H8: ='(1) Setup'!J5 -> 6 | I8: ='(1) Setup'!K5 -> 7 | J8: ='(1) Setup'!L5 -> 8 | K8: ='(1) Setup'!M5 -> 9 | L8: ='(1) Setup'!N5 -> 10
A9: Initial Weight, lb | C9: =IF(C8=1,'(1) Setup'!E7,"") -> 45 | D9: =IF(D8=2,'(1) Setup'!F7,"") -> 90 | E9: =IF(E8=3,'(1) Setup'!G7,"") -> 110 | F9: =IF(F8=4,'(1) Setup'!H7,"") -> 130 | G9: =IF(G8=5,'(1) Setup'!I7,"") -> 155 | H9: =IF(H8=6,'(1) Setup'!J7,"") -> 185 | I9: =IF(I8=7,'(1) Setup'!K7,"") -> 200 | J9: =IF(J8=8,'(1) Setup'!L7,"") -> 225 | K9: =IF(K8=9,'(1) Setup'!M7,"") -> 245 | L9: =IF(L8=10,'(1) Setup'!N7,"") -> 265 | N9: ='(1) Setup'!P5 -> 
A10: Ending Weight, lb | C10: =IF(C8=1,'(1) Setup'!E9,"") -> 90 | D10: =IF(D8=2,'(1) Setup'!F9,"") -> 110 | E10: =IF(E8=3,'(1) Setup'!G9,"") -> 130 | F10: =IF(F8=4,'(1) Setup'!H9,"") -> 155 | G10: =IF(G8=5,'(1) Setup'!I9,"") -> 185 | H10: =IF(H8=6,'(1) Setup'!J9,"") -> 200 | I10: =IF(I8=7,'(1) Setup'!K9,"") -> 225 | J10: =IF(J8=8,'(1) Setup'!L9,"") -> 245 | K10: =IF(K8=9,'(1) Setup'!M9,"") -> 265 | L10: =IF(L8=10,'(1) Setup'!N9,"") -> 300
C11: =IF(C8=1,((C9+C10)/2),0) -> 67.5 | D11: =IF(D8=2,((D9+D10)/2),0) -> 100 | E11: =IF(E8=3,((E9+E10)/2),0) -> 120 | F11: =IF(F8=4,((F9+F10)/2),0) -> 142.5 | G11: =IF(G8=5,((G9+G10)/2),0) -> 170 | H11: =IF(H8=6,((H9+H10)/2),0) -> 192.5 | I11: =IF(I8=7,((I9+I10)/2),0) -> 212.5 | J11: =IF(J8=8,((J9+J10)/2),0) -> 235 | K11: =IF(K8=9,((K9+K10)/2),0) -> 255 | L11: =IF(L8=10,((L9+L10)/2),0) -> 282.5
C12: Enter Current NE (NRC, 2012) and SID Lysine Levels
A13: Initial Dietary NE, kcal/lb (NRC, 2012)
A14: Initial SID Lysine, %
A15: Initial Overall F/G paylean adj. | C15: =IF(C10='(1) Setup'!$B$9,'(3) Ractopamine'!B54,IF(C8=1,(1/((0.000004365*(C13*2.204))-(0.00162*(C11/2.204))-(0.08023*(IF(C14>C16,C16,C14)))+((0.000094*(C13*2.204)*(IF(C14>C16,C16,C14)))+0.3496))),0)-C46) -> 1.917796502 | D15: =IF(D10='(1) Setup'!$B$9,'(3) Ractopamine'!C54,IF(D8=2,(1/((0.000004365*(D13*2.204))-(0.00162*(D11/2.204))-(0.08023*(IF(D14>D16,D16,D14)))+((0.000094*(D13*2.204)*(IF(D14>D16,D16,D14)))+0.3496))),0)-D46) -> 2.083727369 | E15: =IF(E10='(1) Setup'!$B$9,'(3) Ractopamine'!D54,IF(E8=3,(1/((0.000004365*(E13*2.204))-(0.00162*(E11/2.204))-(0.08023*(IF(E14>E16,E16,E14)))+((0.000094*(E13*2.204)*(IF(E14>E16,E16,E14)))+0.3496))),0)-E46) -> 2.200912946 | F15: =IF(F10='(1) Setup'!$B$9,'(3) Ractopamine'!E54,IF(F8=4,(1/((0.000004365*(F13*2.204))-(0.00162*(F11/2.204))-(0.08023*(IF(F14>F16,F16,F14)))+((0.000094*(F13*2.204)*(IF(F14>F16,F16,F14)))+0.3496))),0)-F46) -> 2.349565853 | G15: =IF(G10='(1) Setup'!$B$9,'(3) Ractopamine'!F54,IF(G8=5,(1/((0.000004365*(G13*2.204))-(0.00162*(G11/2.204))-(0.08023*(IF(G14>G16,G16,G14)))+((0.000094*(G13*2.204)*(IF(G14>G16,G16,G14)))+0.3496))),0)-G46) -> 2.560976213 | H15: =IF(H10='(1) Setup'!$B$9,'(3) Ractopamine'!G54,IF(H8=6,(1/((0.000004365*(H13*2.204))-(0.00162*(H11/2.204))-(0.08023*(IF(H14>H16,H16,H14)))+((0.000094*(H13*2.204)*(IF(H14>H16,H16,H14)))+0.3496))),0)-H46) -> 2.764494883 | I15: =IF(I10='(1) Setup'!$B$9,'(3) Ractopamine'!H54,IF(I8=7,(1/((0.000004365*(I13*2.204))-(0.00162*(I11/2.204))-(0.08023*(IF(I14>I16,I16,I14)))+((0.000094*(I13*2.204)*(IF(I14>I16,I16,I14)))+0.3496))),0)-I46) -> 2.974619852 | J15: =IF(J10='(1) Setup'!$B$9,'(3) Ractopamine'!I54,IF(J8=8,(1/((0.000004365*(J13*2.204))-(0.00162*(J11/2.204))-(0.08023*(IF(J14>J16,J16,J14)))+((0.000094*(J13*2.204)*(IF(J14>J16,J16,J14)))+0.3496))),0)-J46) -> 3.252761914 | K15: =IF(K10='(1) Setup'!$B$9,'(3) Ractopamine'!J54,IF(K8=9,(1/((0.000004365*(K13*2.204))-(0.00162*(K11/2.204))-(0.08023*(IF(K14>K16,K16,K14)))+((0.000094*(K13*2.204)*(IF(K14>K16,K16,K14)))+0.3496))),0)-K46) -> 3.547624982 | L15: =IF(L10='(1) Setup'!$B$9,'(3) Ractopamine'!K54,IF(L8=10,(1/((0.000004365*(L13*2.204))-(0.00162*(L11/2.204))-(0.08023*(IF(L14>L16,L16,L14)))+((0.000094*(L13*2.204)*(IF(L14>L16,L16,L14)))+0.3496))),0)-L46) -> 3.458320581
A16: Lysine Requirement for Gilts (Nitikanchana et al. 2015) | C16: =ROUND(C17,2) -> 0 | D16: 0 | E16: 0 | F16: 0 | G16: 0 | H16: 0 | I16: 0 | J16: 0 | K16: 0 | L16: 0.25 | N16: =IF(N9=12,((N12*2.2046*(-0.000000153*(('(1) Setup'!P7+'(1) Setup'!P9)/2)^3+0.000104928*(('(1) Setup'!P7+'(1) Setup'!P9)/2)^2-0.030414451*(('(1) Setup'!P7+'(1) Setup'!P9)/2)+6.043540689))/10000),"") -> 
A17: Estimated Lysine Requirement Not Rounded | C17: =IF('(1) Setup'!$B$14>0,(IF('(2) NE and SID Lysine'!C10='(1) Setup'!$B$9,(IF(C8=1,((C13*2.2046*(-0.000000153*(('(1) Setup'!E7+'(1) Setup'!E9)/2)^3+0.000104928*(('(1) Setup'!E7+'(1) Setup'!E9)/2)^2-0.030414451*(('(1) Setup'!E7+'(1) Setup'!E9)/2)+6.043540689))/10000),""))+0.25,(IF(C8=1,((C13*2.2046*(-0.000000153*(('(1) Setup'!E7+'(1) Setup'!E9)/2)^3+0.000104928*(('(1) Setup'!E7+'(1) Setup'!E9)/2)^2-0.030414451*(('(1) Setup'!E7+'(1) Setup'!E9)/2)+6.043540689))/10000),"")))),(IF(C8=1,((C13*2.2046*(-0.000000153*(('(1) Setup'!E7+'(1) Setup'!E9)/2)^3+0.000104928*(('(1) Setup'!E7+'(1) Setup'!E9)/2)^2-0.030414451*(('(1) Setup'!E7+'(1) Setup'!E9)/2)+6.043540689))/10000),""))) -> 0 | D17: =IF('(1) Setup'!$B$14>0,(IF('(2) NE and SID Lysine'!D10='(1) Setup'!$B$9,(IF(D8=2,((D13*2.2046*(-0.000000153*(('(1) Setup'!F7+'(1) Setup'!F9)/2)^3+0.000104928*(('(1) Setup'!F7+'(1) Setup'!F9)/2)^2-0.030414451*(('(1) Setup'!F7+'(1) Setup'!F9)/2)+6.043540689))/10000),""))+0.25,(IF(D8=2,((D13*2.2046*(-0.000000153*(('(1) Setup'!F7+'(1) Setup'!F9)/2)^3+0.000104928*(('(1) Setup'!F7+'(1) Setup'!F9)/2)^2-0.030414451*(('(1) Setup'!F7+'(1) Setup'!F9)/2)+6.043540689))/10000),"")))),(IF(D8=2,((D13*2.2046*(-0.000000153*(('(1) Setup'!F7+'(1) Setup'!F9)/2)^3+0.000104928*(('(1) Setup'!F7+'(1) Setup'!F9)/2)^2-0.030414451*(('(1) Setup'!F7+'(1) Setup'!F9)/2)+6.043540689))/10000),""))) -> 0 | E17: =IF('(1) Setup'!$B$14>0,(IF('(2) NE and SID Lysine'!E10='(1) Setup'!$B$9,(IF(E8=3,((E13*2.2046*(-0.000000153*(('(1) Setup'!G7+'(1) Setup'!G9)/2)^3+0.000104928*(('(1) Setup'!G7+'(1) Setup'!G9)/2)^2-0.030414451*(('(1) Setup'!G7+'(1) Setup'!G9)/2)+6.043540689))/10000),""))+0.25,(IF(E8=3,((E13*2.2046*(-0.000000153*(('(1) Setup'!G7+'(1) Setup'!G9)/2)^3+0.000104928*(('(1) Setup'!G7+'(1) Setup'!G9)/2)^2-0.030414451*(('(1) Setup'!G7+'(1) Setup'!G9)/2)+6.043540689))/10000),"")))),(IF(E8=3,((E13*2.2046*(-0.000000153*(('(1) Setup'!G7+'(1) Setup'!G9)/2)^3+0.000104928*(('(1) Setup'!G7+'(1) Setup'!G9)/2)^2-0.030414451*(('(1) Setup'!G7+'(1) Setup'!G9)/2)+6.043540689))/10000),""))) -> 0 | F17: =IF('(1) Setup'!$B$14>0,(IF('(2) NE and SID Lysine'!F10='(1) Setup'!$B$9,(IF(F8=4,((F13*2.2046*(-0.000000153*(('(1) Setup'!H7+'(1) Setup'!H9)/2)^3+0.000104928*(('(1) Setup'!H7+'(1) Setup'!H9)/2)^2-0.030414451*(('(1) Setup'!H7+'(1) Setup'!H9)/2)+6.043540689))/10000),""))+0.25,(IF(F8=4,((F13*2.2046*(-0.000000153*(('(1) Setup'!H7+'(1) Setup'!H9)/2)^3+0.000104928*(('(1) Setup'!H7+'(1) Setup'!H9)/2)^2-0.030414451*(('(1) Setup'!H7+'(1) Setup'!H9)/2)+6.043540689))/10000),"")))),(IF(F8=4,((F13*2.2046*(-0.000000153*(('(1) Setup'!H7+'(1) Setup'!H9)/2)^3+0.000104928*(('(1) Setup'!H7+'(1) Setup'!H9)/2)^2-0.030414451*(('(1) Setup'!H7+'(1) Setup'!H9)/2)+6.043540689))/10000),""))) -> 0 | G17: =IF('(1) Setup'!$B$14>0,(IF('(2) NE and SID Lysine'!G10='(1) Setup'!$B$9,(IF(G8=5,((G13*2.2046*(-0.000000153*(('(1) Setup'!I7+'(1) Setup'!I9)/2)^3+0.000104928*(('(1) Setup'!I7+'(1) Setup'!I9)/2)^2-0.030414451*(('(1) Setup'!I7+'(1) Setup'!I9)/2)+6.043540689))/10000),""))+0.25,(IF(G8=5,((G13*2.2046*(-0.000000153*(('(1) Setup'!I7+'(1) Setup'!I9)/2)^3+0.000104928*(('(1) Setup'!I7+'(1) Setup'!I9)/2)^2-0.030414451*(('(1) Setup'!I7+'(1) Setup'!I9)/2)+6.043540689))/10000),"")))),(IF(G8=5,((G13*2.2046*(-0.000000153*(('(1) Setup'!I7+'(1) Setup'!I9)/2)^3+0.000104928*(('(1) Setup'!I7+'(1) Setup'!I9)/2)^2-0.030414451*(('(1) Setup'!I7+'(1) Setup'!I9)/2)+6.043540689))/10000),""))) -> 0 | H17: =IF('(1) Setup'!$B$14>0,(IF('(2) NE and SID Lysine'!H10='(1) Setup'!$B$9,(IF(H8=6,((H13*2.2046*(-0.000000153*(('(1) Setup'!J7+'(1) Setup'!J9)/2)^3+0.000104928*(('(1) Setup'!J7+'(1) Setup'!J9)/2)^2-0.030414451*(('(1) Setup'!J7+'(1) Setup'!J9)/2)+6.043540689))/10000),""))+0.25,(IF(H8=6,((H13*2.2046*(-0.000000153*(('(1) Setup'!J7+'(1) Setup'!J9)/2)^3+0.000104928*(('(1) Setup'!J7+'(1) Setup'!J9)/2)^2-0.030414451*(('(1) Setup'!J7+'(1) Setup'!J9)/2)+6.043540689))/10000),"")))),(IF(H8=6,((H13*2.2046*(-0.000000153*(('(1) Setup'!J7+'(1) Setup'!J9)/2)^3+0.000104928*(('(1) Setup'!J7+'(1) Setup'!J9)/2)^2-0.030414451*(('(1) Setup'!J7+'(1) Setup'!J9)/2)+6.043540689))/10000),""))) -> 0 | I17: =IF('(1) Setup'!$B$14>0,(IF('(2) NE and SID Lysine'!I10='(1) Setup'!$B$9,(IF(I8=7,((I13*2.2046*(-0.000000153*(('(1) Setup'!K7+'(1) Setup'!K9)/2)^3+0.000104928*(('(1) Setup'!K7+'(1) Setup'!K9)/2)^2-0.030414451*(('(1) Setup'!K7+'(1) Setup'!K9)/2)+6.043540689))/10000),""))+0.25,(IF(I8=7,((I13*2.2046*(-0.000000153*(('(1) Setup'!K7+'(1) Setup'!K9)/2)^3+0.000104928*(('(1) Setup'!K7+'(1) Setup'!K9)/2)^2-0.030414451*(('(1) Setup'!K7+'(1) Setup'!K9)/2)+6.043540689))/10000),"")))),(IF(I8=7,((I13*2.2046*(-0.000000153*(('(1) Setup'!K7+'(1) Setup'!K9)/2)^3+0.000104928*(('(1) Setup'!K7+'(1) Setup'!K9)/2)^2-0.030414451*(('(1) Setup'!K7+'(1) Setup'!K9)/2)+6.043540689))/10000),""))) -> 0 | J17: =IF('(1) Setup'!$B$14>0,(IF('(2) NE and SID Lysine'!J10='(1) Setup'!$B$9,(IF(J8=8,((J13*2.2046*(-0.000000153*(('(1) Setup'!L7+'(1) Setup'!L9)/2)^3+0.000104928*(('(1) Setup'!L7+'(1) Setup'!L9)/2)^2-0.030414451*(('(1) Setup'!L7+'(1) Setup'!L9)/2)+6.043540689))/10000),""))+0.25,(IF(J8=8,((J13*2.2046*(-0.000000153*(('(1) Setup'!L7+'(1) Setup'!L9)/2)^3+0.000104928*(('(1) Setup'!L7+'(1) Setup'!L9)/2)^2-0.030414451*(('(1) Setup'!L7+'(1) Setup'!L9)/2)+6.043540689))/10000),"")))),(IF(J8=8,((J13*2.2046*(-0.000000153*(('(1) Setup'!L7+'(1) Setup'!L9)/2)^3+0.000104928*(('(1) Setup'!L7+'(1) Setup'!L9)/2)^2-0.030414451*(('(1) Setup'!L7+'(1) Setup'!L9)/2)+6.043540689))/10000),""))) -> 0 | K17: =IF('(1) Setup'!$B$14>0,(IF('(2) NE and SID Lysine'!K10='(1) Setup'!$B$9,(IF(K8=9,((K13*2.2046*(-0.000000153*(('(1) Setup'!M7+'(1) Setup'!M9)/2)^3+0.000104928*(('(1) Setup'!M7+'(1) Setup'!M9)/2)^2-0.030414451*(('(1) Setup'!M7+'(1) Setup'!M9)/2)+6.043540689))/10000),""))+0.25,(IF(K8=9,((K13*2.2046*(-0.000000153*(('(1) Setup'!M7+'(1) Setup'!M9)/2)^3+0.000104928*(('(1) Setup'!M7+'(1) Setup'!M9)/2)^2-0.030414451*(('(1) Setup'!M7+'(1) Setup'!M9)/2)+6.043540689))/10000),"")))),(IF(K8=9,((K13*2.2046*(-0.000000153*(('(1) Setup'!M7+'(1) Setup'!M9)/2)^3+0.000104928*(('(1) Setup'!M7+'(1) Setup'!M9)/2)^2-0.030414451*(('(1) Setup'!M7+'(1) Setup'!M9)/2)+6.043540689))/10000),""))) -> 0 | L17: =IF('(1) Setup'!$B$14>0,(IF('(2) NE and SID Lysine'!L10='(1) Setup'!$B$9,(IF(L8=10,((L13*2.2046*(-0.000000153*(('(1) Setup'!N7+'(1) Setup'!N9)/2)^3+0.000104928*(('(1) Setup'!N7+'(1) Setup'!N9)/2)^2-0.030414451*(('(1) Setup'!N7+'(1) Setup'!N9)/2)+6.043540689))/10000),""))+0.25,(IF(L8=10,((L13*2.2046*(-0.000000153*(('(1) Setup'!N7+'(1) Setup'!N9)/2)^3+0.000104928*(('(1) Setup'!N7+'(1) Setup'!N9)/2)^2-0.030414451*(('(1) Setup'!N7+'(1) Setup'!N9)/2)+6.043540689))/10000),"")))),(IF(L8=10,((L13*2.2046*(-0.000000153*(('(1) Setup'!N7+'(1) Setup'!N9)/2)^3+0.000104928*(('(1) Setup'!N7+'(1) Setup'!N9)/2)^2-0.030414451*(('(1) Setup'!N7+'(1) Setup'!N9)/2)+6.043540689))/10000),""))) -> 0.25
A19: Barrow lysine, not rounded | C19: =IF('(1) Setup'!$B$14>0,(IF(C10='(1) Setup'!$B$9,(((C13*2.2046)*(0.0000454*((C9+C10)/2)^2-0.0249885*((C9+C10)/2)+5.8980083))/10000)+0.25,(((C13*2.2046)*(0.0000454*((C9+C10)/2)^2-0.0249885*((C9+C10)/2)+5.8980083))/10000))),(((C13*2.2046)*(0.0000454*((C9+C10)/2)^2-0.0249885*((C9+C10)/2)+5.8980083))/10000)) -> 0 | D19: =IF('(1) Setup'!$B$14>0,(IF(D10='(1) Setup'!$B$9,(((D13*2.2046)*(0.0000454*((D9+D10)/2)^2-0.0249885*((D9+D10)/2)+5.8980083))/10000)+0.25,(((D13*2.2046)*(0.0000454*((D9+D10)/2)^2-0.0249885*((D9+D10)/2)+5.8980083))/10000))),(((D13*2.2046)*(0.0000454*((D9+D10)/2)^2-0.0249885*((D9+D10)/2)+5.8980083))/10000)) -> 0 | E19: =IF('(1) Setup'!$B$14>0,(IF(E10='(1) Setup'!$B$9,(((E13*2.2046)*(0.0000454*((E9+E10)/2)^2-0.0249885*((E9+E10)/2)+5.8980083))/10000)+0.25,(((E13*2.2046)*(0.0000454*((E9+E10)/2)^2-0.0249885*((E9+E10)/2)+5.8980083))/10000))),(((E13*2.2046)*(0.0000454*((E9+E10)/2)^2-0.0249885*((E9+E10)/2)+5.8980083))/10000)) -> 0 | F19: =IF('(1) Setup'!$B$14>0,(IF(F10='(1) Setup'!$B$9,(((F13*2.2046)*(0.0000454*((F9+F10)/2)^2-0.0249885*((F9+F10)/2)+5.8980083))/10000)+0.25,(((F13*2.2046)*(0.0000454*((F9+F10)/2)^2-0.0249885*((F9+F10)/2)+5.8980083))/10000))),(((F13*2.2046)*(0.0000454*((F9+F10)/2)^2-0.0249885*((F9+F10)/2)+5.8980083))/10000)) -> 0 | G19: =IF('(1) Setup'!$B$14>0,(IF(G10='(1) Setup'!$B$9,(((G13*2.2046)*(0.0000454*((G9+G10)/2)^2-0.0249885*((G9+G10)/2)+5.8980083))/10000)+0.25,(((G13*2.2046)*(0.0000454*((G9+G10)/2)^2-0.0249885*((G9+G10)/2)+5.8980083))/10000))),(((G13*2.2046)*(0.0000454*((G9+G10)/2)^2-0.0249885*((G9+G10)/2)+5.8980083))/10000)) -> 0 | H19: =IF('(1) Setup'!$B$14>0,(IF(H10='(1) Setup'!$B$9,(((H13*2.2046)*(0.0000454*((H9+H10)/2)^2-0.0249885*((H9+H10)/2)+5.8980083))/10000)+0.25,(((H13*2.2046)*(0.0000454*((H9+H10)/2)^2-0.0249885*((H9+H10)/2)+5.8980083))/10000))),(((H13*2.2046)*(0.0000454*((H9+H10)/2)^2-0.0249885*((H9+H10)/2)+5.8980083))/10000)) -> 0 | I19: =IF('(1) Setup'!$B$14>0,(IF(I10='(1) Setup'!$B$9,(((I13*2.2046)*(0.0000454*((I9+I10)/2)^2-0.0249885*((I9+I10)/2)+5.8980083))/10000)+0.25,(((I13*2.2046)*(0.0000454*((I9+I10)/2)^2-0.0249885*((I9+I10)/2)+5.8980083))/10000))),(((I13*2.2046)*(0.0000454*((I9+I10)/2)^2-0.0249885*((I9+I10)/2)+5.8980083))/10000)) -> 0 | J19: =IF('(1) Setup'!$B$14>0,(IF(J10='(1) Setup'!$B$9,(((J13*2.2046)*(0.0000454*((J9+J10)/2)^2-0.0249885*((J9+J10)/2)+5.8980083))/10000)+0.25,(((J13*2.2046)*(0.0000454*((J9+J10)/2)^2-0.0249885*((J9+J10)/2)+5.8980083))/10000))),(((J13*2.2046)*(0.0000454*((J9+J10)/2)^2-0.0249885*((J9+J10)/2)+5.8980083))/10000)) -> 0 | K19: =IF('(1) Setup'!$B$14>0,(IF(K10='(1) Setup'!$B$9,(((K13*2.2046)*(0.0000454*((K9+K10)/2)^2-0.0249885*((K9+K10)/2)+5.8980083))/10000)+0.25,(((K13*2.2046)*(0.0000454*((K9+K10)/2)^2-0.0249885*((K9+K10)/2)+5.8980083))/10000))),(((K13*2.2046)*(0.0000454*((K9+K10)/2)^2-0.0249885*((K9+K10)/2)+5.8980083))/10000)) -> 0 | L19: =IF('(1) Setup'!$B$14>0,(IF(L10='(1) Setup'!$B$9,(((L13*2.2046)*(0.0000454*((L9+L10)/2)^2-0.0249885*((L9+L10)/2)+5.8980083))/10000)+0.25,(((L13*2.2046)*(0.0000454*((L9+L10)/2)^2-0.0249885*((L9+L10)/2)+5.8980083))/10000))),(((L13*2.2046)*(0.0000454*((L9+L10)/2)^2-0.0249885*((L9+L10)/2)+5.8980083))/10000)) -> 0.25
A20: Lysine Requirement for Barrows (Nitikanchana et al. 2015) | C20: =IF(C19>C16,C16,(ROUND(C19,2))) -> 0 | D20: =IF(D19>D16,D16,(ROUND(D19,2))) -> 0 | E20: 0 | F20: 0 | G20: 0 | H20: 0 | I20: 0 | J20: 0 | K20: 0 | L20: 0.25
A21: Lysine Requirement for Mixed Sex , not rounded | C21: =AVERAGE(C16,C20) -> 0 | D21: =AVERAGE(D16,D20) -> 0 | E21: 0 | F21: 0 | G21: 0 | H21: 0 | I21: 0 | J21: 0 | K21: 0 | L21: 0.25
A22: Lysine Requirement for Mixed Sex adapted from: Nitikanchana et al. 2015 | C22: =ROUND(C21,2) -> 0 | D22: =ROUND(D21,2) -> 0 | E22: 0 | F22: 0 | G22: 0 | H22: 0 | I22: 0 | J22: 0 | K22: 0 | L22: 0.25 | M22: Current Overall F/G
A23: Initial F/G | C23: =IF(C13="",0,C54) -> 0 | D23: =IF(D13="",0,D54) -> 0 | E23: 0 | F23: 0 | G23: 0 | H23: 0 | I23: 0 | J23: 0 | K23: 0 | L23: 0 | M23: =C57 -> 2.752494861
C25: Enter NE (NRC, 2012) and SID Lysine Levels to Compare
A26: New Dietary NE, kcal/lb (NRC, 2012)
A27: New SID Lysine, %
A28: Lysine Requirement for Gilts (Nitikanchana et al. 2015) | C28: =ROUND(C29,2) -> 0 | D28: 0 | E28: 0 | F28: 0 | G28: 0 | H28: 0 | I28: 0 | J28: 0 | K28: 0 | L28: 0.25
A29: Un rounded Lysine Req gilts | C29: =IF('(1) Setup'!$B$14>0,(IF('(2) NE and SID Lysine'!C10='(1) Setup'!$B$9,(IF(C8=1,((C26*2.2046*(-0.000000153*(('(1) Setup'!E7+'(1) Setup'!E9)/2)^3+0.000104928*(('(1) Setup'!E7+'(1) Setup'!E9)/2)^2-0.030414451*(('(1) Setup'!E7+'(1) Setup'!E9)/2)+6.043540689))/10000),""))+0.25,(IF(C8=1,((C26*2.2046*(-0.000000153*(('(1) Setup'!E7+'(1) Setup'!E9)/2)^3+0.000104928*(('(1) Setup'!E7+'(1) Setup'!E9)/2)^2-0.030414451*(('(1) Setup'!E7+'(1) Setup'!E9)/2)+6.043540689))/10000),"")))),(IF(C8=1,((C26*2.2046*(-0.000000153*(('(1) Setup'!E7+'(1) Setup'!E9)/2)^3+0.000104928*(('(1) Setup'!E7+'(1) Setup'!E9)/2)^2-0.030414451*(('(1) Setup'!E7+'(1) Setup'!E9)/2)+6.043540689))/10000),""))) -> 0 | D29: =IF('(1) Setup'!$B$14>0,(IF('(2) NE and SID Lysine'!D10='(1) Setup'!$B$9,(IF(D8=2,((D26*2.2046*(-0.000000153*(('(1) Setup'!F7+'(1) Setup'!F9)/2)^3+0.000104928*(('(1) Setup'!F7+'(1) Setup'!F9)/2)^2-0.030414451*(('(1) Setup'!F7+'(1) Setup'!F9)/2)+6.043540689))/10000),""))+0.25,(IF(D8=2,((D26*2.2046*(-0.000000153*(('(1) Setup'!F7+'(1) Setup'!F9)/2)^3+0.000104928*(('(1) Setup'!F7+'(1) Setup'!F9)/2)^2-0.030414451*(('(1) Setup'!F7+'(1) Setup'!F9)/2)+6.043540689))/10000),"")))),(IF(D8=2,((D26*2.2046*(-0.000000153*(('(1) Setup'!F7+'(1) Setup'!F9)/2)^3+0.000104928*(('(1) Setup'!F7+'(1) Setup'!F9)/2)^2-0.030414451*(('(1) Setup'!F7+'(1) Setup'!F9)/2)+6.043540689))/10000),""))) -> 0 | E29: =IF('(1) Setup'!$B$14>0,(IF('(2) NE and SID Lysine'!E10='(1) Setup'!$B$9,(IF(E8=3,((E26*2.2046*(-0.000000153*(('(1) Setup'!G7+'(1) Setup'!G9)/2)^3+0.000104928*(('(1) Setup'!G7+'(1) Setup'!G9)/2)^2-0.030414451*(('(1) Setup'!G7+'(1) Setup'!G9)/2)+6.043540689))/10000),""))+0.25,(IF(E8=3,((E26*2.2046*(-0.000000153*(('(1) Setup'!G7+'(1) Setup'!G9)/2)^3+0.000104928*(('(1) Setup'!G7+'(1) Setup'!G9)/2)^2-0.030414451*(('(1) Setup'!G7+'(1) Setup'!G9)/2)+6.043540689))/10000),"")))),(IF(E8=3,((E26*2.2046*(-0.000000153*(('(1) Setup'!G7+'(1) Setup'!G9)/2)^3+0.000104928*(('(1) Setup'!G7+'(1) Setup'!G9)/2)^2-0.030414451*(('(1) Setup'!G7+'(1) Setup'!G9)/2)+6.043540689))/10000),""))) -> 0 | F29: =IF('(1) Setup'!$B$14>0,(IF('(2) NE and SID Lysine'!F10='(1) Setup'!$B$9,(IF(F8=4,((F26*2.2046*(-0.000000153*(('(1) Setup'!H7+'(1) Setup'!H9)/2)^3+0.000104928*(('(1) Setup'!H7+'(1) Setup'!H9)/2)^2-0.030414451*(('(1) Setup'!H7+'(1) Setup'!H9)/2)+6.043540689))/10000),""))+0.25,(IF(F8=4,((F26*2.2046*(-0.000000153*(('(1) Setup'!H7+'(1) Setup'!H9)/2)^3+0.000104928*(('(1) Setup'!H7+'(1) Setup'!H9)/2)^2-0.030414451*(('(1) Setup'!H7+'(1) Setup'!H9)/2)+6.043540689))/10000),"")))),(IF(F8=4,((F26*2.2046*(-0.000000153*(('(1) Setup'!H7+'(1) Setup'!H9)/2)^3+0.000104928*(('(1) Setup'!H7+'(1) Setup'!H9)/2)^2-0.030414451*(('(1) Setup'!H7+'(1) Setup'!H9)/2)+6.043540689))/10000),""))) -> 0 | G29: =IF('(1) Setup'!$B$14>0,(IF('(2) NE and SID Lysine'!G10='(1) Setup'!$B$9,(IF(G8=5,((G26*2.2046*(-0.000000153*(('(1) Setup'!I7+'(1) Setup'!I9)/2)^3+0.000104928*(('(1) Setup'!I7+'(1) Setup'!I9)/2)^2-0.030414451*(('(1) Setup'!I7+'(1) Setup'!I9)/2)+6.043540689))/10000),""))+0.25,(IF(G8=5,((G26*2.2046*(-0.000000153*(('(1) Setup'!I7+'(1) Setup'!I9)/2)^3+0.000104928*(('(1) Setup'!I7+'(1) Setup'!I9)/2)^2-0.030414451*(('(1) Setup'!I7+'(1) Setup'!I9)/2)+6.043540689))/10000),"")))),(IF(G8=5,((G26*2.2046*(-0.000000153*(('(1) Setup'!I7+'(1) Setup'!I9)/2)^3+0.000104928*(('(1) Setup'!I7+'(1) Setup'!I9)/2)^2-0.030414451*(('(1) Setup'!I7+'(1) Setup'!I9)/2)+6.043540689))/10000),""))) -> 0 | H29: =IF('(1) Setup'!$B$14>0,(IF('(2) NE and SID Lysine'!H10='(1) Setup'!$B$9,(IF(H8=6,((H26*2.2046*(-0.000000153*(('(1) Setup'!J7+'(1) Setup'!J9)/2)^3+0.000104928*(('(1) Setup'!J7+'(1) Setup'!J9)/2)^2-0.030414451*(('(1) Setup'!J7+'(1) Setup'!J9)/2)+6.043540689))/10000),""))+0.25,(IF(H8=6,((H26*2.2046*(-0.000000153*(('(1) Setup'!J7+'(1) Setup'!J9)/2)^3+0.000104928*(('(1) Setup'!J7+'(1) Setup'!J9)/2)^2-0.030414451*(('(1) Setup'!J7+'(1) Setup'!J9)/2)+6.043540689))/10000),"")))),(IF(H8=6,((H26*2.2046*(-0.000000153*(('(1) Setup'!J7+'(1) Setup'!J9)/2)^3+0.000104928*(('(1) Setup'!J7+'(1) Setup'!J9)/2)^2-0.030414451*(('(1) Setup'!J7+'(1) Setup'!J9)/2)+6.043540689))/10000),""))) -> 0 | I29: =IF('(1) Setup'!$B$14>0,(IF('(2) NE and SID Lysine'!I10='(1) Setup'!$B$9,(IF(I8=7,((I26*2.2046*(-0.000000153*(('(1) Setup'!K7+'(1) Setup'!K9)/2)^3+0.000104928*(('(1) Setup'!K7+'(1) Setup'!K9)/2)^2-0.030414451*(('(1) Setup'!K7+'(1) Setup'!K9)/2)+6.043540689))/10000),""))+0.25,(IF(I8=7,((I26*2.2046*(-0.000000153*(('(1) Setup'!K7+'(1) Setup'!K9)/2)^3+0.000104928*(('(1) Setup'!K7+'(1) Setup'!K9)/2)^2-0.030414451*(('(1) Setup'!K7+'(1) Setup'!K9)/2)+6.043540689))/10000),"")))),(IF(I8=7,((I26*2.2046*(-0.000000153*(('(1) Setup'!K7+'(1) Setup'!K9)/2)^3+0.000104928*(('(1) Setup'!K7+'(1) Setup'!K9)/2)^2-0.030414451*(('(1) Setup'!K7+'(1) Setup'!K9)/2)+6.043540689))/10000),""))) -> 0 | J29: =IF('(1) Setup'!$B$14>0,(IF('(2) NE and SID Lysine'!J10='(1) Setup'!$B$9,(IF(J8=8,((J26*2.2046*(-0.000000153*(('(1) Setup'!L7+'(1) Setup'!L9)/2)^3+0.000104928*(('(1) Setup'!L7+'(1) Setup'!L9)/2)^2-0.030414451*(('(1) Setup'!L7+'(1) Setup'!L9)/2)+6.043540689))/10000),""))+0.25,(IF(J8=8,((J26*2.2046*(-0.000000153*(('(1) Setup'!L7+'(1) Setup'!L9)/2)^3+0.000104928*(('(1) Setup'!L7+'(1) Setup'!L9)/2)^2-0.030414451*(('(1) Setup'!L7+'(1) Setup'!L9)/2)+6.043540689))/10000),"")))),(IF(J8=8,((J26*2.2046*(-0.000000153*(('(1) Setup'!L7+'(1) Setup'!L9)/2)^3+0.000104928*(('(1) Setup'!L7+'(1) Setup'!L9)/2)^2-0.030414451*(('(1) Setup'!L7+'(1) Setup'!L9)/2)+6.043540689))/10000),""))) -> 0 | K29: =IF('(1) Setup'!$B$14>0,(IF('(2) NE and SID Lysine'!K10='(1) Setup'!$B$9,(IF(K8=9,((K26*2.2046*(-0.000000153*(('(1) Setup'!M7+'(1) Setup'!M9)/2)^3+0.000104928*(('(1) Setup'!M7+'(1) Setup'!M9)/2)^2-0.030414451*(('(1) Setup'!M7+'(1) Setup'!M9)/2)+6.043540689))/10000),""))+0.25,(IF(K8=9,((K26*2.2046*(-0.000000153*(('(1) Setup'!M7+'(1) Setup'!M9)/2)^3+0.000104928*(('(1) Setup'!M7+'(1) Setup'!M9)/2)^2-0.030414451*(('(1) Setup'!M7+'(1) Setup'!M9)/2)+6.043540689))/10000),"")))),(IF(K8=9,((K26*2.2046*(-0.000000153*(('(1) Setup'!M7+'(1) Setup'!M9)/2)^3+0.000104928*(('(1) Setup'!M7+'(1) Setup'!M9)/2)^2-0.030414451*(('(1) Setup'!M7+'(1) Setup'!M9)/2)+6.043540689))/10000),""))) -> 0 | L29: =IF('(1) Setup'!$B$14>0,(IF('(2) NE and SID Lysine'!L10='(1) Setup'!$B$9,(IF(L8=10,((L26*2.2046*(-0.000000153*(('(1) Setup'!N7+'(1) Setup'!N9)/2)^3+0.000104928*(('(1) Setup'!N7+'(1) Setup'!N9)/2)^2-0.030414451*(('(1) Setup'!N7+'(1) Setup'!N9)/2)+6.043540689))/10000),""))+0.25,(IF(L8=10,((L26*2.2046*(-0.000000153*(('(1) Setup'!N7+'(1) Setup'!N9)/2)^3+0.000104928*(('(1) Setup'!N7+'(1) Setup'!N9)/2)^2-0.030414451*(('(1) Setup'!N7+'(1) Setup'!N9)/2)+6.043540689))/10000),"")))),(IF(L8=10,((L26*2.2046*(-0.000000153*(('(1) Setup'!N7+'(1) Setup'!N9)/2)^3+0.000104928*(('(1) Setup'!N7+'(1) Setup'!N9)/2)^2-0.030414451*(('(1) Setup'!N7+'(1) Setup'!N9)/2)+6.043540689))/10000),""))) -> 0.25
A30: Barrow lysine, not rounded | C30: =IF('(1) Setup'!$B$14>0,(IF(C10='(1) Setup'!$B$9,(((C26*2.2046)*(0.0000454*((C9+C10)/2)^2-0.0249885*((C9+C10)/2)+5.8980083))/10000)+0.25,(((C26*2.2046)*(0.0000454*((C9+C10)/2)^2-0.0249885*((C9+C10)/2)+5.8980083))/10000))),(((C26*2.2046)*(0.0000454*((C9+C10)/2)^2-0.0249885*((C9+C10)/2)+5.8980083))/10000)) -> 0 | D30: =IF('(1) Setup'!$B$14>0,(IF(D10='(1) Setup'!$B$9,(((D26*2.2046)*(0.0000454*((D9+D10)/2)^2-0.0249885*((D9+D10)/2)+5.8980083))/10000)+0.25,(((D26*2.2046)*(0.0000454*((D9+D10)/2)^2-0.0249885*((D9+D10)/2)+5.8980083))/10000))),(((D26*2.2046)*(0.0000454*((D9+D10)/2)^2-0.0249885*((D9+D10)/2)+5.8980083))/10000)) -> 0 | E30: =IF('(1) Setup'!$B$14>0,(IF(E10='(1) Setup'!$B$9,(((E26*2.2046)*(0.0000454*((E9+E10)/2)^2-0.0249885*((E9+E10)/2)+5.8980083))/10000)+0.25,(((E26*2.2046)*(0.0000454*((E9+E10)/2)^2-0.0249885*((E9+E10)/2)+5.8980083))/10000))),(((E26*2.2046)*(0.0000454*((E9+E10)/2)^2-0.0249885*((E9+E10)/2)+5.8980083))/10000)) -> 0 | F30: =IF('(1) Setup'!$B$14>0,(IF(F10='(1) Setup'!$B$9,(((F26*2.2046)*(0.0000454*((F9+F10)/2)^2-0.0249885*((F9+F10)/2)+5.8980083))/10000)+0.25,(((F26*2.2046)*(0.0000454*((F9+F10)/2)^2-0.0249885*((F9+F10)/2)+5.8980083))/10000))),(((F26*2.2046)*(0.0000454*((F9+F10)/2)^2-0.0249885*((F9+F10)/2)+5.8980083))/10000)) -> 0 | G30: =IF('(1) Setup'!$B$14>0,(IF(G10='(1) Setup'!$B$9,(((G26*2.2046)*(0.0000454*((G9+G10)/2)^2-0.0249885*((G9+G10)/2)+5.8980083))/10000)+0.25,(((G26*2.2046)*(0.0000454*((G9+G10)/2)^2-0.0249885*((G9+G10)/2)+5.8980083))/10000))),(((G26*2.2046)*(0.0000454*((G9+G10)/2)^2-0.0249885*((G9+G10)/2)+5.8980083))/10000)) -> 0 | H30: =IF('(1) Setup'!$B$14>0,(IF(H10='(1) Setup'!$B$9,(((H26*2.2046)*(0.0000454*((H9+H10)/2)^2-0.0249885*((H9+H10)/2)+5.8980083))/10000)+0.25,(((H26*2.2046)*(0.0000454*((H9+H10)/2)^2-0.0249885*((H9+H10)/2)+5.8980083))/10000))),(((H26*2.2046)*(0.0000454*((H9+H10)/2)^2-0.0249885*((H9+H10)/2)+5.8980083))/10000)) -> 0 | I30: =IF('(1) Setup'!$B$14>0,(IF(I10='(1) Setup'!$B$9,(((I26*2.2046)*(0.0000454*((I9+I10)/2)^2-0.0249885*((I9+I10)/2)+5.8980083))/10000)+0.25,(((I26*2.2046)*(0.0000454*((I9+I10)/2)^2-0.0249885*((I9+I10)/2)+5.8980083))/10000))),(((I26*2.2046)*(0.0000454*((I9+I10)/2)^2-0.0249885*((I9+I10)/2)+5.8980083))/10000)) -> 0 | J30: =IF('(1) Setup'!$B$14>0,(IF(J10='(1) Setup'!$B$9,(((J26*2.2046)*(0.0000454*((J9+J10)/2)^2-0.0249885*((J9+J10)/2)+5.8980083))/10000)+0.25,(((J26*2.2046)*(0.0000454*((J9+J10)/2)^2-0.0249885*((J9+J10)/2)+5.8980083))/10000))),(((J26*2.2046)*(0.0000454*((J9+J10)/2)^2-0.0249885*((J9+J10)/2)+5.8980083))/10000)) -> 0 | K30: =IF('(1) Setup'!$B$14>0,(IF(K10='(1) Setup'!$B$9,(((K26*2.2046)*(0.0000454*((K9+K10)/2)^2-0.0249885*((K9+K10)/2)+5.8980083))/10000)+0.25,(((K26*2.2046)*(0.0000454*((K9+K10)/2)^2-0.0249885*((K9+K10)/2)+5.8980083))/10000))),(((K26*2.2046)*(0.0000454*((K9+K10)/2)^2-0.0249885*((K9+K10)/2)+5.8980083))/10000)) -> 0 | L30: =IF('(1) Setup'!$B$14>0,(IF(L10='(1) Setup'!$B$9,(((L26*2.2046)*(0.0000454*((L9+L10)/2)^2-0.0249885*((L9+L10)/2)+5.8980083))/10000)+0.25,(((L26*2.2046)*(0.0000454*((L9+L10)/2)^2-0.0249885*((L9+L10)/2)+5.8980083))/10000))),(((L26*2.2046)*(0.0000454*((L9+L10)/2)^2-0.0249885*((L9+L10)/2)+5.8980083))/10000)) -> 0.25
A31: Lysine Requirement for Barrows (Nitikanchana et al. 2015) | C31: =IF(C30>C29,C28,(ROUND(C30,2))) -> 0 | D31: =IF(D30>D29,D28,(ROUND(D30,2))) -> 0 | E31: 0 | F31: 0 | G31: 0 | H31: 0 | I31: 0 | J31: 0 | K31: 0 | L31: 0.25
A32: Lysine Requirement for Mixed Sex , not rounded | C32: =AVERAGE(C31,C28) -> 0 | D32: =AVERAGE(D31,D28) -> 0 | E32: 0 | F32: 0 | G32: 0 | H32: 0 | I32: 0 | J32: 0 | K32: 0 | L32: 0.25
A33: Lysine Requirement for Mixed Sex adapted from: Nitikanchana et al. 2015 | C33: =ROUND(C32,2) -> 0 | D33: =ROUND(D32,2) -> 0 | E33: 0 | F33: 0 | G33: 0 | H33: 0 | I33: 0 | J33: 0 | K33: 0 | L33: 0.25 | M33: Scenario 1 Overall F/G
A34: New F/G | C34: =IF(C26="",0,((IF(C8=1,(1/((0.000004365*(C26*2.204))-(0.00162*(C11/2.204))-(0.08023*(IF(C27>C28,C28,C27)))+((0.000094*(C26*2.204)*(IF(C27>C28,C28,C27)))+0.3496))),0)-C62-C67-C65))) -> 0 | D34: =IF(D26="",0,((IF(D8=2,(1/((0.000004365*(D26*2.204))-(0.00162*(D11/2.204))-(0.08023*(IF(D27>D28,D28,D27)))+((0.000094*(D26*2.204)*(IF(D27>D28,D28,D27)))+0.3496))),0)-D62-D67-D65))) -> 0 | E34: =IF(E26="",0,((IF(E8=3,(1/((0.000004365*(E26*2.204))-(0.00162*(E11/2.204))-(0.08023*(IF(E27>E28,E28,E27)))+((0.000094*(E26*2.204)*(IF(E27>E28,E28,E27)))+0.3496))),0)-E62-E67-E65))) -> 0 | F34: =IF(F26="",0,((IF(F8=4,(1/((0.000004365*(F26*2.204))-(0.00162*(F11/2.204))-(0.08023*(IF(F27>F28,F28,F27)))+((0.000094*(F26*2.204)*(IF(F27>F28,F28,F27)))+0.3496))),0)-F62-F67-F65))) -> 0 | G34: =IF(G26="",0,((IF(G8=5,(1/((0.000004365*(G26*2.204))-(0.00162*(G11/2.204))-(0.08023*(IF(G27>G28,G28,G27)))+((0.000094*(G26*2.204)*(IF(G27>G28,G28,G27)))+0.3496))),0)-G62-G67-G65))) -> 0 | H34: =IF(H26="",0,((IF(H8=6,(1/((0.000004365*(H26*2.204))-(0.00162*(H11/2.204))-(0.08023*(IF(H27>H28,H28,H27)))+((0.000094*(H26*2.204)*(IF(H27>H28,H28,H27)))+0.3496))),0)-H62-H67-H65))) -> 0 | I34: =IF(I26="",0,((IF(I8=7,(1/((0.000004365*(I26*2.204))-(0.00162*(I11/2.204))-(0.08023*(IF(I27>I28,I28,I27)))+((0.000094*(I26*2.204)*(IF(I27>I28,I28,I27)))+0.3496))),0)-I62-I67-I65))) -> 0 | J34: =IF(J26="",0,((IF(J8=8,(1/((0.000004365*(J26*2.204))-(0.00162*(J11/2.204))-(0.08023*(IF(J27>J28,J28,J27)))+((0.000094*(J26*2.204)*(IF(J27>J28,J28,J27)))+0.3496))),0)-J62-J67-J65))) -> 0 | K34: =IF(K26="",0,((IF(K8=9,(1/((0.000004365*(K26*2.204))-(0.00162*(K11/2.204))-(0.08023*(IF(K27>K28,K28,K27)))+((0.000094*(K26*2.204)*(IF(K27>K28,K28,K27)))+0.3496))),0)-K62-K67-K65))) -> 0 | L34: =IF(L26="",0,((IF(L8=10,(1/((0.000004365*(L26*2.204))-(0.00162*(L11/2.204))-(0.08023*(IF(L27>L28,L28,L27)))+((0.000094*(L26*2.204)*(IF(L27>L28,L28,L27)))+0.3496))),0)-L62-L67-L65))) -> 0 | M34: =SUM(C58:L58)/SUM(C48:L48) -> 0
A35: % Change | C35: =IF(C26="",0,ABS((C23-C34)/C23)) -> 0 | D35: =IF(D26="",0,ABS((D23-D34)/D23)) -> 0 | E35: =IF(D26="",0,ABS((E23-E34)/E23)) -> 0 | F35: =IF(F26="",0,ABS((F23-F34)/F23)) -> 0 | G35: 0 | H35: 0 | I35: 0 | J35: 0 | K35: 0 | L35: 0 | M35: =IF(C26="",0,ABS((M23-M34)/M23)) -> 0
A39: Calculations to get Initial F/G
A40: Nitikanchana not adjusted from producer | C40: =(IF(C8=1,(IF(D8="",(1/((0.000004365*(C13*2.204))-(0.00162*(C11/2.204))-(0.08023*(IF(C14>C16,C16,C14)))+((0.000094*(C13*2.204)*(IF(C14>C16,C16,C14)))+0.3496)))-($O$4*(1/((0.000004365*(C13*2.204))-(0.00162*(C11/2.204))-(0.08023*(IF(C14>C16,C16,C14)))+((0.000094*(C13*2.204)*(IF(C14>C16,C16,C14)))+0.3496)))),(1/((0.000004365*(C13*2.204))-(0.00162*(C11/2.204))-(0.08023*(IF(C14>C16,C16,C14)))+((0.000094*(C13*2.204)*(IF(C14>C16,C16,C14)))+0.3496))))),"")) -> 3.333492647 | D40: =(IF(D8=2,(IF(E8="",(1/((0.000004365*(D13*2.204))-(0.00162*(D11/2.204))-(0.08023*(IF(D14>D16,D16,D14)))+((0.000094*(D13*2.204)*(IF(D14>D16,D16,D14)))+0.3496)))-($O$4*(1/((0.000004365*(D13*2.204))-(0.00162*(D11/2.204))-(0.08023*(IF(D14>D16,D16,D14)))+((0.000094*(D13*2.204)*(IF(D14>D16,D16,D14)))+0.3496)))),(1/((0.000004365*(D13*2.204))-(0.00162*(D11/2.204))-(0.08023*(IF(D14>D16,D16,D14)))+((0.000094*(D13*2.204)*(IF(D14>D16,D16,D14)))+0.3496))))),"")) -> 3.621911844 | E40: =(IF(E8=3,(IF(F8="",(1/((0.000004365*(E13*2.204))-(0.00162*(E11/2.204))-(0.08023*(IF(E14>E16,E16,E14)))+((0.000094*(E13*2.204)*(IF(E14>E16,E16,E14)))+0.3496)))-($O$4*(1/((0.000004365*(E13*2.204))-(0.00162*(E11/2.204))-(0.08023*(IF(E14>E16,E16,E14)))+((0.000094*(E13*2.204)*(IF(E14>E16,E16,E14)))+0.3496)))),(1/((0.000004365*(E13*2.204))-(0.00162*(E11/2.204))-(0.08023*(IF(E14>E16,E16,E14)))+((0.000094*(E13*2.204)*(IF(E14>E16,E16,E14)))+0.3496))))),"")) -> 3.825602515 | F40: =(IF(F8=4,(IF(G8="",(1/((0.000004365*(F13*2.204))-(0.00162*(F11/2.204))-(0.08023*(IF(F14>F16,F16,F14)))+((0.000094*(F13*2.204)*(IF(F14>F16,F16,F14)))+0.3496)))-($O$4*(1/((0.000004365*(F13*2.204))-(0.00162*(F11/2.204))-(0.08023*(IF(F14>F16,F16,F14)))+((0.000094*(F13*2.204)*(IF(F14>F16,F16,F14)))+0.3496)))),(1/((0.000004365*(F13*2.204))-(0.00162*(F11/2.204))-(0.08023*(IF(F14>F16,F16,F14)))+((0.000094*(F13*2.204)*(IF(F14>F16,F16,F14)))+0.3496))))),"")) -> 4.083989353 | G40: =(IF(G8=5,(IF(H8="",(1/((0.000004365*(G13*2.204))-(0.00162*(G11/2.204))-(0.08023*(IF(G14>G16,G16,G14)))+((0.000094*(G13*2.204)*(IF(G14>G16,G16,G14)))+0.3496)))-($O$4*(1/((0.000004365*(G13*2.204))-(0.00162*(G11/2.204))-(0.08023*(IF(G14>G16,G16,G14)))+((0.000094*(G13*2.204)*(IF(G14>G16,G16,G14)))+0.3496)))),(1/((0.000004365*(G13*2.204))-(0.00162*(G11/2.204))-(0.08023*(IF(G14>G16,G16,G14)))+((0.000094*(G13*2.204)*(IF(G14>G16,G16,G14)))+0.3496))))),"")) -> 4.451460499 | H40: =(IF(H8=6,(IF(I8="",(1/((0.000004365*(H13*2.204))-(0.00162*(H11/2.204))-(0.08023*(IF(H14>H16,H16,H14)))+((0.000094*(H13*2.204)*(IF(H14>H16,H16,H14)))+0.3496)))-($O$4*(1/((0.000004365*(H13*2.204))-(0.00162*(H11/2.204))-(0.08023*(IF(H14>H16,H16,H14)))+((0.000094*(H13*2.204)*(IF(H14>H16,H16,H14)))+0.3496)))),(1/((0.000004365*(H13*2.204))-(0.00162*(H11/2.204))-(0.08023*(IF(H14>H16,H16,H14)))+((0.000094*(H13*2.204)*(IF(H14>H16,H16,H14)))+0.3496))))),"")) -> 4.805214399 | I40: =(IF(I8=7,(IF(J8="",(1/((0.000004365*(I13*2.204))-(0.00162*(I11/2.204))-(0.08023*(IF(I14>I16,I16,I14)))+((0.000094*(I13*2.204)*(IF(I14>I16,I16,I14)))+0.3496)))-($O$4*(1/((0.000004365*(I13*2.204))-(0.00162*(I11/2.204))-(0.08023*(IF(I14>I16,I16,I14)))+((0.000094*(I13*2.204)*(IF(I14>I16,I16,I14)))+0.3496)))),(1/((0.000004365*(I13*2.204))-(0.00162*(I11/2.204))-(0.08023*(IF(I14>I16,I16,I14)))+((0.000094*(I13*2.204)*(IF(I14>I16,I16,I14)))+0.3496))))),"")) -> 5.170451293 | J40: =(IF(J8=8,(IF(K8="",(1/((0.000004365*(J13*2.204))-(0.00162*(J11/2.204))-(0.08023*(IF(J14>J16,J16,J14)))+((0.000094*(J13*2.204)*(IF(J14>J16,J16,J14)))+0.3496)))-($O$4*(1/((0.000004365*(J13*2.204))-(0.00162*(J11/2.204))-(0.08023*(IF(J14>J16,J16,J14)))+((0.000094*(J13*2.204)*(IF(J14>J16,J16,J14)))+0.3496)))),(1/((0.000004365*(J13*2.204))-(0.00162*(J11/2.204))-(0.08023*(IF(J14>J16,J16,J14)))+((0.000094*(J13*2.204)*(IF(J14>J16,J16,J14)))+0.3496))))),"")) -> 5.653914746 | K40: =(IF(K8=9,(IF(L8="",(1/((0.000004365*(K13*2.204))-(0.00162*(K11/2.204))-(0.08023*(IF(K14>K16,K16,K14)))+((0.000094*(K13*2.204)*(IF(K14>K16,K16,K14)))+0.3496)))-($O$4*(1/((0.000004365*(K13*2.204))-(0.00162*(K11/2.204))-(0.08023*(IF(K14>K16,K16,K14)))+((0.000094*(K13*2.204)*(IF(K14>K16,K16,K14)))+0.3496)))),(1/((0.000004365*(K13*2.204))-(0.00162*(K11/2.204))-(0.08023*(IF(K14>K16,K16,K14)))+((0.000094*(K13*2.204)*(IF(K14>K16,K16,K14)))+0.3496))))),"")) -> 6.166442466 | L40: =(IF(L8=10,(IF(M8="",(1/((0.000004365*(L13*2.204))-(0.00162*(L11/2.204))-(0.08023*(IF(L14>L16,L16,L14)))+((0.000094*(L13*2.204)*(IF(L14>L16,L16,L14)))+0.3496)))-($O$4*(1/((0.000004365*(L13*2.204))-(0.00162*(L11/2.204))-(0.08023*(IF(L14>L16,L16,L14)))+((0.000094*(L13*2.204)*(IF(L14>L16,L16,L14)))+0.3496)))),(1/((0.000004365*(L13*2.204))-(0.00162*(L11/2.204))-(0.08023*(IF(L14>L16,L16,L14)))+((0.000094*(L13*2.204)*(IF(L14>L16,L16,L14)))+0.3496))))),"")) -> 7.044495385
A41: NItikanchana Initial Gain not adj. | C41: =IF(C8=1,C10-C9,0) -> 45 | D41: =IF(D8=2,D10-D9,0) -> 20 | E41: =IF(E8=3,E10-E9,0) -> 20 | F41: =IF(F8=4,F10-F9,0) -> 25 | G41: =IF(G8=5,G10-G9,0) -> 30 | H41: =IF(H8=6,H10-H9,0) -> 15 | I41: =IF(I8=7,I10-I9,0) -> 25 | J41: =IF(J8=8,J10-J9,0) -> 20 | K41: =IF(K8=9,K10-K9,0) -> 20 | L41: =IF(L8=10,L10-L9,0) -> 35
A42: Nitikanchana initial Feed intake not adj. | C42: =IF(C8=1,C40*C41,0) -> 150.0071691 | D42: =IF(D8=2,D40*D41,0) -> 72.43823687 | E42: =IF(E8=3,E40*E41,0) -> 76.5120503 | F42: =IF(F8=4,F40*F41,0) -> 102.0997338 | G42: =IF(G8=5,G40*G41,0) -> 133.543815 | H42: =IF(H8=6,H40*H41,0) -> 72.07821598 | I42: =IF(I8=7,I40*I41,0) -> 129.2612823 | J42: =IF(J8=8,J40*J41,0) -> 113.0782949 | K42: =IF(K8=9,K40*K41,0) -> 123.3288493 | L42: =IF(L8=10,L40*L41,0) -> 246.5573385
A43: Nitikanchana initial overall F/G not adj. | C43: =(SUM(C42:L42))/(SUM(C41:L41)) -> 4.780019554
A44: Producer F/G | C44: ='(1) Setup'!B21 -> 2.75
A45: % diff between Predicted and producer | C45: =1-(C44/C43) -> 0.4246885459
A46: change for each phase to adj. Nitikanchana | C46: =IF(C8=1,C40*$C$45,0) -> 1.415696145 | D46: =IF(D8=2,D40*$C$45,0) -> 1.538184474 | E46: =IF(E8=3,E40*$C$45,0) -> 1.624689569 | F46: =IF(F8=4,F40*$C$45,0) -> 1.7344235 | G46: =IF(G8=5,G40*$C$45,0) -> 1.890484286 | H46: =IF(H8=6,H40*$C$45,0) -> 2.040719516 | I46: =IF(I8=7,I40*$C$45,0) -> 2.195831441 | J46: =IF(J8=8,J40*$C$45,0) -> 2.401152832 | K46: =IF(K8=9,K40*$C$45,0) -> 2.618817484 | L46: =IF(L8=10,L40*$C$45,0) -> 2.991716502
A47: Initial Adj. F/G | C47: =IF(C8=1,C40-C46,0) -> 1.917796502 | D47: =IF(D8=2,D40-D46,0) -> 2.083727369 | E47: =IF(E8=3,E40-E46,0) -> 2.200912946 | F47: =IF(F8=4,F40-F46,0) -> 2.349565853 | G47: =IF(G8=5,G40-G46,0) -> 2.560976213 | H47: =IF(H8=6,H40-H46,0) -> 2.764494883 | I47: =IF(I8=7,I40-I46,0) -> 2.974619852 | J47: =IF(J8=8,J40-J46,0) -> 3.252761914 | K47: =IF(K8=9,K40-K46,0) -> 3.547624982 | L47: =IF(L8=10,L40-L46,0) -> 4.052778884
A48: Initial Gain | C48: =C41 -> 45 | D48: =D41 -> 20 | E48: 20 | F48: 25 | G48: 30 | H48: 15 | I48: 25 | J48: 20 | K48: 20 | L48: 35
A49: Initial adj. Feed Intake | C49: =IF(C8=1,C15*C48,0) -> 86.3008426 | D49: =IF(D8=2,D15*D48,0) -> 41.67454739 | E49: =IF(E8=3,E15*E48,0) -> 44.01825892 | F49: =IF(F8=4,F15*F48,0) -> 58.73914634 | G49: =IF(G8=5,G15*G48,0) -> 76.82928638 | H49: =IF(H8=6,H15*H48,0) -> 41.46742325 | I49: =IF(I8=7,I15*I48,0) -> 74.3654963 | J49: =IF(J8=8,J15*J48,0) -> 65.05523828 | K49: =IF(K8=9,K15*K48,0) -> 70.95249964 | L49: =IF(L8=10,L15*L48,0) -> 121.0412204
A51: Adj. Overall F/G | C51: =SUM(C49:L49)/SUM(C48:L48) -> 2.668407684
A52: % Diff Between Paylean adj. and Producer | C52: =1-(C44/C51) -> -0.03057715523
A53: Change for each phase to adj. from paylean | C53: =C47*$C$52 -> -0.05864076134 | D53: -0.06371445523 | E53: -0.06729765679 | F53: -0.07184303982 | G53: -0.07830736719 | H53: -0.08453038917 | I53: -0.09095541296 | J53: -0.09946020596 | K53: -0.1084762798 | L53: -0.123922449
A54: Paylean Adj. F/G | C54: =C15-C53 -> 1.976437263 | D54: 2.147441825 | E54: 2.268210603 | F54: 2.421408893 | G54: 2.63928358 | H54: 2.849025272 | I54: 3.065575265 | J54: 3.35222212 | K54: 3.656101262 | L54: 3.582243031
A55: Gain | C55: =C48 -> 45 | D55: =D48 -> 20 | E55: 20 | F55: 25 | G55: 30 | H55: 15 | I55: 25 | J55: 20 | K55: 20 | L55: 35
A56: Intake | C56: =C54*C55 -> 88.93967686 | D56: =D54*D55 -> 42.94883649 | E56: 45.36421205 | F56: 60.53522233 | G56: 79.1785074 | H56: 42.73537908 | I56: 76.63938162 | J56: 67.0444424 | K56: 73.12202523 | L56: 125.3785061
A57: New Overall F/G Adj. for paylean/producer | C57: =SUM(C56:L56)/SUM(C55:L55) -> 2.752494861
A58: New Overall Feed Intake | C58: =IF(C8=1,C48*C34,0) -> 0 | D58: =IF(D8=2,D48*D34,0) -> 0 | E58: =IF(E8=3,E48*E34,0) -> 0 | F58: =IF(F8=4,F48*F34,0) -> 0 | G58: =IF(G8=5,G48*G34,0) -> 0 | H58: =IF(H8=6,H48*H34,0) -> 0 | I58: =IF(I8=7,I48*I34,0) -> 0 | J58: =IF(J8=8,J48*J34,0) -> 0 | K58: =IF(K8=9,K48*K34,0) -> 0 | L58: =IF(L8=10,L48*L34,0) -> 0
A59: Based off new scenario of NE and SID L. and Paylean
A61: Sues predicted for scenario 2 | C61: =(1/((0.000004365*(C26*2.204))-(0.00162*(C11/2.204))-(0.08023*(IF(C27>C28,C28,C27)))+((0.000094*(C26*2.204)*(IF(C27>C28,C28,C27)))+0.3496))) -> 3.333492647 | D61: 3.621911844 | E61: 3.825602515 | F61: 4.083989353 | G61: 4.451460499 | H61: 4.805214399 | I61: 5.170451293 | J61: 5.653914746 | K61: 6.166442466 | L61: 7.044495385
A62: Sues adjustment for scenario 2 | C62: =C61*$C$45 -> 1.415696145 | D62: 1.538184474 | E62: 1.624689569 | F62: 1.7344235 | G62: 1.890484286 | H62: 2.040719516 | I62: 2.195831441 | J62: 2.401152832 | K62: 2.618817484 | L62: 2.991716502
A63: Adjusted for Sues Scenario 2 | C63: =C61-C62 -> 1.917796502 | D63: =D61-D62 -> 2.083727369 | E63: 2.200912946 | F63: 2.349565853 | G63: 2.560976213 | H63: 2.764494883 | I63: 2.974619852 | J63: 3.252761914 | K63: 3.547624982 | L63: 4.052778884
A64: Paylean Adjustment | C64: ='(3) Ractopamine'!B73 -> 0 | D64: ='(3) Ractopamine'!C73 -> 0 | E64: ='(3) Ractopamine'!D73 -> 0 | F64: ='(3) Ractopamine'!E73 -> 0 | G64: ='(3) Ractopamine'!F73 -> 0 | H64: ='(3) Ractopamine'!G73 -> 0 | I64: ='(3) Ractopamine'!H73 -> 0 | J64: ='(3) Ractopamine'!I73 -> 0 | K64: ='(3) Ractopamine'!J73 -> 0 | L64: ='(3) Ractopamine'!K73 -> 0.1466791846
A65: Adjustment for paylean | C65: =C63*C64 -> 0 | D65: =D63*D64 -> 0 | E65: 0 | F65: 0 | G65: 0 | H65: 0 | I65: 0 | J65: 0 | K65: 0 | L65: 0.5944583021
A66: Adjusted for Sue and paylean | C66: =C63-C65 -> 1.917796502 | D66: =D63-D65 -> 2.083727369 | E66: 2.200912946 | F66: 2.349565853 | G66: 2.560976213 | H66: 2.764494883 | I66: =I63-I65 -> 2.974619852 | J66: =J63-J65 -> 3.252761914 | K66: =K63-K65 -> 3.547624982 | L66: =L63-L65 -> 3.458320581
A67: Adjustment for producers initial input again | C67: =C63*$C$52 -> -0.05864076134 | D67: -0.06371445523 | E67: -0.06729765679 | F67: -0.07184303982 | G67: -0.07830736719 | H67: -0.08453038917 | I67: -0.09095541296 | J67: -0.09946020596 | K67: -0.1084762798 | L67: -0.123922449
A68: Scenario 2 F/G | C68: =C66-C67 -> 1.976437263 | D68: =D66-D67 -> 2.147441825 | E68: 2.268210603 | F68: 2.421408893 | G68: 2.63928358 | H68: 2.849025272 | I68: 3.065575265 | J68: 3.35222212 | K68: 3.656101262 | L68: 3.582243031

Sheet (3) Ractopamine
M1: Step 3: Ractopamine Inclusion and Feeding Duration
B8: ='(1) Setup'!E5 -> 1 | C8: ='(1) Setup'!F5 -> 2 | D8: ='(1) Setup'!G5 -> 3 | E8: ='(1) Setup'!H5 -> 4 | F8: ='(1) Setup'!I5 -> 5 | G8: ='(1) Setup'!J5 -> 6 | H8: ='(1) Setup'!K5 -> 7 | I8: ='(1) Setup'!L5 -> 8 | J8: ='(1) Setup'!M5 -> 9 | K8: ='(1) Setup'!N5 -> 10 | N8: Current Scenario | O8: Scenario 1 | P8: Scenario 2
B9: =IF(B8=1,'(1) Setup'!E7,0) -> 45 | C9: =IF(C8=2,'(1) Setup'!F7,0) -> 90 | D9: =IF(D8=3,'(1) Setup'!G7,0) -> 110 | E9: =IF(E8=4,'(1) Setup'!H7,0) -> 130 | F9: =IF(F8=5,'(1) Setup'!I7,0) -> 155 | G9: =IF(G8=6,'(1) Setup'!J7,0) -> 185 | H9: =IF(H8=7,'(1) Setup'!K7,0) -> 200 | I9: =IF(I8=8,'(1) Setup'!L7,0) -> 225 | J9: =IF(J8=9,'(1) Setup'!M7,0) -> 245 | K9: =IF(K8=10,'(1) Setup'!N7,0) -> 265 | M9: Ractopamine g/ton | N9: ='(1) Setup'!B14 -> 9
B10: =IF(B8=1,'(1) Setup'!E9,0) -> 90 | C10: =IF(C8=2,'(1) Setup'!F9,0) -> 110 | D10: =IF(D8=3,'(1) Setup'!G9,0) -> 130 | E10: =IF(E8=4,'(1) Setup'!H9,0) -> 155 | F10: =IF(F8=5,'(1) Setup'!I9,0) -> 185 | G10: =IF(G8=6,'(1) Setup'!J9,0) -> 200 | H10: =IF(H8=7,'(1) Setup'!K9,0) -> 225 | I10: =IF(I8=8,'(1) Setup'!L9,0) -> 245 | J10: =IF(J8=9,'(1) Setup'!M9,0) -> 265 | K10: =IF(K8=10,'(1) Setup'!N9,0) -> 300 | M10: Duration, d | N10: ='(1) Setup'!E14 -> 17
A11: Initial Overall F/G | B11: ='(2) NE and SID Lysine'!C47 -> 1.917796502 | C11: ='(2) NE and SID Lysine'!D47 -> 2.083727369 | D11: ='(2) NE and SID Lysine'!E47 -> 2.200912946 | E11: ='(2) NE and SID Lysine'!F47 -> 2.349565853 | F11: ='(2) NE and SID Lysine'!G47 -> 2.560976213 | G11: ='(2) NE and SID Lysine'!H47 -> 2.764494883 | H11: ='(2) NE and SID Lysine'!I47 -> 2.974619852 | I11: ='(2) NE and SID Lysine'!J47 -> 3.252761914 | J11: ='(2) NE and SID Lysine'!K47 -> 3.547624982 | K11: ='(2) NE and SID Lysine'!L47 -> 4.052778884 | M11: Overall F/G | N11: =N14+$N$16 -> 2.75 | O11: =IF(O9="",0,O14+$N$16) -> 0 | P11: =IF(P9="",0,P14+$N$16) -> 0 | AB11: Extra Gain | AF11: Feed Intake
A12: Gain | B12: =IF(B8=1,B10-B9,0) -> 45 | C12: =IF(C8=2,C10-C9,0) -> 20 | D12: =IF(D8=3,D10-D9,0) -> 20 | E12: =IF(E8=4,E10-E9,0) -> 25 | F12: =IF(F8=5,F10-F9,0) -> 30 | G12: =IF(G8=6,G10-G9,0) -> 15 | H12: =IF(H8=7,H10-H9,0) -> 25 | I12: =IF(I8=8,I10-I9,0) -> 20 | J12: =IF(J8=9,J10-J9,0) -> 20 | K12: =IF(K8=10,K10-K9,0) -> 35 | M12: % Change | O12: =IF(O9="",0,(ABS((O11-$N$11)/$N$11))) -> 0 | P12: =IF(P9="",0,(ABS((P11-$N$11)/$N$11))) -> 0 | AJ12: Paylean | AK12: Duration
A13: Intake | B13: =IF(B8=1,B12*B11,0) -> 86.3008426 | C13: =IF(C8=2,C12*C11,0) -> 41.67454739 | D13: =IF(D8=3,D12*D11,0) -> 44.01825892 | E13: =IF(E8=4,E12*E11,0) -> 58.73914634 | F13: =IF(F8=5,F12*F11,0) -> 76.82928638 | G13: =IF(G8=6,G12*G11,0) -> 41.46742325 | H13: =IF(H8=7,H12*H11,0) -> 74.3654963 | I13: =IF(I8=8,I12*I11,0) -> 65.05523828 | J13: =IF(J8=9,J12*J11,0) -> 70.95249964 | K13: =IF(K8=10,K12*K11,0) -> 141.8472609 | M13: Producer F/G | N13: =SUM(B13:K13)/SUM(B12:K12) -> 2.75 | O13: =SUM(B13:K13)/SUM(B12:K12) -> 2.75 | P13: =SUM(B13:K13)/SUM(B12:K12) -> 2.75 | AA13: Level | AB13: 4.5 | AC13: 6.75 | AD13: 9 | AE13: Level | AF13: 4.5 | AG13: 6.75 | AH13: 9 | AJ13: 0 | AK13: 0
A14: ADFI | B14: =VLOOKUP(B9,$AB$21:$AC$41,2,TRUE) -> 0 | C14: =VLOOKUP(C9,$AB$21:$AC$41,2,TRUE) -> 3.978581374 | D14: 4.713645755 | E14: 5.072131151 | F14: 5.411666858 | G14: 5.991288607 | H14: 6.210569861 | I14: 6.465090198 | J14: 6.489602481 | K14: 6.327911157 | M14: Paylean F/G | N14: =SUM(B48:K48)/SUM(B51:K51) -> 2.691272047 | O14: =SUM(B49:K49)/SUM(B52:K52) -> 2.75 | P14: =SUM(B50:K50)/SUM(B53:K53) -> 2.75 | AA14: 7 | AB14: 2.9 | AC14: =AD14-((AD14-AB14)/2) -> 3.45 | AD14: 4 | AE14: 7 | AF14: 1.5 | AG14: =AH14-((AH14-AF14)/2) -> 1.75 | AH14: 2 | AJ14: 4.5 | AK14: 7
A15: ADFI | B15: =VLOOKUP(B10,$AB$21:$AC$41,2,TRUE) -> 3.978581374 | C15: =VLOOKUP(C10,$AB$21:$AC$41,2,TRUE) -> 4.713645755 | D15: 5.072131151 | E15: 5.411666858 | F15: 5.991288607 | G15: 6.210569861 | H15: 6.465090198 | I15: 6.489602481 | J15: 6.327911157 | K15: 5.629389405 | AA15: 14 | AB15: 4.7 | AC15: =AD15-((AD15-AB15)/2) -> 5.65 | AD15: 6.6 | AE15: 14 | AF15: 4.5 | AG15: =AH15-((AH15-AF15)/2) -> 4.6 | AH15: 4.7 | AJ15: 6.75 | AK15: 14
A16: Avg. ADFI | B16: =AVERAGE(B14:B15) -> 1.989290687 | C16: 4.346113565 | D16: 4.892888453 | E16: 5.241899005 | F16: 5.701477732 | G16: 6.100929234 | H16: 6.33783003 | I16: 6.47734634 | J16: 6.408756819 | K16: =AVERAGE(K14:K15) -> 5.978650281 | M16: Diff | N16: =N13-N14 -> 0.05872795278 | AA16: 21 | AB16: 5.7 | AC16: 7.1 | AD16: 8.5 | AE16: 21 | AF16: 5.4 | AG16: 5.7 | AH16: 6 | AJ16: 9 | AK16: 21
A17: Gain with Paylean | B17: =B12+(IF($N$9=4.5,(-0.0077*($N$10^2)+0.415*$N$10+0.375),IF($N$9=6.75,(-0.0107*($N$10^2)+0.5564*$N$10+0.05),IF($N$9=9,(-0.0138*($N$10^2)+0.6979*$N$10-0.275),0)))) -> 52.6011 | C17: =C12+(IF($N$9=4.5,(-0.0077*($N$10^2)+0.415*$N$10+0.375),IF($N$9=6.75,(-0.0107*($N$10^2)+0.5564*$N$10+0.05),IF($N$9=9,(-0.0138*($N$10^2)+0.6979*$N$10-0.275),0)))) -> 27.6011 | D17: =D12+(IF($N$9=4.5,(-0.0077*($N$10^2)+0.415*$N$10+0.375),IF($N$9=6.75,(-0.0107*($N$10^2)+0.5564*$N$10+0.05),IF($N$9=9,(-0.0138*($N$10^2)+0.6979*$N$10-0.275),0)))) -> 27.6011 | E17: 32.6011 | F17: 37.6011 | G17: 22.6011 | H17: 32.6011 | I17: 27.6011 | J17: 27.6011 | K17: 42.6011 | M17: F/G | N17: =N14+(N13-N14) -> 2.75 | O17: =O14+(O13-O14) -> 2.75 | P17: =P14+(P13-P14) -> 2.75 | AA17: 28 | AB17: 6 | AC17: 7.2 | AD17: 8.4 | AE17: 28 | AF17: 3.5 | AG17: 4.45 | AH17: 5.4 | AK17: 28
A18: Gain with Paylean 1 | B18: =B12+(IF($O$9=4.5,(-0.0077*($O$10^2)+0.415*$O$10+0.375),IF($O$9=6.75,(-0.0107*($O$10^2)+0.5564*$O$10+0.05),IF($O$9=9,(-0.0138*($O$10^2)+0.6979*$O$10-0.275),0)))) -> 45 | C18: =C12+(IF($O$9=4.5,(-0.0077*($O$10^2)+0.415*$O$10+0.375),IF($O$9=6.75,(-0.0107*($O$10^2)+0.5564*$O$10+0.05),IF($O$9=9,(-0.0138*($O$10^2)+0.6979*$O$10-0.275),0)))) -> 20 | D18: =D12+(IF($O$9=4.5,(-0.0077*($O$10^2)+0.415*$O$10+0.375),IF($O$9=6.75,(-0.0107*($O$10^2)+0.5564*$O$10+0.05),IF($O$9=9,(-0.0138*($O$10^2)+0.6979*$O$10-0.275),0)))) -> 20 | E18: 25 | F18: 30 | G18: 15 | H18: 25 | I18: 20 | J18: 20 | K18: 35
A19: Gain with Paylean 2 | B19: =B12+(IF($P$9=4.5,(-0.0077*($P$10^2)+0.415*$P$10+0.375),IF($P$9=6.75,(-0.0107*($P$10^2)+0.5564*$P$10+0.05),IF($P$9=9,(-0.0138*($P$10^2)+0.6979*$P$10-0.275),0)))) -> 45 | C19: =C12+(IF($P$9=4.5,(-0.0077*($P$10^2)+0.415*$P$10+0.375),IF($P$9=6.75,(-0.0107*($P$10^2)+0.5564*$P$10+0.05),IF($P$9=9,(-0.0138*($P$10^2)+0.6979*$P$10-0.275),0)))) -> 20 | D19: 20 | E19: 25 | F19: 30 | G19: 15 | H19: 25 | I19: 20 | J19: 20 | K19: 35 | AA19: Growth Curve
A20: Intake with Paylean | B20: =B13+(IF($N$9=4.5,(-0.025*($N$10^2)+0.9736*$N$10-4.125),IF($N$9=6.75,(-0.0209*($N$10^2)+0.8636*$N$10-3.3),IF($N$9=9,(-0.0168*($N$10^2)+0.7536*$N$10-2.475),0)))) -> 91.7818426 | C20: =C13+(IF($N$9=4.5,(-0.025*($N$10^2)+0.9736*$N$10-4.125),IF($N$9=6.75,(-0.0209*($N$10^2)+0.8636*$N$10-3.3),IF($N$9=9,(-0.0168*($N$10^2)+0.7536*$N$10-2.475),0)))) -> 47.15554739 | D20: 49.49925892 | E20: 64.22014634 | F20: 82.31028638 | G20: 46.94842325 | H20: 79.8464963 | I20: 70.53623828 | J20: 76.43349964 | K20: 147.3282609 | AA20: ='Growth Curve'!T18 -> Week | AB20: ='Growth Curve'!V18 -> Weight,lb | AC20: ='Growth Curve'!W18 -> ADFI, lb
A21: Intake with Paylean 1 | B21: =B13+(IF($O$9=4.5,(-0.025*($O$10^2)+0.9736*$O$10-4.125),IF($O$9=6.75,(-0.0209*($O$10^2)+0.8636*$O$10-3.3),IF($O$9=9,(-0.0168*($O$10^2)+0.7536*$O$10-2.475),0)))) -> 86.3008426 | C21: =C13+(IF($O$9=4.5,(-0.025*($O$10^2)+0.9736*$O$10-4.125),IF($O$9=6.75,(-0.0209*($O$10^2)+0.8636*$O$10-3.3),IF($O$9=9,(-0.0168*($O$10^2)+0.7536*$O$10-2.475),0)))) -> 41.67454739 | D21: =D13+(IF($O$9=4.5,(-0.025*($O$10^2)+0.9736*$O$10-4.125),IF($O$9=6.75,(-0.0209*($O$10^2)+0.8636*$O$10-3.3),IF($O$9=9,(-0.0168*($O$10^2)+0.7536*$O$10-2.475),0)))) -> 44.01825892 | E21: 58.73914634 | F21: 76.82928638 | G21: 41.46742325 | H21: 74.3654963 | I21: 65.05523828 | J21: 70.95249964 | K21: 141.8472609 | AA21: 0 | AB21: 0 | AC21: 0
A22: Intake with Paylean 2 | B22: =B13+(IF($P$9=4.5,(-0.025*($P$10^2)+0.9736*$P$10-4.125),IF($P$9=6.75,(-0.0209*($P$10^2)+0.8636*$P$10-3.3),IF($P$9=9,(-0.0168*($P$10^2)+0.7536*$P$10-2.475),0)))) -> 86.3008426 | C22: =C13+(IF($P$9=4.5,(-0.025*($P$10^2)+0.9736*$P$10-4.125),IF($P$9=6.75,(-0.0209*($P$10^2)+0.8636*$P$10-3.3),IF($P$9=9,(-0.0168*($P$10^2)+0.7536*$P$10-2.475),0)))) -> 41.67454739 | D22: 44.01825892 | E22: 58.73914634 | F22: 76.82928638 | G22: 41.46742325 | H22: 74.3654963 | I22: 65.05523828 | J22: 70.95249964 | K22: 141.8472609 | AA22: ='Growth Curve'!T19 -> 1 | AB22: ='Growth Curve'!V19 -> 53.56499064 | AC22: ='Growth Curve'!W19 -> 2.325101254
A23: Avg. ADFI with paylean | B23: =IF($N$10=0,$B$16,((B20-$B$13)/$N$10)+$B$16) -> 2.311702452 | C23: =IF($N$10=0,C16,((C20-C13)/$N$10)+C16) -> 4.668525329 | D23: 5.215300218 | E23: 5.564310769 | F23: 6.023889497 | G23: 6.423340999 | H23: 6.660241794 | I23: 6.799758104 | J23: 6.731168584 | K23: 6.301062046 | AA23: ='Growth Curve'!T20 -> 2 | AB23: ='Growth Curve'!V20 -> 64.40397504 | AC23: ='Growth Curve'!W20 -> 3.618353125
A24: Avg. ADFI with paylean 1 | B24: =IF($O$10=0,B16,((B21-B13)/$O$10)+B16) -> 1.989290687 | C24: 4.346113565 | D24: 4.892888453 | E24: 5.241899005 | F24: 5.701477732 | G24: 6.100929234 | H24: 6.33783003 | I24: 6.47734634 | J24: 6.408756819 | K24: 5.978650281 | AA24: ='Growth Curve'!T21 -> 3 | AB24: ='Growth Curve'!V21 -> 78.54952985 | AC24: ='Growth Curve'!W21 -> 3.978581374
A25: Avg. ADFI with paylean 2 | B25: =IF($P$10=0,B16,((B22-B13)/$P$10)+B16) -> 1.989290687 | C25: 4.346113565 | D25: 4.892888453 | E25: 5.241899005 | F25: 5.701477732 | G25: 6.100929234 | H25: 6.33783003 | I25: 6.47734634 | J25: 6.408756819 | K25: 5.978650281 | AA25: ='Growth Curve'!T22 -> 4 | AB25: ='Growth Curve'!V22 -> 93.21049733 | AC25: ='Growth Curve'!W22 -> 4.3461749
A26: ADG No Paylean | B26: =B16/B11 -> 1.037279339 | C26: 2.08574002 | D26: 2.223117667 | E26: 2.231007485 | F26: 2.226290781 | G26: 2.206887512 | H26: 2.13063529 | I26: 1.991337365 | J26: 1.806492189 | K26: 1.475197748 | AA26: ='Growth Curve'!T23 -> 5 | AB26: ='Growth Curve'!V23 -> 108.3189989 | AC26: ='Growth Curve'!W23 -> 4.713645755
A27: ADG Paylean | B27: =((B17-B12)/$N$10)+B26 -> 1.484402868 | C27: 2.532863549 | D27: 2.670241196 | E27: 2.678131014 | F27: 2.67341431 | G27: 2.654011041 | H27: 2.577758819 | I27: 2.438460895 | J27: 2.253615718 | K27: 1.922321277 | AA27: ='Growth Curve'!T24 -> 6 | AB27: ='Growth Curve'!V24 -> 123.7930013 | AC27: ='Growth Curve'!W24 -> 5.072131151
A28: ADG Paylean 1 | B28: =((B18-B12)/$O$10)+B26 ->  | AA28: ='Growth Curve'!T25 -> 7 | AB28: ='Growth Curve'!V25 -> 139.5370785 | AC28: ='Growth Curve'!W25 -> 5.411666858
A29: ADG Paylean 2 | B29: =((B19-B12)/$P$10)+B26 ->  | AA29: ='Growth Curve'!T26 -> 8 | AB29: ='Growth Curve'!V26 -> 155.4439641 | AC29: ='Growth Curve'!W26 -> 5.721622807
A30: Gain on days with no paylean | B30: =B26*B60 -> 27.36625124 | C30: -15.45758034 | D30: -17.79300034 | E30: -12.92712724 | F30: -7.846943276 | G30: -22.5170877 | H30: -11.22079992 | I30: -13.85273521 | J30: -10.71036721 | K30: 9.921638289 | AA30: ='Growth Curve'!T27 -> 9 | AB30: ='Growth Curve'!V27 -> 171.3969257 | AC30: ='Growth Curve'!W27 -> 5.991288607
A31: Gain on days with no paylean 1 | B31: =B26*B61 -> 45 | C31: =C26*C61 -> 20 | D31: 20 | E31: 25 | F31: 30 | G31: 15 | H31: 25 | I31: 20 | J31: 20 | K31: =K26*K61 -> 35 | AA31: ='Growth Curve'!T28 -> 10 | AB31: ='Growth Curve'!V28 -> 187.2729111 | AC31: ='Growth Curve'!W28 -> 6.210569861
A32: Gain on days with no paylean 2 | B32: =B26*B62 -> 45 | C32: =C26*C62 -> 20 | D32: 20 | E32: 25 | F32: 30 | G32: 15 | H32: 25 | I32: 20 | J32: 20 | K32: 35 | AA32: ='Growth Curve'!T29 -> 11 | AB32: ='Growth Curve'!V29 -> 202.9463305 | AC32: ='Growth Curve'!W29 -> 6.370729682
A33: Gain on days with paylean | B33: =IF($N$10=0,0,B27*$N$10) -> 25.23484876 | C33: 43.05868034 | D33: 45.39410034 | E33: 45.52822724 | F33: 45.44804328 | G33: 45.1181877 | H33: 43.82189992 | I33: 41.45383521 | J33: 38.31146721 | K33: 32.67946171 | AA33: ='Growth Curve'!T30 -> 12 | AB33: ='Growth Curve'!V30 -> 218.2932495 | AC33: ='Growth Curve'!W30 -> 6.465090198
A34: Gain on days with paylean 1 | B34: =IF($O$10=0,0,B28*$O$10) -> 0 | C34: 0 | D34: 0 | E34: 0 | F34: 0 | G34: 0 | H34: 0 | I34: 0 | J34: 0 | K34: 0 | AA34: ='Growth Curve'!T31 -> 13 | AB34: ='Growth Curve'!V31 -> 233.1957025 | AC34: ='Growth Curve'!W31 -> 6.489602481
A35: Gain on days with paylean 2 | B35: =IF($P$10=0,0,B29*$P$10) -> 0 | C35: 0 | D35: 0 | E35: 0 | F35: 0 | G35: 0 | H35: 0 | I35: 0 | J35: 0 | K35: 0 | AA35: ='Growth Curve'!T32 -> 14 | AB35: ='Growth Curve'!V32 -> 247.5457961 | AC35: ='Growth Curve'!W32 -> 6.443204095
A36: Total Gain Paylean Phase | B36: =IF(B8=1,B33+B30,0) -> 52.6011 | C36: =IF(C8=2,C33+C30,0) -> 27.6011 | D36: =IF(D8=3,D33+D30,0) -> 27.6011 | E36: =IF(E8=4,E33+E30,0) -> 32.6011 | F36: =IF(F8=5,F33+F30,0) -> 37.6011 | G36: =IF(G8=6,G33+G30,0) -> 22.6011 | H36: =IF(H8=7,H33+H30,0) -> 32.6011 | I36: =IF(I8=8,I33+I30,0) -> 27.6011 | J36: =IF(J8=9,J33+J30,0) -> 27.6011 | K36: =IF(K8=10,K33+K30,0) -> 42.6011 | AA36: ='Growth Curve'!T33 -> 15 | AB36: ='Growth Curve'!V33 -> 261.2492843 | AC36: ='Growth Curve'!W33 -> 6.327911157
A37: Total Gain Paylean Phase 1 | B37: =IF(B8=1,B34+B31,0) -> 45 | C37: =IF(C8=2,C34+C31,0) -> 20 | D37: =IF(D8=3,D34+D31,0) -> 20 | E37: =IF(E8=4,E34+E31,0) -> 25 | F37: =IF(F8=5,F34+F31,0) -> 30 | G37: =IF(G8=6,G34+G31,0) -> 15 | H37: =IF(H8=7,H34+H31,0) -> 25 | I37: =IF(I8=8,I34+I31,0) -> 20 | J37: =IF(J8=9,J34+J31,0) -> 20 | K37: =IF(K8=10,K34+K31,0) -> 35 | AA37: ='Growth Curve'!T34 -> 16 | AB37: ='Growth Curve'!V34 -> 274.2283408 | AC37: ='Growth Curve'!W34 -> 6.14863127
A38: Total Gain Paylean Phase 2 | B38: =IF(B8=1,B35+B32,0) -> 45 | C38: =IF(C8=2,C35+C32,0) -> 20 | D38: =IF(D8=3,D35+D32,0) -> 20 | E38: =IF(E8=4,E35+E32,0) -> 25 | F38: =IF(F8=5,F35+F32,0) -> 30 | G38: =IF(G8=6,G35+G32,0) -> 15 | H38: =IF(H8=7,H35+H32,0) -> 25 | I38: =IF(I8=8,I35+I32,0) -> 20 | J38: =IF(J8=9,J35+J32,0) -> 20 | K38: =IF(K8=10,K35+K32,0) -> 35 | AA38: ='Growth Curve'!T35 -> 17 | AB38: ='Growth Curve'!V35 -> 286.4233475 | AC38: ='Growth Curve'!W35 -> 5.912726236
A39: Intake Days No Paylean | B39: =B16*B60 -> 52.48290091 | C39: -32.20938321 | D39: -39.16084479 | E39: -30.37313674 | F39: -20.09583507 | G39: -62.24837373 | H39: -33.37761421 | I39: -45.05964949 | J39: -37.99636629 | K39: 40.21020615 | AA39: ='Growth Curve'!T36 -> 18 | AB39: ='Growth Curve'!V36 -> 297.7936221 | AC39: ='Growth Curve'!W36 -> 5.629389405
A40: Intake Days No Paylean 1 | B40: =B16*B61 -> 86.3008426 | C40: 41.67454739 | D40: 44.01825892 | E40: 58.73914634 | F40: 76.82928638 | G40: 41.46742325 | H40: 74.3654963 | I40: 65.05523828 | J40: 70.95249964 | K40: 141.8472609 | AA40: ='Growth Curve'!T37 -> 19 | AB40: ='Growth Curve'!V37 -> 308.31712 | AC40: ='Growth Curve'!W37 -> 5.308924223
A41: Intake Days No Paylean 2 | B41: =B16*B62 -> 86.3008426 | C41: 41.67454739 | D41: 44.01825892 | E41: 58.73914634 | F41: 76.82928638 | G41: 41.46742325 | H41: 74.3654963 | I41: 65.05523828 | J41: 70.95249964 | K41: 141.8472609 | AA41: ='Growth Curve'!T38 -> 20 | AB41: ='Growth Curve'!V38 -> 317.9892412 | AC41: ='Growth Curve'!W38 -> 4.962014734
A42: Intake Days On Paylean | B42: =IF(B8=1,B23*$N$10,0) -> 39.29894168 | C42: =C23*$N$10 -> 79.3649306 | D42: 88.6601037 | E42: 94.59328308 | F42: 102.4061215 | G42: 109.196797 | H42: 113.2241105 | I42: 115.5958878 | J42: 114.4298659 | K42: 107.1180548
A43: Intake Days On Paylean 1 | B43: =IF(B8=1,B24*$O$10,0) -> 0 | C43: =IF(C8=2,C24*$O$10,0) -> 0 | D43: =IF(D8=3,D24*$O$10,0) -> 0 | E43: =IF(E8=4,E24*$O$10,0) -> 0 | F43: =IF(F8=5,F24*$O$10,0) -> 0 | G43: =IF(G8=6,G24*$O$10,0) -> 0 | H43: =IF(H8=7,H24*$O$10,0) -> 0 | I43: =IF(I8=8,I24*$O$10,0) -> 0 | J43: =IF(J8=9,J24*$O$10,0) -> 0 | K43: =IF(K8=10,K24*$O$10,0) -> 0
A44: Intake Days On Paylean 2 | B44: =IF(B8=1,B25*$P$10,0) -> 0 | C44: =IF(C8=2,C25*$P$10,0) -> 0 | D44: =IF(D8=3,D25*$P$10,0) -> 0 | E44: =IF(E8=4,E25*$P$10,0) -> 0 | F44: =IF(F8=5,F25*$P$10,0) -> 0 | G44: =IF(G8=6,G25*$P$10,0) -> 0 | H44: =IF(H8=7,H25*$P$10,0) -> 0 | I44: =IF(I8=8,I25*$P$10,0) -> 0 | J44: =IF(J8=9,J25*$P$10,0) -> 0 | K44: =IF(K8=10,K25*$P$10,0) -> 0
A45: Total Intake Paylean Phase | B45: =IF(B8=1,B39+B42,0) -> 91.7818426 | C45: =IF(C8=2,C39+C42,0) -> 47.15554739 | D45: =IF(D8=3,D39+D42,0) -> 49.49925892 | E45: =IF(E8=4,E39+E42,0) -> 64.22014634 | F45: =IF(F8=5,F39+F42,0) -> 82.31028638 | G45: =IF(G8=6,G39+G42,0) -> 46.94842325 | H45: =IF(H8=7,H39+H42,0) -> 79.8464963 | I45: =IF(I8=8,I39+I42,0) -> 70.53623828 | J45: =IF(J8=9,J39+J42,0) -> 76.43349964 | K45: =IF(K8=10,K39+K42,0) -> 147.3282609
A46: Total Intake Paylean Phase 1 | B46: =IF(B8=1,B40+B43,0) -> 86.3008426 | C46: =IF(C8=2,C40+C43,0) -> 41.67454739 | D46: =IF(D8=3,D40+D43,0) -> 44.01825892 | E46: =IF(E8=4,E40+E43,0) -> 58.73914634 | F46: =IF(F8=5,F40+F43,0) -> 76.82928638 | G46: =IF(G8=6,G40+G43,0) -> 41.46742325 | H46: =IF(H8=7,H40+H43,0) -> 74.3654963 | I46: =IF(I8=8,I40+I43,0) -> 65.05523828 | J46: =IF(J8=9,J40+J43,0) -> 70.95249964 | K46: =IF(K8=10,K40+K43,0) -> 141.8472609
A47: Total Intake Paylean Phase 2 | B47: =IF(B8=1,B41+B44,0) -> 86.3008426 | C47: =IF(C8=2,C41+C44,0) -> 41.67454739 | D47: =IF(D8=3,D41+D44,0) -> 44.01825892 | E47: =IF(E8=4,E41+E44,0) -> 58.73914634 | F47: =IF(F8=5,F41+F44,0) -> 76.82928638 | G47: =IF(G8=6,G41+G44,0) -> 41.46742325 | H47: =IF(H8=7,H41+H44,0) -> 74.3654963 | I47: =IF(I8=8,I41+I44,0) -> 65.05523828 | J47: =IF(J8=9,J41+J44,0) -> 70.95249964 | K47: =IF(K8=10,K41+K44,0) -> 141.8472609
A48: Total Intake for Adj. F/G | B48: =IF(B10='(1) Setup'!$B$9,'(3) Ractopamine'!B45,'(3) Ractopamine'!B13) -> 86.3008426 | C48: =IF(C10='(1) Setup'!$B$9,'(3) Ractopamine'!C45,'(3) Ractopamine'!C13) -> 41.67454739 | D48: =IF(D10='(1) Setup'!$B$9,'(3) Ractopamine'!D45,'(3) Ractopamine'!D13) -> 44.01825892 | E48: =IF(E10='(1) Setup'!$B$9,'(3) Ractopamine'!E45,'(3) Ractopamine'!E13) -> 58.73914634 | F48: =IF(F10='(1) Setup'!$B$9,'(3) Ractopamine'!F45,'(3) Ractopamine'!F13) -> 76.82928638 | G48: =IF(G10='(1) Setup'!$B$9,'(3) Ractopamine'!G45,'(3) Ractopamine'!G13) -> 41.46742325 | H48: =IF(H10='(1) Setup'!$B$9,'(3) Ractopamine'!H45,'(3) Ractopamine'!H13) -> 74.3654963 | I48: =IF(I10='(1) Setup'!$B$9,'(3) Ractopamine'!I45,'(3) Ractopamine'!I13) -> 65.05523828 | J48: =IF(J10='(1) Setup'!$B$9,'(3) Ractopamine'!J45,'(3) Ractopamine'!J13) -> 70.95249964 | K48: =IF(K10='(1) Setup'!$B$9,'(3) Ractopamine'!K45,'(3) Ractopamine'!K13) -> 147.3282609
A49: Total Intake for Adj. F/G 1 | B49: =IF(B10='(1) Setup'!$B$9,'(3) Ractopamine'!B46,'(3) Ractopamine'!B13) -> 86.3008426 | C49: =IF(C10='(1) Setup'!$B$9,'(3) Ractopamine'!C46,'(3) Ractopamine'!C13) -> 41.67454739 | D49: =IF(D10='(1) Setup'!$B$9,'(3) Ractopamine'!D46,'(3) Ractopamine'!D13) -> 44.01825892 | E49: =IF(E10='(1) Setup'!$B$9,'(3) Ractopamine'!E46,'(3) Ractopamine'!E13) -> 58.73914634 | F49: =IF(F10='(1) Setup'!$B$9,'(3) Ractopamine'!F46,'(3) Ractopamine'!F13) -> 76.82928638 | G49: =IF(G10='(1) Setup'!$B$9,'(3) Ractopamine'!G46,'(3) Ractopamine'!G13) -> 41.46742325 | H49: =IF(H10='(1) Setup'!$B$9,'(3) Ractopamine'!H46,'(3) Ractopamine'!H13) -> 74.3654963 | I49: =IF(I10='(1) Setup'!$B$9,'(3) Ractopamine'!I46,'(3) Ractopamine'!I13) -> 65.05523828 | J49: =IF(J10='(1) Setup'!$B$9,'(3) Ractopamine'!J46,'(3) Ractopamine'!J13) -> 70.95249964 | K49: =IF(K10='(1) Setup'!$B$9,'(3) Ractopamine'!K46,'(3) Ractopamine'!K13) -> 141.8472609
A50: Total Intake for Adj. F/G 2 | B50: =IF(B10='(1) Setup'!$B$9,'(3) Ractopamine'!B47,'(3) Ractopamine'!B13) -> 86.3008426 | C50: =IF(C10='(1) Setup'!$B$9,'(3) Ractopamine'!C47,'(3) Ractopamine'!C13) -> 41.67454739 | D50: =IF(D10='(1) Setup'!$B$9,'(3) Ractopamine'!D47,'(3) Ractopamine'!D13) -> 44.01825892 | E50: =IF(E10='(1) Setup'!$B$9,'(3) Ractopamine'!E47,'(3) Ractopamine'!E13) -> 58.73914634 | F50: =IF(F10='(1) Setup'!$B$9,'(3) Ractopamine'!F47,'(3) Ractopamine'!F13) -> 76.82928638 | G50: =IF(G10='(1) Setup'!$B$9,'(3) Ractopamine'!G47,'(3) Ractopamine'!G13) -> 41.46742325 | H50: =IF(H10='(1) Setup'!$B$9,'(3) Ractopamine'!H47,'(3) Ractopamine'!H13) -> 74.3654963 | I50: =IF(I10='(1) Setup'!$B$9,'(3) Ractopamine'!I47,'(3) Ractopamine'!I13) -> 65.05523828 | J50: =IF(J10='(1) Setup'!$B$9,'(3) Ractopamine'!J47,'(3) Ractopamine'!J13) -> 70.95249964 | K50: =IF(K10='(1) Setup'!$B$9,'(3) Ractopamine'!K47,'(3) Ractopamine'!K13) -> 141.8472609
A51: Total Gain for Adj. F/G | B51: =IF(B10='(1) Setup'!$B$9,'(3) Ractopamine'!B36,'(3) Ractopamine'!B12) -> 45 | C51: =IF(C10='(1) Setup'!$B$9,'(3) Ractopamine'!C36,'(3) Ractopamine'!C12) -> 20 | D51: =IF(D10='(1) Setup'!$B$9,'(3) Ractopamine'!D36,'(3) Ractopamine'!D12) -> 20 | E51: =IF(E10='(1) Setup'!$B$9,'(3) Ractopamine'!E36,'(3) Ractopamine'!E12) -> 25 | F51: =IF(F10='(1) Setup'!$B$9,'(3) Ractopamine'!F36,'(3) Ractopamine'!F12) -> 30 | G51: =IF(G10='(1) Setup'!$B$9,'(3) Ractopamine'!G36,'(3) Ractopamine'!G12) -> 15 | H51: =IF(H10='(1) Setup'!$B$9,'(3) Ractopamine'!H36,'(3) Ractopamine'!H12) -> 25 | I51: =IF(I10='(1) Setup'!$B$9,'(3) Ractopamine'!I36,'(3) Ractopamine'!I12) -> 20 | J51: =IF(J10='(1) Setup'!$B$9,'(3) Ractopamine'!J36,'(3) Ractopamine'!J12) -> 20 | K51: =IF(K10='(1) Setup'!$B$9,'(3) Ractopamine'!K36,'(3) Ractopamine'!K12) -> 42.6011
A52: Total Gain for Adj. F/G 1 | B52: =IF(B10='(1) Setup'!$B$9,'(3) Ractopamine'!B37,'(3) Ractopamine'!B12) -> 45 | C52: =IF(C10='(1) Setup'!$B$9,'(3) Ractopamine'!C37,'(3) Ractopamine'!C12) -> 20 | D52: =IF(D10='(1) Setup'!$B$9,'(3) Ractopamine'!D37,'(3) Ractopamine'!D12) -> 20 | E52: =IF(E10='(1) Setup'!$B$9,'(3) Ractopamine'!E37,'(3) Ractopamine'!E12) -> 25 | F52: =IF(F10='(1) Setup'!$B$9,'(3) Ractopamine'!F37,'(3) Ractopamine'!F12) -> 30 | G52: =IF(G10='(1) Setup'!$B$9,'(3) Ractopamine'!G37,'(3) Ractopamine'!G12) -> 15 | H52: =IF(H10='(1) Setup'!$B$9,'(3) Ractopamine'!H37,'(3) Ractopamine'!H12) -> 25 | I52: =IF(I10='(1) Setup'!$B$9,'(3) Ractopamine'!I37,'(3) Ractopamine'!I12) -> 20 | J52: =IF(J10='(1) Setup'!$B$9,'(3) Ractopamine'!J37,'(3) Ractopamine'!J12) -> 20 | K52: =IF(K10='(1) Setup'!$B$9,'(3) Ractopamine'!K37,'(3) Ractopamine'!K12) -> 35
A53: Total Gain for Adj. F/G 2 | B53: =IF(B10='(1) Setup'!$B$9,'(3) Ractopamine'!B38,'(3) Ractopamine'!B12) -> 45 | C53: =IF(C10='(1) Setup'!$B$9,'(3) Ractopamine'!C38,'(3) Ractopamine'!C12) -> 20 | D53: =IF(D10='(1) Setup'!$B$9,'(3) Ractopamine'!D38,'(3) Ractopamine'!D12) -> 20 | E53: =IF(E10='(1) Setup'!$B$9,'(3) Ractopamine'!E38,'(3) Ractopamine'!E12) -> 25 | F53: =IF(F10='(1) Setup'!$B$9,'(3) Ractopamine'!F38,'(3) Ractopamine'!F12) -> 30 | G53: =IF(G10='(1) Setup'!$B$9,'(3) Ractopamine'!G38,'(3) Ractopamine'!G12) -> 15 | H53: =IF(H10='(1) Setup'!$B$9,'(3) Ractopamine'!H38,'(3) Ractopamine'!H12) -> 25 | I53: =IF(I10='(1) Setup'!$B$9,'(3) Ractopamine'!I38,'(3) Ractopamine'!I12) -> 20 | J53: =IF(J10='(1) Setup'!$B$9,'(3) Ractopamine'!J38,'(3) Ractopamine'!J12) -> 20 | K53: =IF(K10='(1) Setup'!$B$9,'(3) Ractopamine'!K38,'(3) Ractopamine'!K12) -> 35
A54: Adj. F/G | B54: =B48/B51 -> 1.917796502 | C54: 2.083727369 | D54: 2.200912946 | E54: 2.349565853 | F54: 2.560976213 | G54: 2.764494883 | H54: 2.974619852 | I54: 3.252761914 | J54: 3.547624982 | K54: 3.458320581
A55: Adj. F/G 1 | B55: =B49/B52 -> 1.917796502 | C55: =C49/C52 -> 2.083727369 | D55: 2.200912946 | E55: 2.349565853 | F55: 2.560976213 | G55: 2.764494883 | H55: 2.974619852 | I55: 3.252761914 | J55: 3.547624982 | K55: 4.052778884
A56: Adj. F/G 2 | B56: =B50/B53 -> 1.917796502 | C56: =C50/C53 -> 2.083727369 | D56: 2.200912946 | E56: 2.349565853 | F56: 2.560976213 | G56: 2.764494883 | H56: 2.974619852 | I56: 3.252761914 | J56: 3.547624982 | K56: 4.052778884
A57: Total Days | B57: =B12/B26 -> 43.38272086 | C57: 9.588922785 | D57: 8.99637491 | E57: 11.20569974 | F57: 13.47532868 | G57: 6.796902841 | H57: 11.73358956 | I57: 10.04350159 | J57: 11.07117989 | K57: 23.72563275
A58: Total Days 1 | B58: =B12/B26 -> 43.38272086 | C58: 9.588922785 | D58: 8.99637491 | E58: 11.20569974 | F58: 13.47532868 | G58: 6.796902841 | H58: 11.73358956 | I58: 10.04350159 | J58: 11.07117989 | K58: 23.72563275
A59: Total Days 2 | B59: =B12/B26 -> 43.38272086 | C59: 9.588922785 | D59: 8.99637491 | E59: 11.20569974 | F59: 13.47532868 | G59: 6.796902841 | H59: 11.73358956 | I59: 10.04350159 | J59: 11.07117989 | K59: 23.72563275
A60: Days No Paylean | B60: =B57-$N$10 -> 26.38272086 | C60: -7.411077215 | D60: -8.00362509 | E60: -5.794300255 | F60: -3.524671325 | G60: -10.20309716 | H60: -5.266410436 | I60: -6.956498407 | J60: -5.928820107 | K60: 6.725632753
A61: Days No Paylean 1 | B61: =B58-$O$10 -> 43.38272086 | C61: 9.588922785 | D61: 8.99637491 | E61: 11.20569974 | F61: 13.47532868 | G61: 6.796902841 | H61: 11.73358956 | I61: 10.04350159 | J61: 11.07117989 | K61: 23.72563275
A62: Days No Paylean 2 | B62: =B59-$P$10 -> 43.38272086 | C62: 9.588922785 | D62: 8.99637491 | E62: 11.20569974 | F62: 13.47532868 | G62: 6.796902841 | H62: 11.73358956 | I62: 10.04350159 | J62: 11.07117989 | K62: 23.72563275
A63: Gain | B63: =B12 -> 45 | C63: 20 | D63: 20 | E63: 25 | F63: 30 | G63: 15 | H63: 25 | I63: 20 | J63: 20 | K63: 35
A64: Intake | B64: =B13 -> 86.3008426 | C64: 41.67454739 | D64: 44.01825892 | E64: 58.73914634 | F64: 76.82928638 | G64: 41.46742325 | H64: 74.3654963 | I64: 65.05523828 | J64: 70.95249964 | K64: 141.8472609
A65: Intake 1 | B65: =B13 -> 86.3008426 | C65: 41.67454739 | D65: 44.01825892 | E65: 58.73914634 | F65: 76.82928638 | G65: 41.46742325 | H65: 74.3654963 | I65: 65.05523828 | J65: 70.95249964 | K65: 141.8472609
A66: Intake 2 | B66: =B13 -> 86.3008426 | C66: 41.67454739 | D66: 44.01825892 | E66: 58.73914634 | F66: 76.82928638 | G66: 41.46742325 | H66: 74.3654963 | I66: 65.05523828 | J66: 70.95249964 | K66: 141.8472609
A72: Diff. Between Adj and Initial | B72: =B11-B54 -> 0 | C72: 0 | D72: 0 | E72: 0 | F72: 0 | G72: 0 | H72: 0 | I72: 0 | J72: 0 | K72: 0.5944583021
A73: % difference from original. | B73: =1-(B54/B11) -> 0 | C73: =1-(C54/C11) -> 0 | D73: 0 | E73: 0 | F73: 0 | G73: 0 | H73: 0 | I73: 0 | J73: 0 | K73: 0.1466791846

Sheet Growth Curve (hidden)
B1: K-State Growth and Feed Intake Curve Calculator | N1: K-State Growth and Feed Intake Curve Calculator
B3: Information in yellow cells can be changed. | N3: Information in yellow cells can be changed. | AA3: Day | AB3: Weight | AC3: Day | AD3: ADG | AE3: Cum Feed | AF3: Feed/d
C4: Model and Template: Dr. Steve Dritz, K-State College of Veterinary Medicine | O4: Model and Template: Dr. Steve Dritz, K-State College of Veterinary Medicine | AB4: =R7 -> 12.1253 | AE4: =IF(AB4<$R$13,(-0.00011*$AB4^3+0.02188*$AB4^2 + 0.80366*$AB4 - 9.4)*$U$7/1.775,(0.00463*$AB4^2 + 1.68*$AB4 - 22.05)*$U$11/3.069) -> 3.125284724 | AH4: =((0.004404447*(21+AA4)^2+0.08509693*(21+AA4)+2.014352066)/(((0.004404447*((($F$13-$F$7)/($J$7/1000))+21)^2+0.08509693*((($F$13-$F$7)/($J$7/1000))+21)+2.014352066)-(0.004404447*(21)^2+0.08509693*21+2.014352066)))*($F$13-$F$7)) -> 5.289619058
F5: Nursery Close Out Averages | R5: Nursery Close Out Averages | AA5: 1 | AB5: =IF(AB4<60,AJ5*2.2046,( -0.0000000283*AB4^3 - 0.0000208677*AB4^2 + 0.0088789486*AB4+ 1.0393148087+($V$11-1.68))+AB4) -> 12.68259144 | AC5: 1 | AD5: =AB5-AB4 -> 0.557291436 | AE5: 3.795838402 | AF5: =AE5-AE4 -> 0.6705536782 | AH5: =((0.004404447*(21+AA5)^2+0.08509693*(21+AA5)+2.014352066)/(((0.004404447*((($F$13-$F$7)/($J$7/1000))+21)^2+0.08509693*((($F$13-$F$7)/($J$7/1000))+21)+2.014352066)-(0.004404447*(21)^2+0.08509693*21+2.014352066)))*($F$13-$F$7)) -> 5.542404795 | AI5: =AH5-AH4 -> 0.2527857371 | AJ5: =$F$7+AI5 -> 5.752785737
F6: Initial wt | G6: Final wt | H6: F/G | I6: Adj. F/G | J6: ADG, g | R6: Initial wt | S6: Final wt | T6: F/G | U6: Adj. F/G | V6: ADG | AA6: 2 | AB6: =IF(AB5<60,AJ6*2.2046,( -0.0000000283*AB5^3 - 0.0000208677*AB5^2 + 0.0088789486*AB5+ 1.0393148087+($V$11-1.68))+AB5) -> 13.25776751 | AC6: 2 | AD6: 0.5751760739 | AE6: 4.498613852 | AF6: 0.7027754499 | AH6: 5.803302951 | AI6: =AH6-AH5 -> 0.2608981556 | AJ6: =AJ5+AI6 -> 6.013683893
F7: 5.5 | G7: =F11 -> 20.41742287 | H7: 1.5 | I7: =$T$7-((G7-10)*0.011)+((50-H7)*0.011) -> 1.918908348 | J7: 400 | R7: =F7*2.2046 -> 12.1253 | S7: =R11 -> 45.01225045 | T7: =H7 -> 1.5 | U7: =$T$7-((S7-10)*0.011)+((50-T7)*0.011) -> 1.648365245 | V7: =J7*2.2046/1000 -> 0.88184 | AA7: 3 | AB7: 13.85082822 | AC7: 3 | AD7: 0.5930607118 | AE7: 5.234503056 | AF7: 0.7358892039 | AH7: 6.072313525 | AI7: 0.2690105742 | AJ7: =AJ6+AI7 -> 6.282694467
AA8: 4 | AB8: 14.46177357 | AC8: 4 | AD8: 0.6109453497 | AE8: 6.004406745 | AF8: 0.7699036889 | AH8: 6.349436518 | AI8: 0.2771229927 | AJ8: 6.55981746
F9: Finisher Close Out Averages | R9: Finisher Close Out Averages | AA9: 5 | AB9: 15.09060356 | AC9: 5 | AD9: 0.6288299876 | AE9: 6.809232655 | AF9: 0.8048259096 | AH9: 6.634671929 | AI9: 0.2852354112 | AJ9: 6.845052871
F10: Initial wt | G10: Final wt | H10: F/G | I10: Adj. F/G | J10: ADG, g | R10: Initial wt | S10: Final wt | T10: F/G | U10: Adj. F/G | V10: ADG | AA10: 6 | AB10: 15.73731818 | AC10: 6 | AD10: 0.6467146255 | AE10: 7.649893729 | AF10: 0.8406610744 | AH10: 6.928019759 | AI10: 0.2933478298 | AJ10: 7.138400701
F11: =F13 -> 20.41742287 | G11: ='(1) Setup'!B9/2.204 -> 136.1161525 | H11: ='(1) Setup'!B21 -> 2.75 | I11: =$T$11-((F11-50)*0.006)+((250-G11)*0.006) -> 3.610798548 | J11: ='(1) Setup'!B19*453.6 -> 975.24 | R11: =R13 -> 45.01225045 | S11: =G11*2.2046 -> 300.0816697 | T11: =H11 -> 2.75 | U11: =$T$11-((R11-50)*0.006)+((250-S11)*0.006) -> 2.479436479 | V11: =J11*2.2046/1000 -> 2.150014104 | AA11: 7 | AB11: 16.40191745 | AC11: 7 | AD11: 0.6645992634 | AE11: 8.527306271 | AF11: 0.8774125421 | AH11: 7.229480007 | AI11: 0.3014602483 | AJ11: 7.439860949
AA12: 8 | AB12: 17.08440135 | AC12: 8 | AD12: 0.6824839013 | AE12: 9.442388041 | AF12: 0.9150817699 | AH12: 7.539052674 | AI12: 0.3095726668 | AJ12: 7.749433616
E13: Initial Weight, kg: | F13: ='(1) Setup'!B7/2.204 -> 20.41742287 | G13: = Weight at the time of transfer from nursery to finishing. | Q13: Initial Weight, lb: | R13: =F13*2.2046 -> 45.01225045 | S13: = Weight at the time of transfer from nursery to finishing. | AA13: 9 | AB13: 17.78476989 | AC13: 9 | AD13: 0.7003685392 | AE13: 10.3960563 | AF13: 0.9536682606 | AH13: 7.856737759 | AI13: 0.3176850854 | AJ13: 8.067118701
E14: Group Size, pigs | F14: 1000 | Q14: Group Size, pigs | R14: =F14 -> 1000 | AA14: 10 | AB14: 18.50302307 | AC14: 10 | AD14: 0.7182531771 | AE14: 11.38922581 | AF14: 0.9931695099 | AH14: 8.182535263 | AI14: 0.3257975039 | AJ14: 8.392916205
AA15: 11 | AB15: 19.23916088 | AC15: 11 | AD15: 0.736137815 | AE15: 12.42280677 | AF15: 1.033580954 | AH15: 8.516445186 | AI15: 0.3339099224 | AJ15: 8.726826128
AA16: 12 | AB16: 19.99318333 | AC16: 12 | AD16: 0.7540224529 | AE16: 13.49770268 | AF16: 1.074895918 | AH16: 8.858467527 | AI16: 0.342022341 | AJ16: 9.068848469
B17: Nusery | H17: Finisher | N17: Nusery | T17: Finisher | Y17: 7 | Z17: =VLOOKUP(R13,AB5:AC218,2,TRUE) -> 37 | AA17: 13 | AB17: 20.76509042 | AC17: 13 | AD17: 0.7719070908 | AE17: 14.61480824 | AF17: 1.117105559 | AH17: 9.208602286 | AI17: 0.3501347595 | AJ17: 9.418983228
B18: Week | C18: Weight | D18: Wt, kg | E18: ADFI, g | F18: Tonnes/d | H18: Week | J18: Wt, kg | K18: ADFI, g | L18: Tonnes/d | N18: Week | O18: Weight | P18: Weight,lb | Q18: ADFI, lb | R18: Tons/d | T18: Week | V18: Weight,lb | W18: ADFI, lb | X18: Tons/d | Y18: =Y17+7 -> 14 | Z18: 44 | AA18: 14 | AB18: 21.55488215 | AC18: 14 | AD18: 0.7897917287 | AE18: 15.77500706 | AF18: 1.160198821 | AH18: 9.566849464 | AI18: 0.358247178 | AJ18: 9.777230406
B19: 1 | C19: =VLOOKUP(N17,$AA$4:$AB$218,2,FALSE) ->  | D19: =IF(P19=" ","",P19/2.2046) -> 7.439860949 | E19: =IF(Q19=" ","",Q19/2.2046*1000) -> 397.9917183 | F19: =IF(D19=""," ",E19*$F$14/1000/1000) -> 0.3979917183 | H19: 1 | J19: =IF(V19=" ","",V19/2.2046) -> 24.29692036 | K19: =IF(W19=" ","",W19/2.2046*1000) -> 1054.65901 | L19: =IF(J19=""," ",K19*$F$14/1000/1000) -> 1.05465901 | N19: 1 | O19: =VLOOKUP(Y17,$AA$4:$AB$218,2,FALSE) -> 16.40191745 | P19: =IF(O19>$R$13+5," ",O19) -> 16.40191745 | Q19: =IF(P19=" "," ",VLOOKUP(O19,$AB$5:$AF$218,5,TRUE)) -> 0.8774125421 | R19: =IF(P19=" "," ",Q19*$R$14/2000) -> 0.438706271 | T19: 1 | V19: =VLOOKUP(Z18,$AA$4:$AB$218,2,FALSE) -> 53.56499064 | W19: =VLOOKUP(V19,$AB$5:$AF$218,5,TRUE) -> 2.325101254 | X19: =W19*$R$14/2000 -> 1.162550627 | Y19: 21 | Z19: 51 | AA19: 15 | AB19: 22.36255852 | AC19: 15 | AD19: 0.8076763666 | AE19: 16.97916944 | AF19: 1.204162375 | AH19: 9.933209061 | AI19: 0.3663595966 | AJ19: 10.14359
B20: 2 | D20: =IF(P20=" ","",P20/2.2046) -> 9.777230406 | E20: =IF(Q20=" ","",Q20/2.2046*1000) -> 526.2627329 | F20: =IF(D20=""," ",E20*$F$14/1000/1000) -> 0.5262627329 | H20: 2 | J20: =IF(V20=" ","",V20/2.2046) -> 29.21345144 | K20: =IF(W20=" ","",W20/2.2046*1000) -> 1641.274211 | L20: =IF(J20=""," ",K20*$F$14/1000/1000) -> 1.641274211 | N20: 2 | O20: 21.55488215 | P20: 21.55488215 | Q20: 1.160198821 | R20: 0.5800994105 | T20: 2 | V20: 64.40397504 | W20: 3.618353125 | X20: 1.809176563 | Y20: 28 | Z20: 58 | AA20: 16 | AB20: 23.18811952 | AC20: 16 | AD20: 0.8255610045 | AE20: 18.22815001 | AF20: 1.248980571 | AH20: 10.30768108 | AI20: 0.3744720151 | AJ20: 10.51806202
B21: 3 | C21: 12.68259144 | D21: 12.51210837 | E21: 673.6705988 | F21: 0.6736705988 | H21: 3 | J21: 35.62983301 | K21: 1804.672673 | L21: 1.804672673 | N21: 3 | O21: 27.58419412 | P21: 27.58419412 | Q21: 1.485174202 | R21: 0.7425871011 | T21: 3 | V21: 78.54952985 | W21: 3.978581374 | X21: 1.989290687 | Y21: 35 | Z21: 65 | AA21: 17 | AB21: 24.03156517 | AC21: 17 | AD21: 0.8434456424 | AE21: 19.52278539 | AF21: 1.294635383 | AH21: 10.69026551 | AI21: 0.3825844336 | AJ21: 10.90064645
B22: 4 | C22: 13.25776751 | D22: 15.64449484 | E22: 836.5981062 | F22: 0.8365981062 | H22: 4 | J22: 42.28000423 | K22: 1971.412002 | L22: 1.971412002 | N22: 4 | O22: 34.48985333 | P22: 34.48985333 | Q22: 1.844364185 | R22: 0.9221820925 | T22: 4 | V22: 93.21049733 | W22: 4.3461749 | X22: 2.17308745 | Y22: 42 | Z22: 72 | AA22: 18 | AB22: 24.89289545 | AC22: 18 | AD22: 0.8613302803 | AE22: 20.86389175 | AF22: 1.341106357 | AH22: 11.08096236 | AI22: 0.3906968522 | AJ22: 11.2913433
B23: 5 | C23: 13.85082822 | D23: 19.17438983 | E23: 1008.497648 | F23: 1.008497648 | H23: 5 | J23: 49.13317557 | K23: 2138.095689 | L23: 2.138095689 | N23: 5 | O23: 42.27185981 | P23: 42.27185981 | Q23: 2.223333914 | R23: 1.111666957 | T23: 5 | V23: 108.3189989 | W23: 4.713645755 | X23: 2.356822877 | Y23: 49 | Z23: 79 | AA23: 19 | AB23: 25.77211037 | AC23: 19 | AD23: 0.8792149182 | AE23: 22.25226231 | AF23: 1.388370561 | AH23: 11.47977163 | AI23: 0.3988092707 | AJ23: 11.69015257
B24: 6 | C24: 14.46177357 | H24: 6 | J24: 56.15213703 | K24: 2300.703597 | L24: 2.300703597 | N24: 6 | O24: 50.93021354 | T24: 6 | V24: 123.7930013 | W24: 5.072131151 | X24: 2.536065576 | Y24: 56 | Z24: 86 | AA24: 20 | AB24: 26.66920992 | AC24: 20 | AD24: 0.8970995561 | AE24: 23.68866484 | AF24: 1.436402526 | AH24: 11.88669332 | AI24: 0.4069216892 | AJ24: 12.09707426
B25: 7 | C25: 15.09060356 | H25: 7 | J25: 63.29360359 | K25: 2454.715984 | L25: 2.454715984 | N25: 7 | O25: 60.46491453 | T25: 7 | V25: 139.5370785 | W25: 5.411666858 | X25: 2.705833429 | Y25: 63 | Z25: 93 | AA25: 21 | AB25: 27.58419412 | AC25: 21 | AD25: 0.914984194 | AE25: 25.17383904 | AF25: 1.485174202 | AH25: 12.30172743 | AI25: 0.4150341078 | AJ25: 12.51210837
B26: 8 | C26: 15.73731818 | H26: 8 | J26: 70.50891959 | K26: 2595.31108 | L26: 2.59531108 | N26: 8 | O26: 74.45273883 | T26: 8 | V26: 155.4439641 | W26: 5.721622807 | X26: 2.860811403 | Y26: 70 | Z26: 100 | AA26: 22 | AB26: 28.51706295 | AC26: 22 | AD26: 0.9328688319 | AE26: 26.70849394 | AF26: 1.534654898 | AH26: 12.72487396 | AI26: 0.4231465263 | AJ26: 12.9352549
B27: 9 | C27: 16.40191745 | H27: 9 | J27: 77.7451355 | K27: 2717.630684 | L27: 2.717630684 | N27: 9 | O27: 88.97274598 | T27: 9 | V27: 171.3969257 | W27: 5.991288607 | X27: 2.995644303 | Y27: 77 | Z27: 107 | AA27: 23 | AB27: 29.46781642 | AC27: 23 | AD27: 0.9507534697 | AE27: 28.29330517 | AF27: 1.584811233 | AH27: 13.1561329 | AI27: 0.4312589448 | AJ27: 13.36651384
B28: 10 | C28: 17.08440135 | H28: 10 | J28: 84.94643525 | K28: 2817.096009 | L28: 2.817096009 | N28: 10 | O28: 103.9611402 | T28: 10 | V28: 187.2729111 | W28: 6.210569861 | X28: 3.105284931 | Z28: 114 | AA28: 24 | AB28: 30.43645452 | AC28: 24 | AD28: 0.9686381076 | AE28: 29.92891225 | AF28: 1.635607083 | AH28: 13.59550426 | AI28: 0.4393713634 | AJ28: 13.80588521
H29: 11 | J29: 92.05585163 | K29: 2889.744027 | L29: 2.889744027 | T29: 11 | V29: 202.9463305 | W29: 6.370729682 | X29: 3.185364841 | Z29: 121 | AA29: 25 | AB29: 31.42297727 | AC29: 25 | AD29: 0.9865227455 | AE29: 31.61591578 | AF29: 1.687003527 | AH29: 14.04298805 | AI29: 0.4474837819 | AJ29: 14.25336899
H30: 12 | J30: 99.01716843 | K30: 2932.545676 | L30: 2.932545676 | T30: 12 | V30: 218.2932495 | W30: 6.465090198 | X30: 3.232545099 | Z30: 128 | AA30: 26 | AB30: 32.42738465 | AC30: 26 | AD30: 1.004407383 | AE30: 33.35487458 | AF30: 1.738958798 | AH30: 14.49858425 | AI30: 0.4555962004 | AJ30: 14.70896519
H31: 13 | J31: 105.7768767 | K31: 2943.664375 | L31: 2.943664375 | T31: 13 | V31: 233.1957025 | W31: 6.489602481 | X31: 3.244801241 | Z31: 135 | AA31: 27 | AB31: 33.44967667 | AC31: 27 | AD31: 1.022292021 | AE31: 35.1463028 | AF31: 1.791428225 | AH31: 14.96229286 | AI31: 0.4637086189 | AJ31: 15.17267381
H32: 14 | J32: 112.2860365 | K32: 2922.618205 | L32: 2.922618205 | T32: 14 | V32: 247.5457961 | W32: 6.443204095 | X32: 3.221602048 | Z32: 142 | AA32: 28 | AB32: 34.48985333 | AC32: 28 | AD32: 1.040176659 | AE32: 36.99066699 | AF32: 1.844364185 | AH32: 15.4341139 | AI32: 0.4718210375 | AJ32: 15.64449484
H33: 15 | J33: 118.501898 | K33: 2870.321672 | L33: 2.870321672 | T33: 15 | V33: 261.2492843 | W33: 6.327911157 | X33: 3.163955579 | Z33: 149 | AA33: 29 | AB33: 35.54791463 | AC33: 29 | AD33: 1.058061297 | AE33: 38.88838303 | AF33: 1.897716049 | AH33: 15.91404736 | AI33: 0.479933456 | AJ33: 16.1244283
H34: 16 | J34: 124.3891594 | K34: 2789.000848 | L34: 2.789000848 | T34: 16 | V34: 274.2283408 | W34: 6.14863127 | X34: 3.074315635 | Z34: =Z33+7 -> 156 | AA34: 30 | AB34: 36.62386057 | AC34: 30 | AD34: 1.075945935 | AE34: 40.83981316 | AF34: 1.951430128 | AH34: 16.40209323 | AI34: 0.4880458745 | AJ34: 16.61247417
H35: 17 | J35: 129.9207781 | K35: 2681.995027 | L35: 2.681995027 | T35: 17 | V35: 286.4233475 | W35: 5.912726236 | X35: 2.956363118 | Z35: =Z34+7 -> 163 | AA35: 31 | AB35: 37.71769114 | AC35: 31 | AD35: 1.093830573 | AE35: 42.84526279 | AF35: 2.005449623 | AH35: 16.89825153 | AI35: 0.4961582931 | AJ35: 17.10863247
H36: 18 | J36: 135.0783009 | K36: 2553.474283 | L36: 2.553474283 | T36: 18 | V36: 297.7936221 | W36: 5.629389405 | X36: 2.814694702 | Z36: =Z35+7 -> 170 | AA36: 32 | AB36: 38.82940635 | AC36: 32 | AD36: 1.111715211 | AE36: 44.90497736 | AF36: 2.059714569 | AH36: 17.40252224 | AI36: 0.5042707116 | AJ36: 17.61290318
H37: 19 | J37: 139.8517282 | K37: 2408.11223 | L37: 2.40811223 | T37: 19 | V37: 308.31712 | W37: 5.308924223 | X37: 2.654462111 | Z37: =Z36+7 -> 177 | AA37: 33 | AB37: 39.9590062 | AC37: 33 | AD37: 1.129599849 | AE37: 47.01913914 | AF37: 2.114161787 | AH37: 17.91490537 | AI37: 0.5123831301 | AJ37: 18.12528631
H38: 20 | J38: 144.2389736 | K38: 2250.755118 | L38: 2.250755118 | T38: 20 | V38: 317.9892412 | W38: 4.962014734 | X38: 2.481007367 | AA38: 34 | AB38: 41.10649069 | AC38: 34 | AD38: 1.147484487 | AE38: 49.18786397 | AF38: 2.168724825 | AH38: 18.43540092 | AI38: 0.5204955487 | AJ38: 18.64578186
AA39: 35 | AB39: 42.27185981 | AC39: 35 | AD39: 1.165369124 | AE39: 51.41119788 | AF39: 2.223333914 | AH39: 18.96400888 | AI39: 0.5286079672 | AJ39: 19.17438983
AA40: 36 | AB40: 43.45511357 | AC40: 36 | AD40: 1.183253762 | AE40: 53.68911379 | AF40: 2.277915907 | AH40: 19.50072927 | AI40: 0.5367203857 | AJ40: 19.71111021
AA41: 37 | AB41: 44.65625197 | AC41: 37 | AD41: 1.2011384 | AE41: 56.02150802 | AF41: 2.33239423 | AH41: 20.04556207 | AI41: 0.5448328043 | AJ41: 20.25594302
AA42: 38 | AB42: 45.87527501 | AC42: 38 | AD42: 1.219023038 | AE42: 52.32304647 | AF42: -3.698461552 | AH42: 20.5985073 | AI42: 0.5529452228 | AJ42: 20.80888824
AA43: 39 | AB43: 47.11218269 | AC43: 39 | AD43: 1.236907676 | AE43: 54.43208886 | AF43: 2.109042394 | AH43: 21.15956494 | AI43: 0.5610576413 | AJ43: 21.36994588
AA44: 40 | AB44: 48.366975 | AC44: 40 | AD44: 1.254792314 | AE44: 56.58332134 | AF44: 2.151232482 | AH44: 21.728735 | AI44: 0.5691700599 | AJ44: 21.93911594
AA45: 41 | AB45: 49.63965195 | AC45: 41 | AD45: 1.272676952 | AE45: 58.77724757 | AF45: 2.193926233 | AH45: 22.30601748 | AI45: 0.5772824784 | AJ45: 22.51639842
AA46: 42 | AB46: 50.93021354 | AC46: 42 | AD46: 1.29056159 | AE46: 61.0143784 | AF46: 2.237130826 | AH46: 22.89141237 | AI46: 0.5853948969 | AJ46: 23.10179331
AA47: 43 | AB47: 52.23865977 | AC47: 43 | AD47: 1.308446228 | AE47: 63.29523184 | AF47: 2.28085344 | AH47: 23.48491969 | AI47: 0.5935073155 | AJ47: 23.69530063
AA48: 44 | AB48: 53.56499064 | AC48: 44 | AD48: 1.326330866 | AE48: 65.62033309 | AF48: 2.325101254 | AH48: 24.08653942 | AI48: 0.601619734 | AJ48: 24.29692036
AA49: 45 | AB49: 54.90920614 | AC49: 45 | AD49: 1.344215503 | AE49: 67.99021454 | AF49: 2.369881446 | AH49: 24.69627158 | AI49: 0.6097321525 | AJ49: 24.90665252
AA50: 46 | AB50: 56.27130628 | AC50: 46 | AD50: 1.362100141 | AE50: 70.40541573 | AF50: 2.415201195 | AH50: 25.31411615 | AI50: 0.6178445711 | AJ50: 25.52449709
AA51: 47 | AB51: 57.65129106 | AC51: 47 | AD51: 1.379984779 | AE51: 72.86648341 | AF51: 2.46106768 | AH51: 25.94007314 | AI51: 0.6259569896 | AJ51: 26.15045408
AA52: 48 | AB52: 59.04916048 | AC52: 48 | AD52: 1.397869417 | AE52: 75.37397149 | AF52: 2.507488079 | AH52: 26.57414254 | AI52: 0.6340694081 | AJ52: 26.78452349
AA53: 49 | AB53: 60.46491453 | AC53: 49 | AD53: 1.415754055 | AE53: 77.92844106 | AF53: 2.554469572 | AH53: 27.21632437 | AI53: 0.6421818267 | AJ53: 27.42670531
AA54: 50 | AB54: 62.42855988 | AC54: 50 | AD54: 1.963645346 | AE54: 81.49630255 | AF54: 3.567861487 | AH54: 27.86661862 | AI54: 0.6502942452 | AJ54: 28.07699956
AA55: 51 | AB55: 64.40397504 | AC55: 51 | AD55: 1.975415162 | AE55: 85.11465568 | AF55: 3.618353125 | AH55: 28.52502528 | AI55: 0.6584066637 | AJ55: 28.73540622
AA56: 52 | AB56: 66.39102694 | AC56: 52 | AD56: 1.987051902 | AE56: 88.78377554 | AF56: 3.669119863 | AH56: 29.19154436 | AI56: 0.6665190822 | AJ56: 29.4019253
AA57: 53 | AB57: 68.38957677 | AC57: 53 | AD57: 1.998549832 | AE57: 92.50392167 | AF57: 3.720146133 | AH57: 29.86617586 | AI57: 0.6746315008 | AJ57: 30.0765568
AA58: 54 | AB58: 70.39947995 | AC58: 54 | AD58: 2.009903173 | AE58: 96.27533741 | AF58: 3.771415738 | AH58: 30.54891978 | AI58: 0.6827439193 | AJ58: 30.75930072
AA59: 55 | AB59: 72.42058605 | AC59: 55 | AD59: 2.021106107 | AE59: 100.0982493 | AF59: 3.822911848 | AH59: 31.23977612 | AI59: 0.6908563378 | AJ59: 31.45015706
AA60: 56 | AB60: 74.45273883 | AC60: 56 | AD60: 2.032152775 | AE60: 103.9728663 | AF60: 3.874616997 | AH60: 31.93874488 | AI60: 0.6989687564 | AJ60: 32.14912582
AA61: 57 | AB61: 76.49577612 | AC61: 57 | AD61: 2.04303729 | AE61: 107.8993793 | AF61: 3.926513084 | AH61: 32.64582605 | AI61: 0.7070811749 | AJ61: 32.85620699
AA62: 58 | AB62: 78.54952985 | AC62: 58 | AD62: 2.053753735 | AE62: 111.8779607 | AF62: 3.978581374 | AH62: 33.36101964 | AI62: 0.7151935934 | AJ62: 33.57140059
AA63: 59 | AB63: 80.61382602 | AC63: 59 | AD63: 2.064296169 | AE63: 115.9087632 | AF63: 4.030802497 | AH63: 34.08432566 | AI63: 0.723306012 | AJ63: 34.2947066
AA64: 60 | AB64: 82.68848466 | AC64: 60 | AD64: 2.074658632 | AE64: 119.9919197 | AF64: 4.08315645 | AH64: 34.81574409 | AI64: 0.7314184305 | AJ64: 35.02612503
AA65: 61 | AB65: 84.77331981 | AC65: 61 | AD65: 2.084835151 | AE65: 124.1275423 | AF65: 4.135622603 | AH65: 35.55527494 | AI65: 0.739530849 | AJ65: 35.76565588
AA66: 62 | AB66: 86.86813955 | AC66: 62 | AD66: 2.094819745 | AE66: 128.315722 | AF66: 4.188179702 | AH66: 36.3029182 | AI66: 0.7476432676 | AJ66: 36.51329915
AA67: 63 | AB67: 88.97274598 | AC67: 63 | AD67: 2.104606429 | AE67: 132.5565278 | AF67: 4.240805875 | AH67: 37.05867389 | AI67: 0.7557556861 | AJ67: 37.26905483
AA68: 64 | AB68: 91.0869352 | AC68: 64 | AD68: 2.114189217 | AE68: =IF(AB68<$R$13,(-0.00011*$AB68^3+0.02188*$AB68^2 + 0.80366*$AB68 - 9.4)*$U$7/1.775,(0.00463*$AB68^2 + 1.68*$AB68 - 22.05)*$U$11/3.069) -> 136.8500065 | AF68: 4.293478636 | AH68: 37.82254199 | AI68: 0.7638681046 | AJ68: 38.03292294
AA69: 65 | AB69: 93.21049733 | AC69: 65 | AD69: =AB69-AB68 -> 2.123562136 | AE69: 141.1961814 | AF69: =AE69-AE68 -> 4.3461749 | AH69: =((0.004404447*(21+AA69)^2+0.08509693*(21+AA69)+2.014352066)/(((0.004404447*((($F$13-$F$7)/($J$7/1000))+21)^2+0.08509693*((($F$13-$F$7)/($J$7/1000))+21)+2.014352066)-(0.004404447*(21)^2+0.08509693*21+2.014352066)))*($F$13-$F$7)) -> 38.59452252 | AI69: 0.7719805232 | AJ69: 38.80490346
AA70: 66 | AB70: =IF(AB69<60,AJ70*2.2046,( -0.0000000283*AB69^3 - 0.0000208677*AB69^2 + 0.0088789486*AB69+ 1.0393148087+($V$11-1.68))+AB69) -> 95.34321656 | AC70: 66 | AD70: 2.132719221 | AE70: 145.5950524 | AF70: 4.398870984 | AH70: 39.37461546 | AI70: =AH70-AH69 -> 0.7800929417 | AJ70: 39.5849964
AA71: 67 | AB71: 97.48487109 | AC71: 67 | AD71: 2.141654531 | AE71: 150.046595 | AF71: 4.451542626 | AH71: 40.16282082 | AI71: 0.7882053602 | AJ71: =AJ70+AI71 -> 40.37320176
AA72: 68 | AB72: 99.63523323 | AC72: 68 | AD72: 2.150362145 | AE72: 154.55076 | AF72: 4.50416499 | AH72: 40.9591386 | AI72: 0.7963177788 | AJ72: 41.16951954
AA73: 69 | AB73: 101.7940694 | AC73: 69 | AD73: 2.158836178 | AE73: 159.1074727 | AF73: 4.556712682 | AH73: 41.7635688 | AI73: 0.8044301973 | AJ73: 41.97394974
AA74: 70 | AB74: 103.9611402 | AC74: 70 | AD74: 2.167070781 | AE74: 163.7166324 | AF74: 4.609159767 | AH74: 42.57611141 | AI74: 0.8125426158 | AJ74: 42.78649235
AA75: 71 | AB75: 106.1362003 | AC75: 71 | AD75: 2.175060148 | AE75: 168.3781122 | AF75: 4.661479782 | AH75: 43.39676645 | AI75: 0.8206550344 | AJ75: 43.60714739
AA76: 72 | AB76: 108.3189989 | AC76: 72 | AD76: 2.182798526 | AE76: 173.091758 | AF76: 4.713645755 | AH76: 44.2255339 | AI76: 0.8287674529 | AJ76: 44.43591484
AA77: 73 | AB77: 110.5092791 | AC77: 73 | AD77: 2.190280217 | AE77: 177.8573882 | AF77: 4.765630222 | AH77: 45.06241377 | AI77: 0.8368798714 | AJ77: 45.27279471
AA78: 74 | AB78: 112.7067787 | AC78: 74 | AD78: 2.19749959 | AE78: 182.6747934 | AF78: 4.817405252 | AH78: 45.90740606 | AI78: 0.8449922899 | AJ78: 46.117787
AA79: 75 | AB79: 114.9112298 | AC79: 75 | AD79: 2.204451082 | AE79: 187.5437359 | AF79: 4.868942463 | AH79: 46.76051077 | AI79: 0.8531047085 | AJ79: 46.97089171
AA80: 76 | AB80: 117.122359 | AC80: 76 | AD80: 2.211129209 | AE80: 192.4639489 | AF80: 4.920213049 | AH80: 47.6217279 | AI80: 0.861217127 | AJ80: 47.83210884
AA81: 77 | AB81: 119.3398875 | AC81: 77 | AD81: 2.217528574 | AE81: 197.4351368 | AF81: 4.971187804 | AH81: 48.49105744 | AI81: 0.8693295455 | AJ81: 48.70143838
AA82: 78 | AB82: 121.5635314 | AC82: 78 | AD82: 2.22364387 | AE82: 202.4569739 | AF82: 5.021837147 | AH82: 49.3684994 | AI82: 0.8774419641 | AJ82: 49.57888035
AA83: 79 | AB83: 123.7930013 | AC83: 79 | AD83: 2.229469888 | AE83: 207.5291051 | AF83: 5.072131151 | AH83: 50.25405379 | AI83: 0.8855543826 | AJ83: 50.46443473
AA84: 80 | AB84: 126.0280028 | AC84: 80 | AD84: 2.235001527 | AE84: 212.6511446 | AF84: 5.12203957 | AH84: 51.14772059 | AI84: 0.8936668011 | AJ84: 51.35810153
AA85: 81 | AB85: 128.2682366 | AC85: 81 | AD85: 2.2402338 | AE85: 217.8226765 | AF85: 5.17153187 | AH85: 52.04949981 | AI85: 0.9017792197 | AJ85: 52.25988075
AA86: 82 | AB86: 130.5133985 | AC86: 82 | AD86: 2.245161838 | AE86: 223.0432538 | AF86: 5.220577263 | AH86: 52.95939145 | AI86: 0.9098916382 | AJ86: 53.16977239
AA87: 83 | AB87: 132.7631794 | AC87: 83 | AD87: 2.249780901 | AE87: 228.3123985 | AF87: 5.269144734 | AH87: 53.8773955 | AI87: 0.9180040567 | AJ87: 54.08777644
AA88: 84 | AB88: 135.0172657 | AC88: 84 | AD88: 2.254086385 | AE88: 233.6296016 | AF88: 5.317203081 | AH88: 54.80351198 | AI88: 0.9261164753 | AJ88: 55.01389292
AA89: 85 | AB89: 137.2753396 | AC89: 85 | AD89: 2.258073825 | AE89: 238.9943225 | AF89: 5.364720947 | AH89: 55.73774087 | AI89: 0.9342288938 | AJ89: 55.94812181
AA90: 86 | AB90: 139.5370785 | AC90: 86 | AD90: 2.261738908 | AE90: 244.4059894 | AF90: 5.411666858 | AH90: 56.68008218 | AI90: 0.9423413123 | AJ90: 56.89046313
AA91: 87 | AB91: 141.802156 | AC91: 87 | AD91: 2.265077474 | AE91: 249.8639986 | AF91: 5.45800926 | AH91: 57.63053592 | AI91: 0.9504537309 | AJ91: 57.84091686
AA92: 88 | AB92: 144.0702415 | AC92: 88 | AD92: 2.268085527 | AE92: 255.3677152 | AF92: 5.503716557 | AH92: 58.58910206 | AI92: 0.9585661494 | AJ92: 58.79948301
AA93: 89 | AB93: 146.3410007 | AC93: 89 | AD93: 2.270759241 | AE93: 260.9164723 | AF93: 5.548757152 | AH93: 59.55578063 | AI93: 0.9666785679 | AJ93: 59.76616157
AA94: 90 | AB94: 148.6140957 | AC94: 90 | AD94: 2.273094963 | AE94: 266.5095718 | AF94: 5.593099487 | AH94: 60.53057162 | AI94: 0.9747909865 | AJ94: 60.74095256
AA95: 91 | AB95: 150.8891849 | AC95: 91 | AD95: 2.275089227 | AE95: 272.1462839 | AF95: 5.636712084 | AH95: 61.51347502 | AI95: 0.982903405 | AJ95: 61.72385597
AA96: 92 | AB96: 153.1659237 | AC96: 92 | AD96: 2.276738753 | AE96: 277.8258475 | AF96: 5.679563587 | AH96: 62.50449085 | AI96: 0.9910158235 | AJ96: 62.71487179
AA97: 93 | AB97: 155.4439641 | AC97: 93 | AD97: 2.278040457 | AE97: 283.5474703 | AF97: 5.721622807 | AH97: 63.50361909 | AI97: 0.9991282421 | AJ97: 63.71400003
AA98: 94 | AB98: 157.7229556 | AC98: 94 | AD98: 2.278991454 | AE98: 289.3103291 | AF98: 5.762858764 | AH98: 64.51085975 | AI98: 1.007240661 | AJ98: 64.72124069
AA99: 95 | AB99: 160.0025446 | AC99: 95 | AD99: 2.27958907 | AE99: 295.1135698 | AF99: 5.80324073 | AH99: 65.52621283 | AI99: 1.015353079 | AJ99: 65.73659377
AA100: 96 | AB100: 162.2823755 | AC100: 96 | AD100: 2.279830839 | AE100: 300.9563081 | AF100: 5.842738276
AA101: 97 | AB101: 164.56209 | AC101: 97 | AD101: 2.279714517 | AE101: 306.8376294 | AF101: 5.881321315
AA102: 98 | AB102: 166.8413281 | AC102: 98 | AD102: 2.27923808 | AE102: 312.7565895 | AF102: 5.918960147
AA103: 99 | AB103: 169.1197278 | AC103: 99 | AD103: 2.278399732 | AE103: 318.712215 | AF103: 5.955625508
AA104: 100 | AB104: 171.3969257 | AC104: 100 | AD104: 2.27719791 | AE104: 324.7035037 | AF104: 5.991288607
AA105: 101 | AB105: 173.672557 | AC105: 101 | AD105: 2.275631289 | AE105: 330.7294248 | AF105: 6.02592118
AA106: 102 | AB106: 175.9462558 | AC106: 102 | AD106: 2.273698783 | AE106: 336.7889204 | AF106: 6.059495529
AA107: 103 | AB107: 178.2176553 | AC107: 103 | AD107: 2.271399549 | AE107: 342.8809049 | AF107: 6.091984571
AA108: 104 | AB108: 180.4863883 | AC108: 104 | AD108: 2.268732994 | AE108: 349.0042668 | AF108: 6.123361877
AA109: 105 | AB109: 182.7520871 | AC109: 105 | AD109: 2.265698775 | AE109: 355.1578685 | AF109: 6.153601719
AA110: 106 | AB110: 185.0143839 | AC110: 106 | AD110: 2.2622968 | AE110: 361.3405476 | AF110: 6.182679114
AA111: 107 | AB111: 187.2729111 | AC111: 107 | AD111: 2.258527236 | AE111: 367.5511175 | AF111: 6.210569861
AA112: 108 | AB112: 189.5273017 | AC112: 108 | AD112: 2.254390504 | AE112: 373.7883681 | AF112: 6.237250589
AA113: 109 | AB113: 191.7771889 | AC113: 109 | AD113: 2.249887285 | AE113: 380.0510669 | AF113: 6.262698792
AA114: 110 | AB114: 194.0222075 | AC114: 110 | AD114: 2.24501852 | AE114: 386.3379598 | AF114: 6.286892868
AA115: 111 | AB115: 196.2619929 | AC115: 111 | AD115: 2.239785411 | AE115: 392.6477719 | AF115: 6.309812162
AA116: 112 | AB116: 198.4961823 | AC116: 112 | AD116: 2.23418942 | AE116: 398.9792089 | AF116: 6.331436995
AA117: 113 | AB117: 200.7244146 | AC117: 113 | AD117: 2.228232269 | AE117: 405.3309576 | AF117: 6.351748707
AA118: 114 | AB118: 202.9463305 | AC118: 114 | AD118: 2.221915942 | AE118: 411.7016873 | AF118: 6.370729682
AA119: 115 | AB119: 205.1615732 | AC119: 115 | AD119: 2.21524268 | AE119: 418.0900507 | AF119: 6.388363387
AA120: 116 | AB120: 207.3697882 | AC120: 116 | AD120: 2.208214985 | AE120: 424.4946851 | AF120: 6.404634396
AA121: 117 | AB121: 209.5706238 | AC121: 117 | AD121: 2.200835611 | AE121: 430.9142135 | AF121: 6.419528423
AA122: 118 | AB122: 211.7637313 | AC122: 118 | AD122: 2.19310757 | AE122: 437.3472459 | AF122: 6.433032345
AA123: 119 | AB123: 213.9487655 | AC123: 119 | AD123: 2.185034122 | AE123: 443.7923801 | AF123: 6.445134227
AA124: 120 | AB124: 216.1253842 | AC124: 120 | AD124: 2.176618776 | AE124: 450.2482034 | AF124: 6.455823343
AA125: 121 | AB125: 218.2932495 | AC125: 121 | AD125: 2.167865288 | AE125: 456.7132936 | AF125: 6.465090198
AA126: 122 | AB126: 220.4520272 | AC126: 122 | AD126: 2.158777651 | AE126: 463.1862202 | AF126: 6.472926543
AA127: 123 | AB127: 222.6013873 | AC127: 123 | AD127: 2.149360098 | AE127: 469.6655456 | AF127: 6.479325393
AA128: 124 | AB128: 224.7410044 | AC128: 124 | AD128: 2.139617093 | AE128: 476.1498266 | AF128: 6.484281036
AA129: 125 | AB129: 226.8705577 | AC129: 125 | AD129: 2.129553327 | AE129: 482.6376156 | AF129: 6.487789047
AA130: 126 | AB130: 228.9897314 | AC130: 126 | AD130: 2.119173712 | AE130: 489.1274619 | AF130: 6.489846296
AA131: 127 | AB131: 231.0982148 | AC131: 127 | AD131: 2.108483378 | AE131: 495.6179129 | AF131: 6.49045095
AA132: 128 | AB132: 233.1957025 | AC132: 128 | AD132: 2.097487664 | AE132: =IF(AB132<$R$13,(-0.00011*$AB132^3+0.02188*$AB132^2 + 0.80366*$AB132 - 9.4)*$U$7/1.775,(0.00463*$AB132^2 + 1.68*$AB132 - 22.05)*$U$11/3.069) -> 502.1075154 | AF132: 6.489602481
AA133: 129 | AB133: 235.2818946 | AC133: 129 | AD133: =AB133-AB132 -> 2.086192111 | AE133: 508.594817 | AF133: =AE133-AE132 -> 6.487301664
AA134: 130 | AB134: =IF(AB133<60,AJ134*2.2046,( -0.0000000283*AB133^3 - 0.0000208677*AB133^2 + 0.0088789486*AB133+ 1.0393148087+($V$11-1.68))+AB133) -> 237.356497 | AC134: 130 | AD134: 2.074602459 | AE134: 515.0783676 | AF134: 6.483550574
AA135: 131 | AB135: 239.4192217 | AC135: 131 | AD135: 2.062724638 | AE135: 521.5567202 | AF135: 6.478352586
AA136: 132 | AB136: 241.4697864 | AC136: 132 | AD136: 2.050564759 | AE136: 528.0284326 | AF136: 6.471712364
AA137: 133 | AB137: 243.5079155 | AC137: 133 | AD137: 2.038129109 | AE137: 534.4920684 | AF137: 6.463635854
AA138: 134 | AB138: 245.5333397 | AC138: 134 | AD138: 2.025424143 | AE138: 540.9461987 | AF138: 6.454130274
AA139: 135 | AB139: 247.5457961 | AC139: 135 | AD139: 2.012456474 | AE139: 547.3894028 | AF139: 6.443204095
AA140: 136 | AB140: 249.545029 | AC140: 136 | AD140: 1.999232866 | AE140: 553.8202698 | AF140: 6.430867032
AA141: 137 | AB141: 251.5307892 | AC141: 137 | AD141: 1.985760227 | AE141: 560.2373998 | AF141: 6.417130018
AA142: 138 | AB142: 253.5028348 | AC142: 138 | AD142: 1.972045598 | AE142: 566.639405 | AF142: 6.40200519
AA143: 139 | AB143: 255.460931 | AC143: 139 | AD143: 1.958096145 | AE143: 573.0249109 | AF143: 6.385505862
AA144: 140 | AB144: 257.4048501 | AC144: 140 | AD144: 1.943919151 | AE144: 579.3925574 | AF144: 6.367646501
AA145: 141 | AB145: 259.3343721 | AC145: 141 | AD145: 1.929522006 | AE145: 585.7410001 | AF145: 6.348442702
AA146: 142 | AB146: 261.2492843 | AC146: 142 | AD146: 1.914912197 | AE146: 592.0689112 | AF146: 6.327911157
AA147: 143 | AB147: 263.1493816 | AC147: 143 | AD147: 1.900097303 | AE147: 598.3749809 | AF147: 6.306069626
AA148: 144 | AB148: 265.0344666 | AC148: 144 | AD148: 1.885084981 | AE148: 604.6579178 | AF148: 6.282936903
AA149: 145 | AB149: 266.9043496 | AC149: 145 | AD149: 1.869882957 | AE149: 610.9164506 | AF149: 6.258532783
AA150: 146 | AB150: 268.7588486 | AC150: 146 | AD150: 1.854499022 | AE150: 617.1493286 | AF150: 6.232878029
AA151: 147 | AB151: 270.5977896 | AC151: 147 | AD151: 1.838941015 | AE151: 623.3553229 | AF151: 6.205994329
AA152: 148 | AB152: 272.4210064 | AC152: 148 | AD152: 1.823216821 | AE152: 629.5332272 | AF152: 6.177904265
AA153: 149 | AB153: 274.2283408 | AC153: 149 | AD153: 1.807334357 | AE153: 635.6818584 | AF153: 6.14863127
AA154: 150 | AB154: 276.0196424 | AC154: 150 | AD154: 1.791301565 | AE154: 641.800058 | AF154: 6.118199586
AA155: 151 | AB155: 277.7947688 | AC155: 151 | AD155: 1.775126403 | AE155: 647.8866923 | AF155: 6.086634226
AA156: 152 | AB156: 279.5535856 | AC156: 152 | AD156: 1.758816835 | AE156: 653.9406532 | AF156: 6.053960931
AA157: 153 | AB157: 281.2959664 | AC157: 153 | AD157: 1.742380822 | AE157: 659.9608593 | AF157: 6.020206125
AA158: 154 | AB158: 283.0217927 | AC158: 154 | AD158: 1.725826315 | AE158: 665.9462562 | AF158: 5.985396874
AA159: 155 | AB159: 284.730954 | AC159: 155 | AD159: 1.709161247 | AE159: 671.895817 | AF159: 5.949560839
AA160: 156 | AB160: 286.4233475 | AC160: 156 | AD160: 1.69239352 | AE160: 677.8085433 | AF160: 5.912726236
AA161: 157 | AB161: 288.0988785 | AC161: 157 | AD161: 1.675531004 | AE161: 683.683465 | AF161: 5.874921786
AA162: 158 | AB162: 289.75746 | AC162: 158 | AD162: 1.658581521 | AE162: 689.5196417 | AF162: 5.836176674
AA163: 159 | AB163: 291.3990129 | AC163: 159 | AD163: 1.641552844 | AE163: 695.3161622 | AF163: 5.796520504
AA164: 160 | AB164: 293.0234656 | AC164: 160 | AD164: 1.624452688 | AE164: 701.0721455 | AF164: 5.75598325
AA165: 161 | AB165: 294.6307543 | AC165: 161 | AD165: 1.607288698 | AE165: 706.7867407 | AF165: 5.714595217
AA166: 162 | AB166: 296.2208227 | AC166: 162 | AD166: 1.590068448 | AE166: 712.4591277 | AF166: 5.672386992
AA167: 163 | AB167: 297.7936221 | AC167: 163 | AD167: 1.572799432 | AE167: 718.0885171 | AF167: 5.629389405
AA168: 164 | AB168: 299.3491112 | AC168: 164 | AD168: 1.555489056 | AE168: 723.6741506 | AF168: 5.585633478
AA169: 165 | AB169: 300.8872558 | AC169: 165 | AD169: 1.538144634 | AE169: 729.215301 | AF169: 5.54115039
AA170: 166 | AB170: 302.4080292 | AC170: 166 | AD170: 1.520773379 | AE170: 734.7112724 | AF170: 5.49597143
AA171: 167 | AB171: 303.9114116 | AC171: 167 | AD171: 1.503382401 | AE171: 740.1614003 | AF171: 5.450127955
AA172: 168 | AB172: 305.3973903 | AC172: 168 | AD172: 1.4859787 | AE172: 745.5650517 | AF172: 5.403651353
AA173: 169 | AB173: 306.8659595 | AC173: 169 | AD173: 1.46856916 | AE173: 750.9216247 | AF173: 5.356573001
AA174: 170 | AB174: 308.31712 | AC174: 170 | AD174: 1.451160544 | AE174: 756.2305489 | AF174: 5.308924223
AA175: 171 | AB175: 309.7508795 | AC175: 171 | AD175: 1.433759492 | AE175: 761.4912852 | AF175: 5.260736257
AA176: 172 | AB176: 311.167252 | AC176: 172 | AD176: 1.416372514 | AE176: 766.7033254 | AF176: 5.212040218
AA177: 173 | AB177: 312.566258 | AC177: 173 | AD177: 1.399005986 | AE177: 771.8661925 | AF177: 5.162867057
AA178: 174 | AB178: 313.9479242 | AC178: 174 | AD178: 1.381666151 | AE178: 776.97944 | AF178: 5.113247531
AA179: 175 | AB179: 315.3122833 | AC179: 175 | AD179: 1.364359107 | AE179: 782.0426522 | AF179: 5.063212172
AA180: 176 | AB180: 316.6593741 | AC180: 176 | AD180: 1.347090813 | AE180: 787.0554434 | AF180: 5.012791246
AA181: 177 | AB181: 317.9892412 | AC181: 177 | AD181: 1.329867081 | AE181: 792.0174581 | AF181: 4.962014734
AA182: 178 | AB182: 319.3019347 | AC182: 178 | AD182: 1.312693573 | AE182: 796.9283704 | AF182: 4.910912293
AA183: 179 | AB183: 320.5975105 | AC183: 179 | AD183: 1.295575804 | AE183: 801.7878837 | AF183: 4.859513231
AA184: 180 | AB184: 321.8760297 | AC184: 180 | AD184: 1.278519132 | AE184: 806.5957301 | AF184: 4.807846485
AA185: 181 | AB185: 323.1375584 | AC185: 181 | AD185: 1.261528765 | AE185: 811.3516707 | AF185: 4.755940589
AA186: 182 | AB186: 324.3821682 | AC186: 182 | AD186: 1.244609752 | AE186: 816.0554944 | AF186: 4.703823653
AA187: 183 | AB187: 325.6099352 | AC187: 183 | AD187: 1.227766989 | AE187: 820.7070177 | AF187: 4.651523341
AA188: 184 | AB188: 326.8209404 | AC188: 184 | AD188: 1.211005211 | AE188: 825.3060846 | AF188: 4.59906685
AA189: 185 | AB189: 328.0152694 | AC189: 185 | AD189: 1.194328996 | AE189: 829.8525655 | AF189: 4.546480889
AA190: 186 | AB190: 329.1930121 | AC190: 186 | AD190: 1.177742765 | AE190: 834.3463571 | AF190: 4.493791663
AA191: 187 | AB191: 330.3542629 | AC191: 187 | AD191: 1.161250779 | AE191: 838.787382 | AF191: 4.441024853
AA192: 188 | AB192: 331.4991201 | AC192: 188 | AD192: 1.144857139 | AE192: 843.1755876 | AF192: 4.388205604
AA193: 189 | AB193: 332.6276859 | AC193: 189 | AD193: 1.12856579 | AE193: 847.5109461 | AF193: 4.33535851
AA194: 190 | AB194: 333.7400664 | AC194: 190 | AD194: 1.112380519 | AE194: 851.7934537 | AF194: 4.282507598
AA195: 191 | AB195: 334.8363713 | AC195: 191 | AD195: 1.096304954 | AE195: 856.02313 | AF195: 4.229676321
AA196: 192 | AB196: 335.9167139 | AC196: 192 | AD196: 1.080342567 | AE196: =IF(AB196<$R$13,(-0.00011*$AB196^3+0.02188*$AB196^2 + 0.80366*$AB196 - 9.4)*$U$7/1.775,(0.00463*$AB196^2 + 1.68*$AB196 - 22.05)*$U$11/3.069) -> 860.2000176 | AF196: 4.176887545
AA197: 193 | AB197: 336.9812106 | AC197: 193 | AD197: =AB197-AB196 -> 1.064496678 | AE197: 864.3241811 | AF197: =AE197-AE196 -> 4.124163543
AA198: 194 | AB198: =IF(AB197<60,AJ198*2.2046,( -0.0000000283*AB197^3 - 0.0000208677*AB197^2 + 0.0088789486*AB197+ 1.0393148087+($V$11-1.68))+AB197) -> 338.029981 | AC198: 194 | AD198: 1.04877045 | AE198: 868.3957071 | AF198: 4.071525985
AA199: 195 | AB199: 339.0631479 | AC199: 195 | AD199: 1.033166894 | AE199: 872.414703 | AF199: 4.018995929
AA200: 196 | AB200: 340.0808368 | AC200: 196 | AD200: 1.017688871 | AE200: 876.3812968 | AF200: 3.966593824
AA201: 197 | AB201: 341.0831759 | AC201: 197 | AD201: 1.002339093 | AE201: 880.2956363 | AF201: 3.914339497
... 17 more rows

Sheet (4) Temperature
C1: Step 4: Effects of Effective Environmental Temperature on F/G
C2: Phase
C3: ='(1) Setup'!E5 -> 1 | D3: ='(1) Setup'!F5 -> 2 | E3: ='(1) Setup'!G5 -> 3 | F3: ='(1) Setup'!H5 -> 4 | G3: ='(1) Setup'!I5 -> 5 | H3: ='(1) Setup'!J5 -> 6 | I3: ='(1) Setup'!K5 -> 7 | J3: ='(1) Setup'!L5 -> 8 | K3: ='(1) Setup'!M5 -> 9 | L3: ='(1) Setup'!N5 -> 10 | M3: ='(1) Setup'!O5 ->  | O3: ='(1) Setup'!P5 -> 
A4: Initial Weight, lb | C4: =IF(C3="","",'(1) Setup'!E7) -> 45 | D4: =IF(D3="","",'(1) Setup'!F7) -> 90 | E4: =IF(E3="","",'(1) Setup'!G7) -> 110 | F4: =IF(F3="","",'(1) Setup'!H7) -> 130 | G4: =IF(G3="","",'(1) Setup'!I7) -> 155 | H4: =IF(H3="","",'(1) Setup'!J7) -> 185 | I4: =IF(I3="","",'(1) Setup'!K7) -> 200 | J4: =IF(J3="","",'(1) Setup'!L7) -> 225 | K4: =IF(K3="","",'(1) Setup'!M7) -> 245 | L4: =IF(L3="","",'(1) Setup'!N7) -> 265 | R4: Zhang | V4: PIC
A5: Final Weight, lb | C5: ='(1) Setup'!E9 -> 90 | D5: ='(1) Setup'!F9 -> 110 | E5: ='(1) Setup'!G9 -> 130 | F5: ='(1) Setup'!H9 -> 155 | G5: ='(1) Setup'!I9 -> 185 | H5: ='(1) Setup'!J9 -> 200 | I5: ='(1) Setup'!K9 -> 225 | J5: ='(1) Setup'!L9 -> 245 | K5: ='(1) Setup'!M9 -> 265 | L5: ='(1) Setup'!N9 -> 300 | M5: =IF(M3=11,(AVERAGE('(1) Setup'!O7,'(1) Setup'!O9)),"") ->  | O5: =IF(O3=12,(AVERAGE('(1) Setup'!P7,'(1) Setup'!P9)),"") ->  | Q5: Weight | R5: Winter | S5: Summer | V5: Weight | W5: Temp | Y5: Phase | Z5: Wt | AA5: Requirement | AB5: Adapted from Baker et al. (2004) & Mount (1975) | AL5: Phase | AM5: =C3 -> 1 | AN5: 2 | AO5: 3 | AP5: 4 | AQ5: 5 | AR5: 6 | AS5: 7 | AT5: 8 | AU5: 9 | AV5: 10
A6: Ambient Temperature Requirement | C6: =VLOOKUP(AVERAGE(C4:C5),$V$6:$W$402,2,TRUE) -> 70.8192 | D6: 66.96154 | E6: 66.19234 | F6: 64.827595 | G6: 62.85728 | H6: 61.6459 | I6: 61 | J6: 61 | K6: 61 | L6: 61 | Q6: 7 | R6: 29 | S6: 28 | V6: 7 | W6: 89 | Y6: 1 | Z6: =C5 -> 90 | AA6: =IF(Z6="","",VLOOKUP(Z6,V6:W402,2,TRUE)) -> 68.0399 | AL6: Wt | AM6: =AVERAGE(C4,C5) -> 67.5 | AN6: 100 | AO6: 120 | AP6: 142.5 | AQ6: 170 | AR6: 192.5 | AS6: 212.5 | AT6: 235 | AU6: 255 | AV6: 282.5
A7: Upper Critical Temperature¹ | C7: =IF(C3="","",C8+(C8-C9)) -> 81.32652081 | D7: =IF(D3="","",D8+(D8-D9)) -> 80.30783075 | E7: 79.63869606 | F7: 78.88578422 | G7: 77.88934387 | H7: 77.11349217 | I7: 76.40829982 | J7: 75.61646974 | K7: 74.90018184 | L7: 73.85468096
A8: Estimated Temperature Requirement | C8: =IF(C3="","",((VLOOKUP(C27,$C$90:$E$275,3,TRUE))*(9/5)+32)) -> 75.66132203 | D8: =IF(D3="","",((VLOOKUP(D27,$C$90:$E$275,3,TRUE))*(9/5)+32)) -> 74.2848347 | E8: 73.39826083 | F8: 72.41526886 | G8: 71.13492684 | H8: 70.15173987 | I8: 69.2664695 | J8: 68.28092364 | K8: 67.39593903 | L8: 66.11595363 | Q8: 20 | R8: 26 | S8: 24 | V8: 8 | W8: 89 | Y8: 2 | Z8: =D5 -> 110 | AA8: =IF(Z8="","",VLOOKUP(Z8,V8:W404,2,TRUE)) -> 66.57694 | AB8: Floor | AD8: Air Speed | AF8: Building Insulation | AH8: Evaporative Cooling | AJ8: Radiant Heat | AL8: Est F/G | AM8: ='(2) NE and SID Lysine'!C15 -> 1.917796502 | AN8: ='(2) NE and SID Lysine'!D15 -> 2.083727369 | AO8: ='(2) NE and SID Lysine'!E15 -> 2.200912946 | AP8: ='(2) NE and SID Lysine'!F15 -> 2.349565853 | AQ8: ='(2) NE and SID Lysine'!G15 -> 2.560976213 | AR8: ='(2) NE and SID Lysine'!H15 -> 2.764494883 | AS8: ='(2) NE and SID Lysine'!I15 -> 2.974619852 | AT8: ='(2) NE and SID Lysine'!J15 -> 3.252761914 | AU8: ='(2) NE and SID Lysine'!K15 -> 3.547624982 | AV8: ='(2) NE and SID Lysine'!L15 -> 3.458320581
A9: Lower Critical Temperature¹ | C9: =IF(C3="","",((VLOOKUP(C27,$C$90:$G$275,5,TRUE))*(9/5)+32)) -> 69.99612325 | D9: =IF(D3="","",((VLOOKUP(D27,$C$90:$G$275,5,TRUE))*(9/5)+32)) -> 68.26183865 | E9: 67.15782559 | F9: 65.94475351 | G9: 64.38050981 | H9: 63.18998757 | I9: 62.12463919 | J9: 60.94537753 | K9: 59.89169622 | L9: 58.3772263
A10: Cumulative Days on Feed | C10: =IF(C3="","",C65) -> 24.5410532 | D10: =IF(D3="","",(C10+D65)) -> 34.18286425 | E10: =IF(E3="","",(D10+E65)) -> 43.33048806 | F10: 54.29721902 | G10: 67.08257112 | H10: 73.43176604 | I10: 84.08082088 | J10: 92.78373255 | K10: 101.7729813 | L10: 118.6046512
C11: Select Current Ambient Barn Temperatures | Q11: 25 | R11: 24 | S11: 23 | V11: 9 | W11: 89 | Y11: 3 | Z11: =E5 -> 130 | AA11: =IF(Z11="","",VLOOKUP(Z11,V11:W405,2,TRUE)) -> 65.655175 | AB11: Lying Mat | AC11: 3 | AD11: Still Air | AE11: 0 | AF11: Good | AG11: -1 | AH11: Cooling Cells | AI11: -6 | AJ11: Yes | AK11: 12 | AL11: CP | AM11: 17 | AN11: 17 | AO11: 17 | AP11: 17 | AQ11: 17 | AR11: 17 | AS11: 17 | AT11: 17 | AU11: 17 | AV11: 17
A12: Current Ambient Barn Temperature | M12: Overall F/G | Q12: 30 | R12: 22 | S12: 22 | V12: 10 | W12: 89 | Y12: 4 | Z12: =G5 -> 185 | AA12: =IF(Z12="","",VLOOKUP(Z12,V12:W406,2,TRUE)) -> 61.89377 | AB12: Uncoated Wire | AC12: -5 | AD12: Minumum Ventilation (30 ft/min) | AE12: -4 | AF12: Moderate | AG12: -3 | AH12: Fogger/Mister | AI12: -6 | AJ12: No | AK12: 0 | AL12: Renadiau Pred from Req Temp | AM12: =4.06+(((C6-32)*5/9)*AM13)+((((C6-32)*5/9)^2)*(AM14))+((AM6/2.204)*AM15)+((((C6-32)*5/9)*AM6)*AM16)+(AM11*AM17) -> 2.174905366 | AN12: 2.546672206 | AO12: 2.762433572 | AP12: 2.999624921 | AQ12: 3.278843412 | AR12: 3.499493984 | AS12: 3.69208488 | AT12: 3.910763737 | AU12: 4.105144943 | AV12: 4.372419101
A13: Current F/G | C13: =IF(C12="",0,C36) -> 0 | D13: 0 | E13: 0 | F13: 0 | G13: 0 | H13: 0 | I13: 0 | J13: 0 | K13: 0 | L13: 0 | M13: =SUM(C37:L37)/SUM(C30:L30) -> 2.75 | Q13: 35 | R13: 21 | S13: 20 | V13: 11 | W13: 89 | Y13: 5 | Z13: =G5 -> 185 | AA13: =IF(Z13="","",VLOOKUP(Z13,V13:W407,2,TRUE)) -> 61.89377 | AB13: Plastic Coated Wire | AC13: -3 | AD13: Stage 2 Ventilation (90 ft/min) | AE13: -7 | AF13: Poor | AG13: -13 | AH13: Dripper | AI13: -10 | AL13: Temp Coeffic | AM13: =-1.5*10^-1 -> -0.15 | AN13: =-1.5*10^-1 -> -0.15 | AO13: -0.15 | AP13: -0.15 | AQ13: -0.15 | AR13: -0.15 | AS13: -0.15 | AT13: -0.15 | AU13: -0.15 | AV13: -0.15
Q14: 40 | R14: 20 | S14: 19 | V14: 12 | W14: 89 | Y14: 6 | Z14: =H5 -> 200 | AA14: =IF(Z14="","",VLOOKUP(Z14,V14:W408,2,TRUE)) -> 61.36262 | AB14: Extruded Plastic | AC14: -3 | AD14: Full Ventilation (300 ft/min) | AE14: -10 | AH14: Sprinkler | AI14: -10 | AL14: Temp Squared Coeff | AM14: =2.89*10^-3 -> 0.00289 | AN14: =2.89*10^-3 -> 0.00289 | AO14: 0.00289 | AP14: 0.00289 | AQ14: 0.00289 | AR14: 0.00289 | AS14: 0.00289 | AT14: 0.00289 | AU14: 0.00289 | AV14: 0.00289
C15: Select Scenario 1 Ambient Barn Temperatures | V15: 13 | W15: 88.42 | AB15: Dry Concrete Slats | AC15: =-5 -> -5 | AH15: None | AI15: 0 | AL15: Weight, kg Coeffic | AM15: =1.02*10^-2 -> 0.0102 | AN15: =1.02*10^-2 -> 0.0102 | AO15: 0.0102 | AP15: 0.0102 | AQ15: 0.0102 | AR15: 0.0102 | AS15: 0.0102 | AT15: 0.0102 | AU15: 0.0102 | AV15: 0.0102
A16: Scenario 1 Ambient Temperature | M16: Overall F/G | N16: % Change | Q16: 45 | R16: 18 | S16: 17 | V16: 14 | W16: 87.84 | Y16: 7 | Z16: =I5 -> 225 | AA16: =IF(Z16="","",VLOOKUP(Z16,V15:W409,2,TRUE)) -> 61 | AB16: Wet Concrete | AC16: -10 | AL16: T x W Coeffic | AM16: =3.16*10^-4 -> 0.000316 | AN16: =3.16*10^-4 -> 0.000316 | AO16: 0.000316 | AP16: 0.000316 | AQ16: 0.000316 | AR16: 0.000316 | AS16: 0.000316 | AT16: 0.000316 | AU16: 0.000316 | AV16: 0.000316
A17: Scenario 1 F/G | C17: =IF(C16="",0,C42-C43) -> 0 | D17: 0 | E17: 0 | F17: 0 | G17: 0 | H17: 0 | I17: 0 | J17: 0 | K17: 0 | L17: 0 | M17: =SUM(C44:L44)/SUM(C30:L30) -> 0 | N17: =IF(C16="",0,ABS((M13-M17)/M13)) -> 0 | Q17: 50 | R17: 17 | S17: 16 | V17: 15 | W17: 87.26 | Y17: 8 | Z17: =J5 -> 245 | AA17: 61 | AL17: CP Coeffic | AM17: =-4.51*10^-2 -> -0.0451 | AN17: =-4.51*10^-2 -> -0.0451 | AO17: -0.0451 | AP17: -0.0451 | AQ17: -0.0451 | AR17: -0.0451 | AS17: -0.0451 | AT17: -0.0451 | AU17: -0.0451 | AV17: -0.0451
Q18: 55 | R18: 17 | S18: 15 | V18: 16 | W18: 86.68 | Y18: 9 | Z18: =K5 -> 265 | AA18: 61 | AL18: Renadiau Pred from actual temp | AM18: =4.06+(((C12-32)*5/9)*AM13)+((((C12-32)*5/9)^2)*(AM14))+((AM6/2.204)*AM15)+((((C12-32)*5/9)*AM6)*AM16)+(AM11*AM17) -> 6.806535953 | AN18: 6.774366523 | AO18: 6.754569951 | AP18: 6.732298808 | AQ18: 6.705078522 | AR18: 6.682807378 | AS18: 6.663010806 | AT18: 6.640739663 | AU18: 6.620943091 | AV18: 6.593722805
C19: Select Scenario 2 Ambient Barn Temperatures | Q19: 60 | R19: 17 | S19: 15 | V19: 17 | W19: 86.1 | Y19: 10 | Z19: =L5 -> 300 | AA19: 61 | AL19: % Diff | AM19: =1-(AM18/AM12) -> -2.129577985 | AN19: -1.660085781 | AO19: -1.445151992 | AP19: -1.244380209 | AQ19: -1.044952344 | AR19: -0.9096496262 | AS19: -0.8046743296 | AT19: -0.6980672087 | AU19: -0.6128402731 | AV19: -0.5080262556
A20: Scenario 2 Ambient Temperature | M20: Overall F/G | N20: % Change | Q20: 70 | R20: 17 | S20: 15 | V20: 18 | W20: 85.52 | Y20: 11 | Z20: =M5 -> 
A21: Scenario 2 F/G | C21: =IF(C20="",0,C50-C51) -> 0 | D21: 0 | E21: 0 | F21: 0 | G21: 0 | H21: 0 | I21: 0 | J21: 0 | K21: 0 | L21: 0 | M21: =SUM(C52:L52)/SUM(C30:L30) -> 0 | N21: =IF(C20="",0,ABS((M13-M21)/M13)) -> 0 | Q21: 80 | R21: 17 | S21: 15 | V21: 19 | W21: 84.94 | Y21: 12 | Z21: =O5 -> 
Q22: 90 | R22: 17 | S22: 15 | V22: 20 | W22: 84.36
V23: 21 | W23: 83.78
A24: ¹ The upper and lower critical temperatures represent the temperature required to give a range in predicted F/G of approximately 1.5% above and below the estimated temperature requirement. | V24: 22 | W24: 83.2
A25: Current Scenario | V25: 23 | W25: 82.62
A26: Temp in C | C26: =(C12-32)*(5/9) -> -17.77777778 | D26: -17.77777778 | E26: -17.77777778 | F26: -17.77777778 | G26: -17.77777778 | H26: -17.77777778 | I26: -17.77777778 | J26: -17.77777778 | K26: -17.77777778 | L26: -17.77777778 | V26: 24 | W26: 82.04
A27: Average BW, kg | C27: =IF(C3="",0,ROUND((AVERAGE(C4:C5)/2.204),0)) -> 31 | D27: =IF(D3="",0,ROUND((AVERAGE(D4:D5)/2.204),2)) -> 45.37 | E27: 54.45 | F27: 64.66 | G27: 77.13 | H27: 87.34 | I27: 96.42 | J27: 106.62 | K27: 115.7 | L27: 128.18 | V27: 25 | W27: 81.46
A28: Constant | C28: 17 | D28: 17 | E28: 17 | F28: 17 | G28: 17 | H28: 17 | I28: 17 | J28: 17 | K28: 17 | L28: 17 | V28: 26 | W28: 80.88
A29: Renaudeau Predicted F/G | C29: =4.06+(C26*AM13)+((C26^2)*AM14)+(C27*AM15)+((C26*C27)*AM16)+(C28*AM17) -> 7.015398272 | D29: 7.081244805 | E29: 7.122851383 | F29: 7.169635872 | G29: 7.226776183 | H29: 7.273560672 | I29: 7.315167249 | J29: 7.361905916 | K29: 7.403512494 | L29: 7.460698627 | V29: 27 | W29: 80.3
A30: Renaudeau Gain | C30: =IF(C3="",0,(C5-C4)) -> 45 | D30: 20 | E30: 20 | F30: 25 | G30: 30 | H30: 15 | I30: 25 | J30: 20 | K30: 20 | L30: 35 | V30: 28 | W30: 79.72
A31: Renaudeau Feed Intake | C31: =IF(C3="",0,C29*C30) -> 315.6929222 | D31: 141.6248961 | E31: 142.4570277 | F31: 179.2408968 | G31: 216.8032855 | H31: 109.1034101 | I31: 182.8791812 | J31: 147.2381183 | K31: 148.0702499 | L31: 261.124452 | V31: 29 | W31: 79.14
A32: Renadudeau Overall F/G | C32: =SUM(C31:L31)/SUM(C30:L30) -> 7.23229192 | V32: 30 | W32: 78.56
A33: Producer Current F/G | C33: ='(1) Setup'!B21 -> 2.75 | V33: 31 | W33: 78
A34: Difference from Producer to Ren. | C34: =1-C33/C32 -> 0.6197609236 | V34: 32 | W34: 77.75
A35: Adjustment for Renaudeau | C35: =IF(C3="",0,C29*$C$34) -> 4.347869712 | D35: 4.388678821 | E35: 4.414464952 | F35: 4.44346015 | G35: 4.478873482 | H35: 4.50786868 | I35: 4.533654811 | J35: 4.56262161 | K35: 4.588407741 | L35: 4.623849472 | V35: 33 | W35: 77.5
A36: Renaudeau Adjusted F/G | C36: =C29-C35 -> 2.667528559 | D36: =D29-D35 -> 2.692565984 | E36: 2.708386431 | F36: 2.726175722 | G36: 2.747902701 | H36: 2.765691992 | I36: 2.781512439 | J36: 2.799284306 | K36: 2.815104753 | L36: 2.836849155 | V36: 34 | W36: 77.25
A37: Renaudeau Adjusted Intake | C37: =C30*C36 -> 120.0387852 | D37: =D30*D36 -> 53.85131969 | E37: =E30*E36 -> 54.16772862 | F37: =F30*F36 -> 68.15439305 | G37: =G30*G36 -> 82.43708103 | H37: 41.48537988 | I37: 69.53781096 | J37: 55.98568612 | K37: 56.30209505 | L37: 99.28972043 | V37: 35 | W37: 77
A38: Renaudeau Adjusted Overall F/G | C38: =SUM(C37:L37)/SUM(C30:L30) -> 2.75 | V38: 36 | W38: 76.75
A39: Scenario 1 | V39: 37 | W39: 76.5
A40: Temp. in C | C40: =(C16-32)*(5/9) -> -17.77777778 | D40: -17.77777778 | E40: -17.77777778 | F40: -17.77777778 | G40: -17.77777778 | H40: -17.77777778 | I40: -17.77777778 | J40: -17.77777778 | K40: -17.77777778 | L40: -17.77777778 | V40: 38 | W40: 76.25
A41: Avg BW, kg | C41: =C27 -> 31 | D41: =D27 -> 45.37 | E41: 54.45 | F41: 64.66 | G41: 77.13 | H41: 87.34 | I41: 96.42 | J41: 106.62 | K41: 115.7 | L41: 128.18 | V41: 39 | W41: 76
A42: Renaudeau Predicted F/G | C42: =4.06+(C40*AM13)+((C40^2)*AM14)+(C27*AM15)+((C40*C27)*AM16)+(C28*AM17) -> 7.015398272 | D42: 7.081244805 | E42: 7.122851383 | F42: 7.169635872 | G42: 7.226776183 | H42: 7.273560672 | I42: 7.315167249 | J42: 7.361905916 | K42: 7.403512494 | L42: 7.460698627 | V42: 40 | W42: 75.75
A43: Change for Scenario 1 | C43: =IF(C3="",0,C42*$C$34) -> 4.347869712 | D43: 4.388678821 | E43: 4.414464952 | F43: 4.44346015 | G43: 4.478873482 | H43: 4.50786868 | I43: 4.533654811 | J43: 4.56262161 | K43: 4.588407741 | L43: 4.623849472 | V43: 41 | W43: 75.5
A44: Scenario 1 Feed Intake | C44: =C17*C30 -> 0 | D44: 0 | E44: 0 | F44: 0 | G44: 0 | H44: 0 | I44: 0 | J44: 0 | K44: 0 | L44: 0 | V44: 42 | W44: 75.25
A45: Scenario 1 Overall F/G | C45: =SUM(C44:L44)/SUM(C30:L30) -> 0 | V45: 43 | W45: 75
V46: 44 | W46: 74.75
A47: Scenario 2 | V47: 45 | W47: 74.5
A48: Temp. in C | C48: =(C20-32)*(5/9) -> -17.77777778 | D48: -17.77777778 | E48: -17.77777778 | F48: -17.77777778 | G48: -17.77777778 | H48: -17.77777778 | I48: -17.77777778 | J48: -17.77777778 | K48: -17.77777778 | L48: -17.77777778 | V48: 46 | W48: 74.25
A49: Avg BW, kg | C49: =C41 -> 31 | D49: 45.37 | E49: 54.45 | F49: 64.66 | G49: 77.13 | H49: 87.34 | I49: 96.42 | J49: 106.62 | K49: 115.7 | L49: 128.18 | V49: 47 | W49: 74
A50: Renaudeau Predicted F/G | C50: =4.06+(C48*AM13)+((C48^2)*AM14)+(C27*AM15)+((C48*C27)*AM16)+(C28*AM17) -> 7.015398272 | D50: 7.081244805 | E50: 7.122851383 | F50: 7.169635872 | G50: 7.226776183 | H50: 7.273560672 | I50: 7.315167249 | J50: 7.361905916 | K50: 7.403512494 | L50: 7.460698627 | V50: 48 | W50: 73.75
A51: Change For Scenario 2 | C51: =IF(C3="",0,C50*$C$34) -> 4.347869712 | D51: 4.388678821 | E51: 4.414464952 | F51: 4.44346015 | G51: 4.478873482 | H51: 4.50786868 | I51: 4.533654811 | J51: 4.56262161 | K51: 4.588407741 | L51: 4.623849472 | V51: 49 | W51: 73.5
A52: Scenario 2 Feed Intake | C52: =C21*C30 -> 0 | D52: 0 | E52: 0 | F52: 0 | G52: 0 | H52: 0 | I52: 0 | J52: 0 | K52: 0 | L52: 0 | V52: 50 | W52: 73.25
A53: Scenario 2 Overall F/G | C53: =SUM(C52:L52)/SUM(C30:L30) -> 0 | V53: 51 | W53: 73
V54: 52 | W54: 72.8637
A55: Days on Feed | C55: =('(1) Setup'!B9-'(1) Setup'!B7)/'(1) Setup'!B19 -> 118.6046512 | V55: 53 | W55: 72.7274
A56: Overall ADG | C56: ='(1) Setup'!B19 -> 2.15 | V56: 54 | W56: 72.5911
A57: NE kcal/kg | C57: =1150/2.204 -> 521.7785844 | D57: =1150/2.204 -> 521.7785844 | E57: 521.7785844 | F57: 521.7785844 | G57: 521.7785844 | H57: 521.7785844 | I57: 521.7785844 | J57: 521.7785844 | K57: 521.7785844 | L57: 521.7785844 | V57: 55 | W57: 72.4548
A58: Avg BW, kg | C58: =IF(C3="",0,(AVERAGE(C4:C5)/2.204)) -> 30.6261343 | D58: 45.37205082 | E58: 54.44646098 | F58: 64.65517241 | G58: 77.13248639 | H58: 87.34119782 | I58: 96.41560799 | J58: 106.6243194 | K58: 115.6987296 | L58: 128.1760436 | V58: 56 | W58: 72.3185
A59: Sues Predicted ADG | C59: =IF(C3="",0,((0.1135*C57+8.8142*C58-0.05068*C58*C58+275.99)/453.6)) -> 1.229323025 | D59: 1.390650763 | E59: 1.465778674 | F59: 1.528303188 | G59: 1.573096125 | H59: 1.583869144 | I59: 1.573894596 | J59: 1.540678845 | K59: 1.491603168 | L59: 1.394079494 | V59: 57 | W59: 72.1822
A60: Gain | C60: =IF(C3="",0,(C5-C4)) -> 45 | D60: 20 | E60: 20 | F60: 25 | G60: 30 | H60: 15 | I60: 25 | J60: 20 | K60: 20 | L60: 35 | V60: 58 | W60: 72.0459
A61: Days on Feed | C61: =IF(C3="",0,(C60/C59)) -> 36.60551301 | D61: 14.38175603 | E61: 13.64462477 | F61: 16.35801077 | G61: 19.07067186 | H61: 9.470479338 | I61: 15.88416407 | J61: 12.98129073 | K61: 13.40839201 | L61: 25.10617231 | V61: 59 | W61: 71.9096
A62: Sues Predicted Days | C62: =SUM(C61:L61) -> 176.9110749 | V62: 60 | W62: 71.7733
A63: % Difference | C63: =1-C55/C62 -> 0.3295804051 | V63: 61 | W63: 71.637
A64: Adjustment | C64: =C61*$C$63 -> 12.06445981 | D64: 4.739944979 | E64: 4.49700096 | F64: 5.391279816 | G64: 6.285319758 | H64: 3.121284417 | I64: 5.23510923 | J64: 4.278379056 | K64: 4.419143271 | L64: 8.274502442 | V64: 62 | W64: 71.5007
A65: Adjusted Days | C65: =C61-C64 -> 24.5410532 | D65: =D61-D64 -> 9.641811051 | E65: 9.147623811 | F65: 10.96673095 | G65: 12.7853521 | H65: 6.349194921 | I65: =I61-I64 -> 10.64905484 | J65: =J61-J64 -> 8.702911669 | K65: =K61-K64 -> 8.98924874 | L65: =L61-L64 -> 16.83166987 | V65: 63 | W65: 71.3644
A66: Gain | C66: =C60 -> 45 | D66: =D60 -> 20 | E66: 20 | F66: 25 | G66: 30 | H66: 15 | I66: 25 | J66: 20 | K66: 20 | L66: 35 | V66: 64 | W66: 71.2281
A67: ADG Corrected | C67: =IF(C3="",0,(C66/C65)) -> 1.833662135 | D67: 2.074299102 | E67: 2.186360132 | F67: 2.279621896 | G67: 2.346435183 | H67: 2.362504252 | I67: 2.347626186 | J67: 2.298081465 | K67: 2.224880029 | L67: 2.079413408 | V67: 65 | W67: 71.0918
A68: Total Days | C68: =SUM(C65:L65) -> 118.6046512 | V68: 66 | W68: 70.9555
V69: 67 | W69: 70.8192
V70: 68 | W70: 70.6829
V71: 69 | W71: 70.5466
V72: 70 | W72: 70.4103
V73: 71 | W73: 70.274
V74: 72 | W74: 70.1377
V75: 73 | W75: 70
V76: 74 | W76: 69.8847
V77: 75 | W77: 69.7694
V78: 76 | W78: 69.6541
V79: 77 | W79: 69.5388
V80: 78 | W80: 69.4235
V81: 79 | W81: 69.3082
V82: 80 | W82: 69.1929
V83: 81 | W83: 69.0776
V84: 82 | W84: 68.9623
V85: 83 | W85: 68.847
V86: 84 | W86: 68.7317
V87: 85 | W87: 68.6164
D88: Optimal | E88: Optimal | F88: 1.5% Higher | G88: 1.5% Lower | V88: 86 | W88: 68.5011
C89: Wt | D89: FG | E89: Temp | F89: FG | G89: Temp | H89: % Change | V89: 87 | W89: 68.3858
C90: 15 | D90: =4.06+(E90*$AM$13)+((E90^2)*$AM$14)+(C90*$AM$15)+((E90*C90)*$AM$16)+($C$28*$AM$17) -> 1.621000035 | E90: 25.13141807 | F90: 1.645315035 | G90: 22.23088537 | H90: =(F90-D90)/D90 -> 0.01499999999 | V90: 88 | W90: 68.2705
C91: 16 | D91: 1.63913295 | E91: 25.07787527 | F91: 1.663719941 | G91: 22.16215308 | H91: =(F91-D91)/D91 -> 0.01499999799 | V91: 89 | W91: 68.1552
C92: 17 | D92: 1.657248583 | E92: 25.02247661 | F92: 1.682107311 | G92: 22.08995327 | H92: 0.01499999981 | V92: 90 | W92: 68.0399
C93: 18 | D93: 1.675346943 | E93: 24.96724446 | F93: 1.700477147 | G93: 22.01818927 | H93: 0.01499999991 | V93: 91 | W93: 67.9246
C94: 19 | D94: 1.693428026 | E94: 24.91258005 | F94: 1.718829447 | G94: 21.94810737 | H94: 0.01499999992 | V94: 92 | W94: 67.8093
C95: 20 | D95: 1.711491836 | E95: 24.8571932 | F95: 1.737164211 | G95: 21.87578925 | H95: 0.01499999849 | V95: 93 | W95: 67.694
C96: 21 | D96: 1.729538369 | E96: 24.80232932 | F96: 1.755481441 | G96: 21.80506047 | H96: 0.01499999783 | V96: 94 | W96: 67.5787
C97: 22 | D97: 1.747567621 | E97: 24.74846334 | F97: 1.773781135 | G97: 21.7370751 | H97: 0.01499999982 | V97: 95 | W97: 67.4634
C98: 23 | D98: 1.7655796 | E98: 24.69376251 | F98: 1.792063294 | G98: 21.66692291 | H98: 0.01499999979 | V98: 96 | W98: 67.3481
C99: 24 | D99: 1.783574304 | E99: 24.63906457 | F99: 1.810327918 | G99: 21.59686423 | H99: 0.01499999976 | V99: 97 | W99: 67.2328
C100: 25 | D100: 1.801551731 | E100: 24.58437042 | F100: 1.828575006 | G100: 21.52689763 | H100: 0.01499999974 | V100: 98 | W100: 67.1175
C101: 26 | D101: 1.819511881 | E101: 24.52967967 | F101: 1.846804559 | G101: 21.45702176 | H101: 0.01499999971 | V101: 99 | W101: 67
C102: 27 | D102: 1.837454756 | E102: 24.47499305 | F102: 1.865016577 | G102: 21.38723525 | H102: 0.01499999969 | V102: 100 | W102: 66.96154
C103: 28 | D103: 1.855380355 | E103: 24.42031044 | F103: 1.88321106 | G103: 21.31753682 | H103: 0.01499999968 | V103: 101 | W103: 66.92308
C104: 29 | D104: 1.873288677 | E104: 24.36563284 | F104: 1.901388007 | G104: 21.24792518 | H104: 0.01499999967 | V104: 102 | W104: 66.88462
C105: 30 | D105: 1.891179724 | E105: 24.31095933 | F105: 1.919547419 | G105: 21.1783991 | H105: 0.01499999967 | V105: 103 | W105: 66.84616
C106: 31 | D106: 1.909053494 | E106: 24.25629002 | F106: 1.937689296 | G106: 21.10895736 | H106: 0.01499999968 | V106: 104 | W106: 66.8077
C107: 32 | D107: 1.926909988 | E107: 24.20175727 | F107: 1.955813637 | G107: 21.03896108 | H107: 0.01499999985 | V107: 105 | W107: 66.76924
C108: 33 | D108: 1.944749206 | E108: 24.14720799 | F108: 1.973920444 | G108: 20.96992851 | H108: 0.01499999994 | V108: 106 | W108: 66.73078
C109: 34 | D109: 1.962571147 | E109: 24.09264726 | F109: 1.992009715 | G109: 20.90095392 | H109: 0.01499999999 | V109: 107 | W109: 66.69232
C110: 35 | D110: 1.980375813 | E110: 24.03807453 | F110: 2.01008145 | G110: 20.83203512 | H110: 0.015 | V110: 108 | W110: 66.65386
C111: 36 | D111: 1.998163203 | E111: 23.98348726 | F111: 2.028135651 | G111: 20.76316595 | H111: 0.01499999999 | V111: 109 | W111: 66.6154
C112: 37 | D112: 2.015933316 | E112: 23.92888546 | F112: 2.046172316 | G112: 20.69434537 | H112: 0.01499999996 | V112: 110 | W112: 66.57694
C113: 38 | D113: 2.033686154 | E113: 23.8742688 | F113: 2.064191446 | G113: 20.62557173 | H113: 0.01499999993 | V113: 111 | W113: 66.53848
C114: 39 | D114: 2.051421715 | E114: 23.81963673 | F114: 2.082193041 | G114: 20.5568429 | H114: 0.0149999999 | V114: 112 | W114: 66.50002
C115: 40 | D115: 2.06914 | E115: 23.76499013 | F115: 2.1001771 | G115: 20.48815965 | H115: 0.01499999989 | V115: 113 | W115: 66.46156
C116: 41 | D116: 2.086841009 | E116: 23.71033075 | F116: 2.118143624 | G116: 20.41952454 | H116: 0.01499999988 | V116: 114 | W116: 66.4231
C117: 42 | D117: 2.104524742 | E117: 23.65565741 | F117: 2.136092613 | G117: 20.35093428 | H117: 0.01499999988 | V117: 115 | W117: 66.38464
C118: 43 | D118: 2.122191199 | E118: 23.60097366 | F118: 2.154024067 | G118: 20.28239505 | H118: 0.01499999989 | V118: 116 | W118: 66.34618
C119: 44 | D119: 2.139840379 | E119: 23.54627927 | F119: 2.171937985 | G119: 20.21390549 | H119: 0.01499999991 | V119: 117 | W119: 66.30772
C120: 45 | D120: 2.157472284 | E120: 23.49157483 | F120: 2.189834368 | G120: 20.14546592 | H120: 0.01499999993 | V120: 118 | W120: 66.26926
C121: 46 | D121: 2.175086912 | E121: 23.43686349 | F121: 2.207713216 | G121: 20.07708176 | H121: 0.01499999995 | V121: 119 | W121: 66.2308
C122: 47 | D122: =4.06+(E122*$AM$13)+((E122^2)*$AM$14)+(C122*$AM$15)+((E122*C122)*$AM$16)+($C$28*$AM$17) -> 2.192684264 | E122: 23.38214403 | F122: 2.225574528 | G122: 20.00874973 | H122: 0.01499999998 | V122: 120 | W122: 66.19234
C123: 48 | D123: 2.210264341 | E123: 23.32742031 | F123: 2.243418306 | G123: 19.94047674 | H123: 0.01499999999 | V123: 121 | W123: 66.15388
C124: 49 | D124: 2.22782714 | E124: 23.27269141 | F124: 2.261244548 | G124: 19.87226016 | H124: 0.015 | V124: 122 | W124: 66.11542
C125: 50 | D125: 2.245372664 | E125: 23.2179608 | F125: 2.279053254 | G125: 19.80410611 | H125: 0.015 | V125: 123 | W125: 66.07696
C126: 51 | D126: 2.262900912 | E126: 23.16322895 | F126: 2.296844426 | G126: 19.7360148 | H126: 0.01499999999 | V126: 124 | W126: 66.0385
C127: 52 | D127: 2.280411884 | E127: 23.10849643 | F127: 2.314618062 | G127: 19.66798656 | H127: 0.01499999997 | V127: 125 | W127: 66
C128: 53 | D128: 2.297905579 | E128: 23.05423427 | F128: 2.332374163 | G128: 19.6004527 | H128: 0.01499999992 | V128: 126 | W128: 65.931035
C129: 54 | D129: 2.315381999 | E129: 22.99903379 | F129: 2.350112729 | G129: 19.53212533 | H129: 0.01499999991 | V129: 127 | W129: 65.86207
C130: 55 | D130: 2.332841142 | E130: 22.94494362 | F130: 2.367833759 | G130: 19.46495681 | H130: 0.01499999988 | V130: 128 | W130: 65.793105
C131: 56 | D131: 2.350283009 | E131: 22.88958171 | F131: 2.385537254 | G131: 19.39653418 | H131: 0.01499999982 | V131: 129 | W131: 65.72414
C132: 57 | D132: 2.3677076 | E132: 22.83563742 | F132: 2.403223214 | G132: 19.32970718 | H132: 0.01499999985 | V132: 130 | W132: 65.655175
C133: 58 | D133: 2.385114915 | E133: 22.78097881 | F133: 2.420891639 | G133: 19.26217301 | H133: 0.01499999984 | V133: 131 | W133: 65.58621
C134: 59 | D134: 2.402504954 | E134: 22.72543712 | F134: 2.438542528 | G134: 19.19366953 | H134: 0.01499999968 | V134: 132 | W134: 65.517245
C135: 60 | D135: 2.419877717 | E135: 22.6716464 | F135: 2.456175882 | G135: 19.12728268 | H135: 0.01499999984 | V135: 133 | W135: 65.44828
C136: 61 | D136: 2.437233203 | E136: 22.61697351 | F136: 2.473791701 | G136: 19.05992524 | H136: 0.01499999984 | V136: 134 | W136: 65.379315
C137: 62 | D137: 2.454571414 | E137: 22.56229624 | F137: 2.491389984 | G137: 18.99262545 | H137: 0.01499999985 | V137: 135 | W137: 65.31035
C138: 63 | D138: 2.471892348 | E138: 22.50761388 | F138: 2.508970733 | G138: 18.9253827 | H138: 0.01499999986 | V138: 136 | W138: 65.241385
C139: 64 | D139: 2.489196006 | E139: 22.45292715 | F139: 2.526533946 | G139: 18.85819639 | H139: 0.01499999987 | V139: 137 | W139: 65.17242
C140: 65 | D140: 2.506482388 | E140: 22.39823563 | F140: 2.544079623 | G140: 18.79106594 | H140: 0.01499999989 | V140: 138 | W140: 65.103455
C141: 66 | D141: 2.523751494 | E141: 22.34353975 | F141: 2.561607766 | G141: 18.72399077 | H141: 0.0149999999 | V141: 139 | W141: 65.03449
C142: 67 | D142: 2.541003323 | E142: 22.28883991 | F142: 2.579118373 | G142: 18.6569703 | H142: 0.01499999992 | V142: 140 | W142: 64.965525
C143: 68 | D143: 2.558237877 | E143: 22.23413613 | F143: 2.596611445 | G143: 18.59000399 | H143: 0.01499999994 | V143: 141 | W143: 64.89656
C144: 69 | D144: 2.575455155 | E144: 22.17867222 | F144: 2.614086982 | G144: 18.52195821 | H144: 0.01499999963 | V144: 142 | W144: 64.827595
C145: 70 | D145: 2.592655157 | E145: 22.12402844 | F145: 2.631544983 | G145: 18.45515359 | H145: 0.01499999967 | V145: 143 | W145: 64.75863
C146: 71 | D146: 2.609837882 | E146: 22.06938915 | F146: 2.648985449 | G146: 18.38841048 | H146: 0.01499999971 | V146: 144 | W146: 64.689665
C147: 72 | D147: 2.627003331 | E147: 22.01475303 | F147: 2.66640838 | G147: 18.32172574 | H147: 0.01499999975 | V147: 145 | W147: 64.6207
C148: 73 | D148: 2.644151504 | E148: 21.9601219 | F148: 2.683813776 | G148: 18.2551025 | H148: 0.01499999979 | V148: 146 | W148: 64.551735
C149: 74 | D149: 2.6612824 | E149: 21.90549403 | F149: 2.701201636 | G149: 18.1885368 | H149: 0.01499999983 | V149: 147 | W149: 64.48277
C150: 75 | D150: 2.678396021 | E150: 21.85086914 | F150: 2.718571961 | G150: 18.12202759 | H150: 0.01499999987 | V150: 148 | W150: 64.413805
C151: 76 | D151: 2.695492366 | E151: 21.79624672 | F151: 2.735924751 | G151: 18.05557334 | H151: 0.01499999991 | V151: 149 | W151: 64.34484
C152: 77 | D152: 2.712571434 | E152: 21.74162602 | F152: 2.753260005 | G152: 17.98917212 | H152: 0.01499999994 | V152: 150 | W152: 64.275875
C153: 78 | D153: 2.729633226 | E153: 21.68700618 | F153: 2.770577725 | G153: 17.92282171 | H153: 0.01499999996 | V153: 151 | W153: 64.20691
C154: 79 | D154: =4.06+(E154*$AM$13)+((E154^2)*$AM$14)+(C154*$AM$15)+((E154*C154)*$AM$16)+($C$28*$AM$17) -> 2.746677743 | E154: 21.63238767 | F154: 2.787877909 | G154: 17.85652258 | H154: 0.01499999998 | V154: 152 | W154: 64.137945
C155: 80 | D155: 2.763704983 | E155: 21.57776943 | F155: 2.805160557 | G155: 17.7902722 | H155: =(F155-D155)/D155 -> 0.01499999999 | V155: 153 | W155: 64.06898
C156: 81 | D156: 2.780714947 | E156: 21.52315108 | F156: 2.822425671 | G156: 17.72406935 | H156: 0.015 | V156: 154 | W156: 64
C157: 82 | D157: 2.797707635 | E157: 21.46853173 | F157: 2.839673249 | G157: 17.65791179 | H157: 0.015 | V157: 155 | W157: 63.92858
C158: 83 | D158: 2.814683046 | E158: 21.41391149 | F158: 2.856903292 | G158: 17.59179933 | H158: 0.01499999999 | V158: 156 | W158: 63.85716
C159: 84 | D159: 2.831641182 | E159: 21.3592901 | F159: 2.8741158 | G159: 17.52573102 | H159: 0.01499999999 | V159: 157 | W159: 63.78574
C160: 85 | D160: 2.848582042 | E160: 21.30466553 | F160: 2.891310772 | G160: 17.45970238 | H160: 0.01499999997 | V160: 158 | W160: 63.71432
C161: 86 | D161: 2.865505625 | E161: 21.25003961 | F161: 2.908488209 | G161: 17.39371666 | H161: 0.01499999995 | V161: 159 | W161: 63.6429
C162: 87 | D162: 2.882411932 | E162: 21.19541104 | F162: 2.925648111 | G162: 17.32777087 | H162: 0.01499999993 | V162: 160 | W162: 63.57148
C163: 88 | D163: 2.899300964 | E163: 21.14077899 | F163: 2.942790478 | G163: 17.26186295 | H163: 0.01499999991 | V163: 161 | W163: 63.50006
C164: 89 | D164: 2.916172719 | E164: 21.08614456 | F164: 2.959915309 | G164: 17.19599469 | H164: 0.01499999989 | V164: 162 | W164: 63.42864
C165: 90 | D165: 2.933027198 | E165: 21.03150585 | F165: 2.977022605 | G165: 17.13016192 | H165: 0.01499999987 | V165: 163 | W165: 63.35722
C166: 91 | D166: 2.9498644 | E166: 20.97686358 | F166: 2.994112366 | G166: 17.0643657 | H166: 0.01499999985 | V166: 164 | W166: 63.2858
C167: 92 | D167: 2.966684327 | E167: 20.92221818 | F167: 3.011184592 | G167: 16.99860654 | H167: 0.01499999983 | V167: 165 | W167: 63.21438
C168: 93 | D168: 2.983486978 | E168: 20.86756813 | F168: 3.028239282 | G168: 16.93288098 | H168: 0.01499999981 | V168: 166 | W168: 63.14296
C169: 94 | D169: 3.000272352 | E169: 20.81291388 | F169: 3.045276437 | G169: 16.86718958 | H169: 0.0149999998 | V169: 167 | W169: 63.07154
C170: 95 | D170: 3.01704045 | E170: 20.75825584 | F170: 3.062296057 | G170: 16.80153284 | H170: 0.01499999979 | V170: 168 | W170: 63.00012
C171: 96 | D171: 3.033791273 | E171: 20.70359417 | F171: 3.079298141 | G171: 16.73591066 | H171: 0.01499999978 | V171: 169 | W171: 62.9287
C172: 97 | D172: 3.050524819 | E172: 20.64892781 | F172: 3.09628269 | G172: 16.67032063 | H172: 0.01499999977 | V172: 170 | W172: 62.85728
C173: 98 | D173: 3.067241089 | E173: 20.5930506 | F173: 3.113249704 | G173: 16.60379212 | H173: 0.0149999995 | V173: 171 | W173: 62.78586
C174: 99 | D174: 3.083940083 | E174: 20.53840924 | F174: 3.130199183 | G174: 16.53827425 | H174: 0.01499999955 | V174: 172 | W174: 62.71444
C175: 100 | D175: 3.100621801 | E175: 20.48377293 | F175: 3.147131126 | G175: 16.47279689 | H175: 0.01499999959 | V175: 173 | W175: 62.64302
C176: 101 | D176: 3.117286242 | E176: 20.4291429 | F176: 3.164045534 | G176: 16.4073597 | H176: 0.01499999964 | V176: 174 | W176: 62.5716
C177: 102 | D177: 3.133933407 | E177: 20.3745184 | F177: 3.180942407 | G177: 16.34196236 | H177: 0.0149999997 | V177: 175 | W177: 62.50018
C178: 103 | D178: 3.150563296 | E178: 20.31989902 | F178: 3.197821745 | G178: 16.27660457 | H178: 0.01499999975 | V178: 176 | W178: 62.42876
C179: 104 | D179: 3.167175909 | E179: 20.26528416 | F179: 3.214683547 | G179: 16.21128599 | H179: 0.0149999998 | V179: 177 | W179: 62.35734
C180: 105 | D180: 3.183771246 | E180: 20.21067434 | F180: 3.231527814 | G180: 16.14600634 | H180: 0.01499999985 | V180: 178 | W180: 62.28592
C181: 106 | D181: 3.200349307 | E181: 20.15606869 | F181: 3.248354546 | G181: 16.08076529 | H181: 0.0149999999 | V181: 179 | W181: 62.2145
C182: 107 | D182: 3.216910092 | E182: 20.10146732 | F182: 3.265163743 | G182: 16.01556256 | H182: 0.01499999994 | V182: 180 | W182: 62.14308
C183: 108 | D183: 3.2334536 | E183: 20.04686917 | F183: 3.281955404 | G183: 15.95039785 | H183: 0.01499999997 | V183: 181 | W183: 62.07166
C184: 109 | D184: 3.249979833 | E184: 19.99227395 | F184: 3.29872953 | G184: 15.88527086 | H184: 0.01499999999 | V184: 182 | W184: 62
C185: 110 | D185: 3.266488789 | E185: 19.93768142 | F185: 3.315486121 | G185: 15.82018131 | H185: 0.015 | V185: 183 | W185: 61.96459
C186: 111 | D186: =4.06+(E186*$AM$13)+((E186^2)*$AM$14)+(C186*$AM$15)+((E186*C186)*$AM$16)+($C$28*$AM$17) -> 3.282980469 | E186: 19.88309081 | F186: 3.332225176 | G186: 15.75512892 | H186: 0.015 | V186: 184 | W186: 61.92918
C187: 112 | D187: 3.299454873 | E187: 19.82850203 | F187: 3.348946696 | G187: 15.6901134 | H187: 0.01499999999 | V187: 185 | W187: 61.89377
C188: 113 | D188: 3.315912001 | E188: 19.77382859 | F188: 3.365650681 | G188: 15.62538682 | H188: 0.01499999999 | V188: 186 | W188: 61.85836
C189: 114 | D189: 3.332351853 | E189: 19.71911962 | F189: 3.382337131 | G189: 15.56036886 | H189: 0.01499999999 | V189: 187 | W189: 61.82295
C190: 115 | D190: 3.348774429 | E190: 19.66441057 | F190: 3.399006046 | G190: 15.49538679 | H190: 0.015 | V190: 188 | W190: 61.78754
C191: 116 | D191: 3.365179729 | E191: 19.60970227 | F191: 3.415657425 | G191: 15.430442 | H191: 0.015 | V191: 189 | W191: 61.75213
C192: 117 | D192: 3.381567752 | E192: 19.55499371 | F192: 3.432291269 | G192: 15.36553225 | H192: 0.015 | V192: 190 | W192: 61.71672
C193: 118 | D193: 3.3979385 | E193: 19.50028643 | F193: 3.448907577 | G193: 15.30066031 | H193: 0.015 | V193: 191 | W193: 61.68131
C194: 119 | D194: 3.414291971 | E194: 19.4455798 | F194: 3.46550635 | G194: 15.2358247 | H194: 0.01499999999 | V194: 192 | W194: 61.6459
C195: 120 | D195: 3.430628166 | E195: 19.39087423 | F195: 3.482087589 | G195: 15.17102599 | H195: 0.01499999999 | V195: 193 | W195: 61.61049
C196: 121 | D196: 3.446947085 | E196: 19.33617097 | F196: 3.498651291 | G196: 15.10626641 | H196: 0.01499999998 | V196: 194 | W196: 61.57508
C197: 122 | D197: 3.463248728 | E197: 19.28146908 | F197: 3.515197459 | G197: 15.04154385 | H197: 0.01499999997 | V197: 195 | W197: 61.53967
C198: 123 | D198: 3.479533095 | E198: 19.22676994 | F198: 3.531726091 | G198: 14.97686081 | H198: 0.01499999996 | V198: 196 | W198: 61.50426
C199: 124 | D199: 3.495800186 | E199: 19.17207208 | F199: 3.548237188 | G199: 14.91221414 | H199: 0.01499999995 | V199: 197 | W199: 61.46885
C200: 125 | D200: 3.51205 | E200: 19.11737692 | F200: 3.56473075 | G200: 14.84760644 | H200: 0.01499999994 | V200: 198 | W200: 61.43344
... 202 more rows

Sheet (5) Feed Processing
N1: Meal | O1: V-Lookup For Diet Form | P1: Meal | Q1: 1
A2: Step 5: Evaluating Feed Processing Technologies | N2: Pellet | P2: Pellet | Q2: 2
A3: Pellet vs. Meal Diets | F3: Particle Size of Meal Diets
B4: Initial Scenario | C4: Scenario 1 | D4: Scenario 2 | G4: Initial Scenario | H4: Scenario 1 | I4: Scenario 2
A5: Diet form | B5: ='(1) Setup'!B12 -> Pellet | F5: Grain Particle Size, µ | G5: ='(1) Setup'!B13 -> 550
B6: =VLOOKUP(B5,$P$1:$Q$2,2,TRUE) -> 2 | C6: =VLOOKUP(C5,$P$1:$Q$2,2,TRUE) ->  | D6: =VLOOKUP(D5,$P$1:$Q$2,2,TRUE) -> 
A7: Percentage Fines, % | B7: ='(1) Setup'!E12 -> 55 | F7: Overall F/G | G7: ='(1) Setup'!B21 -> 2.75 | H7: =IF(H5="",0,($G$7-H10)) -> 0 | I7: =IF(I5="",0,($G$7-I10)) -> 0
A8: Overall F/G | B8: ='(1) Setup'!B21 -> 2.75 | C8: =$B$8-C11+C13+(IF(C7<$B$7,-C14,C14)) ->  | D8: =$B$8-D11+D13+(IF(D7<$B$7,-D14,D14)) ->  | F8: % Change | H8: =IF(H5="",0,ABS(($G$7-H7)/$G$7)) -> 0 | I8: =IF(I5="",0,ABS(($G$7-I7)/$G$7)) -> 0
A10: Initial F/G | B10: =B8 -> 2.75 | C10: =IF($B$5="Meal",IF(C8>$B$8,$B$10,C8),C8) ->  | D10: =IF($B$5="Meal",IF(D8>$B$8,$B$10,D8),D8) ->  | G10: Change | H10: =($G$5-H5)*0.000302 -> 0.1661 | I10: =($G$5-I5)*0.000302 -> 0.1661
A11: Pellet to Meal Adjust | B11: =B10 -> 2.75 | C11: =IF($B$6-C6>0,$B$8*(-0.0612*(1-B7/60)),0) ->  | D11: =IF($B$6-D6>0,$B$8*(-0.0612*(1-B7/60)),0) -> 
A13: Meal to Pellet Adjust | C13: =IF($B$6-C6<0,$B$8*-0.0612,0) ->  | D13: =IF($B$6-D6<0,$B$8*-0.0612,0) -> 
A14: Fines Adjust | C14: =IF(C5="Pellet",ABS(($B$7-C7)*0.002857),0) -> 0 | D14: =IF(D5="Pellet",ABS(($B$7-D7)*0.002857),0) -> 0
A16: % Change | C16: =ABS(($B$8-C8)/$B$8) ->  | D16: =ABS(($B$8-D8)/$B$8) ->  | N16: Perentage Fines Regression Data | W16: Particle Size Regression Data | AI16: Effect of Pelleting on F/G
N17: Paper | O17: % Change in Fines | P17: % Change in F/G | R17: Perentage Fines Regression Data | W17: Paper | X17: % Change in Grain Micron Size | Y17: % Change in F/G | AB17: Particle Size Regression Data | AI17: Paper | AJ17: Meal F/G | AK17: Pelleting F/G | AL17: % Change
N18: Nemecheck et al. (2012) | O18: 0 | P18: 0 | W18: De Jong et al. (2014) | X18: 0 | Y18: 0 | AI18: De Jong et al. (2013) | AJ18: 2.7 | AK18: 2.56 | AL18: 5.13
N19: Nemecheck et al. (2012) | O19: 41 | P19: 0.069 | W19: De Jong et al. (2014) | X19: 253 | Y19: -0.0147 | AI19: Potter et al. (2009) | AJ19: 2.12 | AK19: 2.07 | AL19: 2.36
N20: Schell and Van Heugten (1998) | O20: 0 | P20: 0 | W20: De Jong et al. (2014) | X20: 402 | Y20: -0.0366 | AI20: Potter et al. (2009) | AJ20: 2.83 | AK20: 2.68 | AL20: 5.3
N21: Schell and Van Heugten (1998) | O21: 0 | P21: 0 | W21: Nemechek et al. (2013) | X21: 0 | Y21: 0 | AI21: Wondra et al. (1995a) | AJ21: 3.37 | AK21: 3.14 | AL21: 6.6
N22: Schell and Van Heugten (1998) | O22: 9 | P22: 0.034 | W22: Nemechek et al. (2013) | X22: 300 | Y22: -0.0269 | AI22: Wondra et al. (1995b) | AJ22: 3.35 | AK22: 3.16 | AL22: 5.67
N23: Schell and Van Heugten (1998) | O23: 10.5 | P23: 0.01 | W23: De Jong et al. (2012) | X23: 0 | Y23: 0 | AI23: Stark et al. (1994) | AJ23: 2.77 | AK23: 2.65 | AL23: 4.33
N24: Schell and Van Heugten (1998) | O24: 20 | P24: 0.038 | W24: De Jong et al. (2012) | X24: 325 | Y24: -0.0394 | AI24: Skoch et al. (1983) | AJ24: 3.1 | AK24: 2.91 | AL24: 6.1
N25: Schell and Van Heugten (1998) | O25: 22.5 | P25: 0.03 | W25: Mavromichalis et al. (2000) | X25: 0 | Y25: 0 | AI25: Baird (1973) | AJ25: 3.7 | AK25: 3.42 | AL25: 7.53
N26: Schell and Van Heugten (1998) | O26: 34 | P26: 0.043 | W26: Mavromichalis et al. (2000) | X26: 208 | Y26: -0.0323 | AI26: Harris et al. (1979) | AJ26: 3.83 | AK26: 3.55 | AL26: 7.45
N27: Schell and Van Heugten (1998) | O27: 37.5 | P27: 0.04 | W27: Mavromichalis et al. (2000) | X27: 222 | Y27: -0.1034 | AI27: Tribble et al. (1975) | AJ27: 3.77 | AK27: 3.44 | AL27: 8.93
N28: Stark et al. (1994) | O28: 0 | P28: 0 | W28: Mavromichalis et al. (2000) | X28: 882 | Y28: -0.1429 | AI28: Tribble et al.(1975) | AJ28: 4.1 | AK28: 3.66 | AL28: 10.62
N29: Stark et al. (1994) | O29: 20 | P29: 0.047 | W29: Wondra et al. (1995) | X29: 0 | Y29: 0 | AI29: Hanke et al. (1972) | AJ29: 3.45 | AK29: 3.23 | AL29: 6.45
N30: Stark et al. (1994) | O30: 40 | P30: 0.043 | W30: Wondra et al. (1995) | X30: 600 | Y30: -0.0508 | AI30: NCR 42 (1969) | AJ30: 3.23 | AK30: 3.13 | AL30: 3.13
N31: Stark et al. (1994) | O31: 60 | P31: 0.06 | W31: Wondra et al. (1995) | X31: 400 | Y31: -0.058 | AK31: Average | AL31: =AVERAGE(AL18:AL30) -> 6.123076923
W32: Wondra et al. (1995) | X32: 200 | Y32: -0.0653
W33: Goodband and Hines (1987) | X33: 0 | Y33: 0
W34: Goodband and Hines (1987) | X34: 188 | Y34: -0.0723
W35: Goodband and Hines (1987) | X35: 412 | Y35: -0.0994
W36: Paulk et al. (2015) | X36: 0 | Y36: 0
W37: Paulk et al. (2015) | X37: 151 | Y37: -0.0110701107
W38: Paulk et al. (2015) | X38: 254 | Y38: -0.02651515152

Sheet (6) Floor Space
A1: Step 6: Effects of Floor Space on F/G
B2: Initial | C2: Scenario 1 | D2: Scenario 2 | E2: Scenario 3 | F2: Scenario 4 | G2: Scenario 5
A3: Initial BW, lb | B3: ='(1) Setup'!B7 -> 45 | C3: =$B$3 -> 45 | D3: =$B$3 -> 45 | E3: =$B$3 -> 45 | F3: =$B$3 -> 45 | G3: =$B$3 -> 45
A4: Final BW, lb | B4: ='(1) Setup'!B9 -> 300 | C4: =$B$4 -> 300 | D4: =$B$4 -> 300 | E4: =$B$4 -> 300 | F4: =$B$4 -> 300 | G4: =$B$4 -> 300
A5: Initial BW, kg | B5: =B3/2.204 -> 20.41742287 | C5: =C3/2.204 -> 20.41742287 | D5: 20.41742287 | E5: 20.41742287 | F5: 20.41742287 | G5: 20.41742287
A6: Final BW, kg | B6: =B4/2.204 -> 136.1161525 | C6: =C4/2.204 -> 136.1161525 | D6: 136.1161525 | E6: 136.1161525 | F6: 136.1161525 | G6: 136.1161525
A7: Floor Space/Pig, ft2 | B7: ='(1) Setup'!B17 -> 7.8 | E7: 5.5 | F7: 8 | G7: 7.5
A8: Floor Space/Pig, m2 | B8: =B7*0.092903 -> 0.7246434 | C8: =C7*0.092903 -> 0 | D8: 0 | E8: 0.5109665 | F8: 0.743224 | G8: 0.6967725
A9: Final BW(kg)^.667 | B9: =B4^0.667 -> 44.89933171 | C9: =C4^0.667 -> 44.89933171 | D9: =D4^0.667 -> 44.89933171 | E9: =#REF!^0.667 ->  | F9: =#REF!^0.667 ->  | G9: =#REF!^0.667 -> 
A10: Initial K value | B10: =B8/B9 -> 0.01613929144 | C10: 0 | D10: 0
A11: Josh Intiail Value for ADG | B11: =358.39+(16339*B10)-(234934*(B10^2))-(3.0944*B5)+(71.3992*B10*B5)+(2.357*B6) -> 842.0688011 | C11: 616.036098 | D11: 616.036098
A12: Josh Intiail Value for ADFI | B12: =863.24+(24575*B10)-(379789*(B10^2))-(2.7272*B5)+(10.9993*B6)+(182.78*B10*B5) -> 2662.667057 | C12: 2304.74 | D12: 2304.74
A13: Josh initial value for F/G | B13: =B12/B11 -> 3.162054043 | C13: =C12/C11 -> 3.7412418 | D13: 3.7412418
A14: Producer Intial F/G | B14: ='(1) Setup'!B21 -> 2.75 | C14: =$B$14 -> 2.75 | D14: =$B$14 -> 2.75 | E14: =$B$14 -> 2.75 | F14: =$B$14 -> 2.75 | G14: =$B$14 -> 2.75
A15: % Change | B15: =1-(B14/B13) -> 0.1303121444 | C15: =$B$15 -> 0.1303121444 | D15: =$B$15 -> 0.1303121444 | E15: =$B$15 -> 0.1303121444 | F15: =$B$15 -> 0.1303121444 | G15: =$B$15 -> 0.1303121444
A16: Overall F/G | B16: =B13-(B13*B15) -> 2.75 | C16: =IF(C7="",0,(C13-(C13*C15))) -> 0 | D16: =IF(D7="",0,(D13-(D13*D15))) -> 0 | E16: =E13-(E13*E15) -> 
A17: % Change | C17: =IF(C7="",0,(ABS(($B$16-C16)/$B$16))) -> 0 | D17: =IF(D7="",0,(ABS(($B$16-D16)/$B$16))) -> 0 | E17: =1-(E16/$B$16) -> 

Sheet (7) Production Management
B3: Step 7: Production Management Changes
F4: Phase
E5: Phase | F5: ='(1) Setup'!E5 -> 1 | G5: ='(1) Setup'!F5 -> 2 | H5: ='(1) Setup'!G5 -> 3 | I5: ='(1) Setup'!H5 -> 4 | J5: ='(1) Setup'!I5 -> 5 | K5: ='(1) Setup'!J5 -> 6 | L5: ='(1) Setup'!K5 -> 7 | M5: ='(1) Setup'!L5 -> 8 | N5: ='(1) Setup'!M5 -> 9 | O5: ='(1) Setup'!N5 -> 10
E6: Intial Weight | F6: =IF(F5="","",'(1) Setup'!E7) -> 45 | G6: =IF(G5="","",'(1) Setup'!F7) -> 90 | H6: =IF(H5="","",'(1) Setup'!G7) -> 110 | I6: =IF(I5="","",'(1) Setup'!H7) -> 130 | J6: =IF(J5="","",'(1) Setup'!I7) -> 155 | K6: =IF(K5="","",'(1) Setup'!J7) -> 185 | L6: =IF(L5="","",'(1) Setup'!K7) -> 200 | M6: =IF(M5="","",'(1) Setup'!L7) -> 225 | N6: =IF(N5="","",'(1) Setup'!M7) -> 245 | O6: =IF(O5="","",'(1) Setup'!N7) -> 265
E7: Final Weight | F7: =IF(F5="","",'(1) Setup'!E9) -> 90 | G7: =IF(G5="","",'(1) Setup'!F9) -> 110 | H7: =IF(H5="","",'(1) Setup'!G9) -> 130 | I7: =IF(I5="","",'(1) Setup'!H9) -> 155 | J7: =IF(J5="","",'(1) Setup'!I9) -> 185 | K7: =IF(K5="","",'(1) Setup'!J9) -> 200 | L7: =IF(L5="","",'(1) Setup'!K9) -> 225 | M7: =IF(M5="","",'(1) Setup'!L9) -> 245 | N7: =IF(N5="","",'(1) Setup'!M9) -> 265 | O7: =IF(O5="","",'(1) Setup'!N9) -> 300 | P7: Initial Overall F/G
B8: Production Change to Evaluate | E8: Initial F/G | F8: ='(2) NE and SID Lysine'!C54 -> 1.976437263 | G8: ='(2) NE and SID Lysine'!D54 -> 2.147441825 | H8: ='(2) NE and SID Lysine'!E54 -> 2.268210603 | I8: ='(2) NE and SID Lysine'!F54 -> 2.421408893 | J8: ='(2) NE and SID Lysine'!G54 -> 2.63928358 | K8: ='(2) NE and SID Lysine'!H54 -> 2.849025272 | L8: ='(2) NE and SID Lysine'!I54 -> 3.065575265 | M8: ='(2) NE and SID Lysine'!J54 -> 3.35222212 | N8: ='(2) NE and SID Lysine'!K54 -> 3.656101262 | O8: ='(2) NE and SID Lysine'!L54 -> 3.582243031 | P8: =SUM(F23:O23)/SUM(F22:O22) -> 2.752494861
B9: Production Change | C9: Expected F/G Response, %
B10: A | C10: 0.05 | F10: Select the change to be used in each phase, Scenario 1
B11: B | C11: 0.025 | E11: Scenario 1 | P11: Overall F/G Scenario 1 | Q11: % Change
C12: A | E12: New F/G | F12: =IF(F11="",F8,(F8-(IF(F11="A",(VLOOKUP(F11,$B$10:$C$11,2,FALSE)*F8),IF(F11="B",VLOOKUP(F11,$B$10:$C$11,2,FALSE)*F8,IF(F11="C",VLOOKUP(F11,$B$10:$C$11,2,FALSE)*F8,IF(F11="D",VLOOKUP(F11,$B$10:$C$11,2,FALSE)*F8,0))))))) -> 1.976437263 | G12: =IF(G11="",G8,(G8-(IF(G11="A",(VLOOKUP(G11,$B$10:$C$14,2,FALSE)*G8),IF(G11="B",VLOOKUP(G11,$B$10:$C$14,2,FALSE)*G8,IF(G11="C",VLOOKUP(G11,$B$10:$C$14,2,FALSE)*G8,IF(G11="D",VLOOKUP(G11,$B$10:$C$14,2,FALSE)*G8,0))))))) -> 2.147441825 | H12: 2.268210603 | I12: 2.421408893 | J12: 2.63928358 | K12: 2.849025272 | L12: 3.065575265 | M12: 3.35222212 | N12: 3.656101262 | O12: 3.582243031 | P12: =SUM(F24:O24)/SUM($F$22:$O$22) -> 2.752494861 | Q12: =ABS((P8-P12)/P8) -> 0
F14: Select the change to be used in each phase, Scenario 2
E15: Scenario 2 | P15: Overall F/G Scenario 2 | Q15: % Change
E16: New F/G | F16: =IF(F15="",F8,(F8-(IF(F15="A",(VLOOKUP(F15,$B$10:$C$14,2,FALSE)*F8),IF(F15="B",VLOOKUP(F15,$B$10:$C$14,2,FALSE)*F8,IF(F15="C",VLOOKUP(F15,$B$10:$C$14,2,FALSE)*F8,IF(F15="D",VLOOKUP(F15,$B$10:$C$14,2,FALSE)*F8,0))))))) -> 1.976437263 | G16: 2.147441825 | H16: 2.268210603 | I16: 2.421408893 | J16: 2.63928358 | K16: 2.849025272 | L16: 3.065575265 | M16: 3.35222212 | N16: 3.656101262 | O16: 3.582243031 | P16: =SUM(F25:O25)/SUM($F$22:$O$22) -> 2.752494861 | Q16: =ABS((P8-P16)/P8) -> 0
E22: Initial Gain | F22: =IF(F5=1,F7-F6,0) -> 45 | G22: =IF(G5=2,G7-G6,0) -> 20 | H22: =IF(H5=3,H7-H6,0) -> 20 | I22: =IF(I5=4,I7-I6,0) -> 25 | J22: =IF(J5=5,J7-J6,0) -> 30 | K22: =IF(K5=6,K7-K6,0) -> 15 | L22: =IF(L5=7,L7-L6,0) -> 25 | M22: =IF(M5=8,M7-M6,0) -> 20 | N22: =IF(N5=9,N7-N6,0) -> 20 | O22: =IF(O5=10,O7-O6,0) -> 35
E23: Intial Feed Intake | F23: =F8*F22 -> 88.93967686 | G23: 42.94883649 | H23: 45.36421205 | I23: 60.53522233 | J23: 79.1785074 | K23: 42.73537908 | L23: 76.63938162 | M23: 67.0444424 | N23: 73.12202523 | O23: 125.3785061
E24: Scenario 1 Intake | F24: =F12*F22 -> 88.93967686 | G24: 42.94883649 | H24: 45.36421205 | I24: 60.53522233 | J24: 79.1785074 | K24: 42.73537908 | L24: 76.63938162 | M24: 67.0444424 | N24: 73.12202523 | O24: 125.3785061
E25: Scenario 2 Intake | F25: =F16*F22 -> 88.93967686 | G25: 42.94883649 | H25: 45.36421205 | I25: 60.53522233 | J25: 79.1785074 | K25: 42.73537908 | L25: 76.63938162 | M25: 67.0444424 | N25: 73.12202523 | O25: 125.3785061

Sheet (8) Mortality
A4: Step 8: Effects of Mortality on F/G
B5: 0% Mortality | C5: Initial | D5: Scenario 1 | E5: Scenario 2 | F5: Scenario 3 | G5: Scenario 4 | H5: Scenario 5 | I5: Scenario 6
A6: Initial BW, lb | B6: ='(1) Setup'!$B$7 -> 45 | C6: ='(1) Setup'!$B$7 -> 45 | D6: ='(1) Setup'!$B$7 -> 45 | E6: ='(1) Setup'!$B$7 -> 45 | F6: ='(1) Setup'!$B$7 -> 45 | G6: ='(1) Setup'!$B$7 -> 45 | H6: ='(1) Setup'!$B$7 -> 45 | I6: ='(1) Setup'!$B$7 -> 45
A7: Final BW, lb | B7: ='(1) Setup'!$B$9 -> 300 | C7: ='(1) Setup'!$B$9 -> 300 | D7: ='(1) Setup'!$B$9 -> 300 | E7: ='(1) Setup'!$B$9 -> 300 | F7: ='(1) Setup'!$B$9 -> 300 | G7: ='(1) Setup'!$B$9 -> 300 | H7: ='(1) Setup'!$B$9 -> 300 | I7: ='(1) Setup'!$B$9 -> 300
A8: Mortality, % | B8: 0 | C8: ='(1) Setup'!B15 -> 0.02 | F8: 0.08 | G8: 0.1 | H8: 0.12 | I8: 0.09 | J8: *Pig mortalites are assumed to have consumed 50% of the feed budget
A9: Overall F/G | B9: =C9 -> 2.75 | C9: ='(1) Setup'!B21 -> 2.75
A11: Start Wt | B11: =B6 -> 45 | C11: =C6 -> 45 | D11: =D6 -> 45 | E11: 45 | F11: 45 | G11: 45 | H11: 45 | I11: 45
A12: Mkt Wt | B12: =B7 -> 300 | C12: =C7 -> 300 | D12: =D7 -> 300 | E12: 300 | F12: 300 | G12: 300 | H12: 300 | I12: 300
A13: Gain | B13: =B12-B11 -> 255 | C13: =C12-C11 -> 255 | D13: =D12-D11 -> 255 | E13: 255 | F13: 255 | G13: 255 | H13: 255 | I13: 255
A14: FG | B14: =$C$9 -> 2.75 | C14: =$C$9 -> 2.75 | D14: 2.75 | E14: 2.75 | F14: 2.75 | G14: 2.75 | H14: 2.75 | I14: 2.75
A15: Fd/pig | B15: =B13*B14 -> 701.25 | C15: =C13*C14 -> 701.25 | D15: =D13*D14 -> 701.25 | E15: 701.25 | F15: 701.25 | G15: 701.25 | H15: 701.25 | I15: 701.25
A16: Pigs Marketed | B16: 1000 | C16: =$B$16*(1-C8) -> 980 | D16: =$B$16*(1-D8) -> 1000 | E16: 1000 | F16: 920 | G16: 900 | H16: 880 | I16: 910
A17: Fd/mkted pigs | B17: =B15*B16 -> 701250 | C17: =C15*C16 -> 687225 | D17: =D15*D16 -> 701250 | E17: 701250 | F17: 645150 | G17: 631125 | H17: 617100 | I17: 638137.5
A18: Fd/dead pig | B18: =B15/2 -> 350.625 | C18: =C15/2 -> 350.625 | D18: 327.75 | E18: 327.75 | F18: 327.75 | G18: 327.75 | H18: 327.75 | I18: 327.75
A19: Fd/dead pigs | C19: =($B$16-C16)*C18 -> 7012.5 | D19: =($B$16-D16)*D18 -> 0 | E19: 0 | F19: 26220 | G19: 32775 | H19: 39330 | I19: 29497.5
A20: Gain/1000 pig | B20: =B13*B16 -> 255000 | C20: =C13*C16 -> 249900 | D20: 255000 | E20: 255000 | F20: 234600 | G20: 229500 | H20: 224400 | I20: 232050
A21: F/G | B21: =B17/B20 -> 2.75 | C21: =SUM(C17,C19)/C20 -> 2.778061224 | D21: 2.75 | E21: 2.75 | F21: 2.861764706 | G21: 2.892810458 | H21: 2.92526738 | I21: 2.877117001
A22: F/G Adjustment, % | C22: =1-(B21/C21) -> 0.0101010101 | D22: =$C$22 -> 0.0101010101 | E22: =$C$22 -> 0.0101010101 | F22: 0.0101010101 | G22: 0.0101010101 | H22: 0.0101010101 | I22: 0.0101010101
A23: Overall F/G | C23: =C21-(C21*C22) -> 2.75 | D23: =IF(D8="",0,(D21-(D21*D22))) -> 0 | E23: =IF(E8="",0,(E21-(E21*E22))) -> 0 | F23: =F21-(F21*F22) -> 2.832857992 | G23: 2.86359015 | H23: 2.895719224 | I23: 2.848055213
A24: % Change | D24: =IF(D8="",0,ABS(($C$23-D23)/$C$23)) -> 0 | E24: =IF(E8="",0,ABS(($C$23-E23)/$C$23)) -> 0 | F24: =1-(F23/$C$23) -> -0.03013017879 | G24: -0.04130550904 | H24: -0.05298880885 | I24: -0.035656441

Sheet Summary
A1: Current Practice | C1: Scenario 1 | E1: Scenario 2
A2: NE and SID lysine | C2: NE and SID lysine
A3: F/G | B3: ='(2) NE and SID Lysine'!M23 -> 2.752494861 | C3: F/G | D3: ='(2) NE and SID Lysine'!M34 -> 0
C4: % Change | D4: ='(2) NE and SID Lysine'!M35 -> 0
A6: Ractopamine | C6: Ractopamine | E6: Ractopamine
A7: Level, g/ton | B7: ='(3) Ractopamine'!N9 -> 9 | C7: Level, g/ton | D7: ='(3) Ractopamine'!O9 -> 0 | E7: Level, g/ton | F7: ='(3) Ractopamine'!P9 -> 0
A8: Duration, d | B8: ='(3) Ractopamine'!N10 -> 17 | C8: Duration, d | D8: ='(3) Ractopamine'!O10 -> 0 | E8: Duration, d | F8: ='(3) Ractopamine'!P10 -> 0
A9: F/G | B9: ='(3) Ractopamine'!N11 -> 2.75 | C9: F/G | D9: ='(3) Ractopamine'!O11 -> 0 | E9: F/G | F9: ='(3) Ractopamine'!P11 -> 0
C10: % Change | D10: ='(3) Ractopamine'!O12 -> 0 | E10: % Change | F10: ='(3) Ractopamine'!P12 -> 0
A12: Temperature | C12: Temperature | E12: Temperature
A13: F/G | B13: ='(4) Temperature'!M13 -> 2.75 | C13: F/G | D13: ='(4) Temperature'!M17 -> 0 | E13: F/G | F13: ='(4) Temperature'!M21 -> 0
C14: % Change | D14: ='(4) Temperature'!N17 -> 0 | E14: % Change | F14: ='(4) Temperature'!N21 -> 0
A16: Feed Processing | C16: Feed Processing | E16: Feed Processing
A17: Diet Form | B17: ='(5) Feed Processing'!B5 -> Pellet | C17: Diet Form | D17: ='(5) Feed Processing'!C5 -> 0 | E17: Diet Form | F17: ='(5) Feed Processing'!D5 -> 0
A18: % Fines | B18: ='(5) Feed Processing'!B7 -> 55 | C18: % Fines | D18: ='(5) Feed Processing'!C7 -> 0 | E18: % Fines | F18: ='(5) Feed Processing'!D7 -> 0
A19: F/G | B19: ='(5) Feed Processing'!B8 -> 2.75 | C19: F/G | D19: ='(5) Feed Processing'!C8 ->  | E19: F/G | F19: ='(5) Feed Processing'!D8 -> 
C20: % Change | D20: ='(5) Feed Processing'!C16 ->  | E20: % Change | F20: ='(5) Feed Processing'!D16 -> 
A22: Particle Size | B22: ='(5) Feed Processing'!G5 -> 550 | C22: Particle Size | D22: ='(5) Feed Processing'!H5 -> 0 | E22: Particle Size | F22: ='(5) Feed Processing'!I5 -> 0
A23: F/G | B23: ='(5) Feed Processing'!G7 -> 2.75 | C23: F/G | D23: ='(5) Feed Processing'!H7 -> 0 | E23: F/G | F23: ='(5) Feed Processing'!I7 -> 0
C24: % Change | D24: ='(5) Feed Processing'!H8 -> 0 | E24: % Change | F24: ='(5) Feed Processing'!I8 -> 0
A26: Floor Space | C26: Floor Space | E26: Floor Space
A27: Floor Space/pig, ft2 | B27: ='(6) Floor Space'!B7 -> 7.8 | C27: Floor Space/pig, ft2 | D27: ='(6) Floor Space'!C7 -> 0 | E27: Floor Space/pig, ft2 | F27: ='(6) Floor Space'!D7 -> 0
A28: F/G | B28: ='(6) Floor Space'!B16 -> 2.75 | C28: F/G | D28: ='(6) Floor Space'!C16 -> 0 | E28: F/G | F28: ='(6) Floor Space'!D16 -> 0
C29: % Change | D29: ='(6) Floor Space'!C17 -> 0 | E29: % Change | F29: ='(6) Floor Space'!D17 -> 0
A31: Production Management | C31: Production Management | E31: Production Management
A32: F/G | B32: ='(7) Production Management'!P8 -> 2.752494861 | C32: F/G | D32: ='(7) Production Management'!P12 -> 2.752494861 | E32: F/G | F32: ='(7) Production Management'!P16 -> 2.752494861
C33: % Change | D33: ='(7) Production Management'!Q12 -> 0 | E33: % Change | F33: ='(7) Production Management'!Q16 -> 0
A35: Mortality | C35: Mortality | E35: Mortality
A36: % Mortality | B36: ='(8) Mortality'!C8 -> 0.02 | C36: % Mortality | D36: ='(8) Mortality'!D8 -> 0 | E36: % Mortality | F36: ='(8) Mortality'!E8 -> 0
A37: F/G | B37: ='(8) Mortality'!C23 -> 2.75 | C37: F/G | D37: ='(8) Mortality'!D23 -> 0 | E37: F/G | F37: ='(8) Mortality'!E23 -> 0
C38: % Change | D38: ='(8) Mortality'!D24 -> 0 | E38: % Change | F38: ='(8) Mortality'!E24 -> 0

Sheet Sheet2
A1: =1/((0.000096*(1145*2.204))-(0.0025*(AVERAGE(22.686,54.446)))+(0.003071*1.5)+0.3257) -> 2.100155668
A2: =1/((0.000096*(1166*2.204))-(0.0025*(AVERAGE(54.446,90.744)))+(0.003071*1.5)+0.3257) -> 2.528279156

Sheet Sheet4
